Organisation Name,Organisation Code,Unique Ref No,Effective Date,Directorate where expenditure incurred,Supplier Name ,Payment Date,Net amount,Purpose of Spend,Procurement Classification (Higher Level),Procurement Classification (Lower Level),CAPITAL / REVENUE
Walsall Council,http://opendatacommunities.org/id/metropolitan-district-council/walsall,WC124-1,31.03.2021,ECONOMY & ENVIRONMENT,11KBW,05/03/2021,-825.00,6411-School Only Payments - Catering,THIRD PARTY PAYMENTS,INDEPENDENT UNIT WITHIN COUNCIL,REVENUE
Walsall Council,http://opendatacommunities.org/id/metropolitan-district-council/walsall,WC124-2,31.03.2021,ECONOMY & ENVIRONMENT,11KBW,05/03/2021,825.00,6411-School Only Payments - Catering,THIRD PARTY PAYMENTS,INDEPENDENT UNIT WITHIN COUNCIL,REVENUE
Walsall Council,http://opendatacommunities.org/id/metropolitan-district-council/walsall,WC124-3,31.03.2021,ECONOMY & ENVIRONMENT,11KBW,03/03/2021,"38,837.50",6440-School Only Payments - Catering,THIRD PARTY PAYMENTS,INDEPENDENT UNIT WITHIN COUNCIL,REVENUE
Walsall Council,http://opendatacommunities.org/id/metropolitan-district-council/walsall,WC124-4,31.03.2021,CHILDRENS,247 CARS (WILLENHALL) LIMITED,24/03/2021,"1,235.00",6241-Hire of Vehicle with Driver,TRANSPORT,DIRECT TRANSPORT COSTS,REVENUE
Walsall Council,http://opendatacommunities.org/id/metropolitan-district-council/walsall,WC124-5,31.03.2021,CHILDRENS,247 CARS (WILLENHALL) LIMITED,24/03/2021,"1,096.20",6241-Hire of Vehicle with Driver,TRANSPORT,DIRECT TRANSPORT COSTS,REVENUE
Walsall Council,http://opendatacommunities.org/id/metropolitan-district-council/walsall,WC124-6,31.03.2021,ECONOMY & ENVIRONMENT,2HILLS CONSULTANCY,30/03/2021,"3,250.00",6430-Professional Fees & Services,SUPPLIES & SERVICES,SERVICES,REVENUE
Walsall Council,http://opendatacommunities.org/id/metropolitan-district-council/walsall,WC124-7,31.03.2021,RESOURCES AND TRANSFORMATION,3 SPIRIT UK TRAINING & CONSULTANCY,26/03/2021,725.00,6625-Consultant Fees,SUPPLIES & SERVICES,SERVICES,REVENUE
Walsall Council,http://opendatacommunities.org/id/metropolitan-district-council/walsall,WC124-8,31.03.2021,ADULT SOCIAL CARE,5 CARE SERVICES LTD,01/03/2021,539.70,6541-Domiciliary Care,THIRD PARTY PAYMENTS,PRIVATE CONTRACTOR,REVENUE
Walsall Council,http://opendatacommunities.org/id/metropolitan-district-council/walsall,WC124-9,31.03.2021,ADULT SOCIAL CARE,5 CARE SERVICES LTD,01/03/2021,485.73,6541-Domiciliary Care,THIRD PARTY PAYMENTS,PRIVATE CONTRACTOR,REVENUE
Walsall Council,http://opendatacommunities.org/id/metropolitan-district-council/walsall,WC124-10,31.03.2021,ADULT SOCIAL CARE,5 CARE SERVICES LTD,01/03/2021,485.80,6541-Domiciliary Care,THIRD PARTY PAYMENTS,PRIVATE CONTRACTOR,REVENUE
Walsall Council,http://opendatacommunities.org/id/metropolitan-district-council/walsall,WC124-11,31.03.2021,ADULT SOCIAL CARE,5 CARE SERVICES LTD,01/03/2021,251.93,6541-Domiciliary Care,THIRD PARTY PAYMENTS,PRIVATE CONTRACTOR,REVENUE
Walsall Council,http://opendatacommunities.org/id/metropolitan-district-council/walsall,WC124-12,31.03.2021,ADULT SOCIAL CARE,5 CARE SERVICES LTD,01/03/2021,377.79,6541-Domiciliary Care,THIRD PARTY PAYMENTS,PRIVATE CONTRACTOR,REVENUE
Walsall Council,http://opendatacommunities.org/id/metropolitan-district-council/walsall,WC124-13,31.03.2021,ADULT SOCIAL CARE,5 CARE SERVICES LTD,01/03/2021,308.40,6541-Domiciliary Care,THIRD PARTY PAYMENTS,PRIVATE CONTRACTOR,REVENUE
Walsall Council,http://opendatacommunities.org/id/metropolitan-district-council/walsall,WC124-14,31.03.2021,ADULT SOCIAL CARE,5 CARE SERVICES LTD,01/03/2021,585.96,6541-Domiciliary Care,THIRD PARTY PAYMENTS,PRIVATE CONTRACTOR,REVENUE
Walsall Council,http://opendatacommunities.org/id/metropolitan-district-council/walsall,WC124-15,31.03.2021,ADULT SOCIAL CARE,5 CARE SERVICES LTD,01/03/2021,269.85,6541-Domiciliary Care,THIRD PARTY PAYMENTS,PRIVATE CONTRACTOR,REVENUE
Walsall Council,http://opendatacommunities.org/id/metropolitan-district-council/walsall,WC124-16,31.03.2021,ADULT SOCIAL CARE,5 CARE SERVICES LTD,01/03/2021,755.58,6541-Domiciliary Care,THIRD PARTY PAYMENTS,PRIVATE CONTRACTOR,REVENUE
Walsall Council,http://opendatacommunities.org/id/metropolitan-district-council/walsall,WC124-17,31.03.2021,ADULT SOCIAL CARE,5 CARE SERVICES LTD,01/03/2021,323.82,6541-Domiciliary Care,THIRD PARTY PAYMENTS,PRIVATE CONTRACTOR,REVENUE
Walsall Council,http://opendatacommunities.org/id/metropolitan-district-council/walsall,WC124-18,31.03.2021,ADULT SOCIAL CARE,5 CARE SERVICES LTD,01/03/2021,308.40,6541-Domiciliary Care,THIRD PARTY PAYMENTS,PRIVATE CONTRACTOR,REVENUE
Walsall Council,http://opendatacommunities.org/id/metropolitan-district-council/walsall,WC124-19,31.03.2021,ADULT SOCIAL CARE,5 CARE SERVICES LTD,01/03/2021,431.76,6541-Domiciliary Care,THIRD PARTY PAYMENTS,PRIVATE CONTRACTOR,REVENUE
Walsall Council,http://opendatacommunities.org/id/metropolitan-district-council/walsall,WC124-20,31.03.2021,ADULT SOCIAL CARE,5 CARE SERVICES LTD,01/03/2021,304.58,6541-Domiciliary Care,THIRD PARTY PAYMENTS,PRIVATE CONTRACTOR,REVENUE
Walsall Council,http://opendatacommunities.org/id/metropolitan-district-council/walsall,WC124-21,31.03.2021,ADULT SOCIAL CARE,5 CARE SERVICES LTD,01/03/2021,647.64,6541-Domiciliary Care,THIRD PARTY PAYMENTS,PRIVATE CONTRACTOR,REVENUE
Walsall Council,http://opendatacommunities.org/id/metropolitan-district-council/walsall,WC124-22,31.03.2021,ADULT SOCIAL CARE,5 CARE SERVICES LTD,01/03/2021,925.20,6541-Domiciliary Care,THIRD PARTY PAYMENTS,PRIVATE CONTRACTOR,REVENUE
Walsall Council,http://opendatacommunities.org/id/metropolitan-district-council/walsall,WC124-23,31.03.2021,ADULT SOCIAL CARE,5 CARE SERVICES LTD,01/03/2021,"2,482.62",6541-Domiciliary Care,THIRD PARTY PAYMENTS,PRIVATE CONTRACTOR,REVENUE
Walsall Council,http://opendatacommunities.org/id/metropolitan-district-council/walsall,WC124-24,31.03.2021,ADULT SOCIAL CARE,5 CARE SERVICES LTD,01/03/2021,323.82,6541-Domiciliary Care,THIRD PARTY PAYMENTS,PRIVATE CONTRACTOR,REVENUE
Walsall Council,http://opendatacommunities.org/id/metropolitan-district-council/walsall,WC124-25,31.03.2021,ADULT SOCIAL CARE,5 CARE SERVICES LTD,01/03/2021,593.67,6541-Domiciliary Care,THIRD PARTY PAYMENTS,PRIVATE CONTRACTOR,REVENUE
Walsall Council,http://opendatacommunities.org/id/metropolitan-district-council/walsall,WC124-26,31.03.2021,ADULT SOCIAL CARE,5 CARE SERVICES LTD,01/03/2021,485.73,6541-Domiciliary Care,THIRD PARTY PAYMENTS,PRIVATE CONTRACTOR,REVENUE
Walsall Council,http://opendatacommunities.org/id/metropolitan-district-council/walsall,WC124-27,31.03.2021,ADULT SOCIAL CARE,5 CARE SERVICES LTD,01/03/2021,620.66,6541-Domiciliary Care,THIRD PARTY PAYMENTS,PRIVATE CONTRACTOR,REVENUE
Walsall Council,http://opendatacommunities.org/id/metropolitan-district-council/walsall,WC124-28,31.03.2021,ADULT SOCIAL CARE,5 CARE SERVICES LTD,01/03/2021,377.79,6541-Domiciliary Care,THIRD PARTY PAYMENTS,PRIVATE CONTRACTOR,REVENUE
Walsall Council,http://opendatacommunities.org/id/metropolitan-district-council/walsall,WC124-29,31.03.2021,ADULT SOCIAL CARE,5 CARE SERVICES LTD,01/03/2021,359.80,6541-Domiciliary Care,THIRD PARTY PAYMENTS,PRIVATE CONTRACTOR,REVENUE
Walsall Council,http://opendatacommunities.org/id/metropolitan-district-council/walsall,WC124-30,31.03.2021,ADULT SOCIAL CARE,5 CARE SERVICES LTD,01/03/2021,251.93,6541-Domiciliary Care,THIRD PARTY PAYMENTS,PRIVATE CONTRACTOR,REVENUE
Walsall Council,http://opendatacommunities.org/id/metropolitan-district-council/walsall,WC124-31,31.03.2021,ADULT SOCIAL CARE,5 CARE SERVICES LTD,01/03/2021,377.79,6541-Domiciliary Care,THIRD PARTY PAYMENTS,PRIVATE CONTRACTOR,REVENUE
Walsall Council,http://opendatacommunities.org/id/metropolitan-district-council/walsall,WC124-32,31.03.2021,ADULT SOCIAL CARE,5 CARE SERVICES LTD,01/03/2021,308.40,6541-Domiciliary Care,THIRD PARTY PAYMENTS,PRIVATE CONTRACTOR,REVENUE
Walsall Council,http://opendatacommunities.org/id/metropolitan-district-council/walsall,WC124-33,31.03.2021,ADULT SOCIAL CARE,5 CARE SERVICES LTD,01/03/2021,431.76,6541-Domiciliary Care,THIRD PARTY PAYMENTS,PRIVATE CONTRACTOR,REVENUE
Walsall Council,http://opendatacommunities.org/id/metropolitan-district-council/walsall,WC124-34,31.03.2021,ADULT SOCIAL CARE,5 CARE SERVICES LTD,01/03/2021,304.58,6541-Domiciliary Care,THIRD PARTY PAYMENTS,PRIVATE CONTRACTOR,REVENUE
Walsall Council,http://opendatacommunities.org/id/metropolitan-district-council/walsall,WC124-35,31.03.2021,ADULT SOCIAL CARE,5 CARE SERVICES LTD,01/03/2021,647.64,6541-Domiciliary Care,THIRD PARTY PAYMENTS,PRIVATE CONTRACTOR,REVENUE
Walsall Council,http://opendatacommunities.org/id/metropolitan-district-council/walsall,WC124-36,31.03.2021,ADULT SOCIAL CARE,5 CARE SERVICES LTD,01/03/2021,323.82,6541-Domiciliary Care,THIRD PARTY PAYMENTS,PRIVATE CONTRACTOR,REVENUE
Walsall Council,http://opendatacommunities.org/id/metropolitan-district-council/walsall,WC124-37,31.03.2021,ADULT SOCIAL CARE,5 CARE SERVICES LTD,01/03/2021,308.40,6541-Domiciliary Care,THIRD PARTY PAYMENTS,PRIVATE CONTRACTOR,REVENUE
Walsall Council,http://opendatacommunities.org/id/metropolitan-district-council/walsall,WC124-38,31.03.2021,ADULT SOCIAL CARE,5 CARE SERVICES LTD,01/03/2021,323.82,6541-Domiciliary Care,THIRD PARTY PAYMENTS,PRIVATE CONTRACTOR,REVENUE
Walsall Council,http://opendatacommunities.org/id/metropolitan-district-council/walsall,WC124-39,31.03.2021,ADULT SOCIAL CARE,5 CARE SERVICES LTD,01/03/2021,485.80,6541-Domiciliary Care,THIRD PARTY PAYMENTS,PRIVATE CONTRACTOR,REVENUE
Walsall Council,http://opendatacommunities.org/id/metropolitan-district-council/walsall,WC124-40,31.03.2021,ADULT SOCIAL CARE,5 CARE SERVICES LTD,01/03/2021,925.20,6541-Domiciliary Care,THIRD PARTY PAYMENTS,PRIVATE CONTRACTOR,REVENUE
Walsall Council,http://opendatacommunities.org/id/metropolitan-district-council/walsall,WC124-41,31.03.2021,ADULT SOCIAL CARE,5 CARE SERVICES LTD,01/03/2021,755.58,6541-Domiciliary Care,THIRD PARTY PAYMENTS,PRIVATE CONTRACTOR,REVENUE
Walsall Council,http://opendatacommunities.org/id/metropolitan-district-council/walsall,WC124-42,31.03.2021,ADULT SOCIAL CARE,5 CARE SERVICES LTD,01/03/2021,539.70,6541-Domiciliary Care,THIRD PARTY PAYMENTS,PRIVATE CONTRACTOR,REVENUE
Walsall Council,http://opendatacommunities.org/id/metropolitan-district-council/walsall,WC124-43,31.03.2021,ADULT SOCIAL CARE,5 CARE SERVICES LTD,01/03/2021,485.73,6541-Domiciliary Care,THIRD PARTY PAYMENTS,PRIVATE CONTRACTOR,REVENUE
Walsall Council,http://opendatacommunities.org/id/metropolitan-district-council/walsall,WC124-44,31.03.2021,ADULT SOCIAL CARE,5 CARE SERVICES LTD,01/03/2021,585.96,6541-Domiciliary Care,THIRD PARTY PAYMENTS,PRIVATE CONTRACTOR,REVENUE
Walsall Council,http://opendatacommunities.org/id/metropolitan-district-council/walsall,WC124-45,31.03.2021,ADULT SOCIAL CARE,5 CARE SERVICES LTD,01/03/2021,269.85,6541-Domiciliary Care,THIRD PARTY PAYMENTS,PRIVATE CONTRACTOR,REVENUE
Walsall Council,http://opendatacommunities.org/id/metropolitan-district-council/walsall,WC124-46,31.03.2021,ADULT SOCIAL CARE,5 CARE SERVICES LTD,01/03/2021,377.79,6541-Domiciliary Care,THIRD PARTY PAYMENTS,PRIVATE CONTRACTOR,REVENUE
Walsall Council,http://opendatacommunities.org/id/metropolitan-district-council/walsall,WC124-47,31.03.2021,ADULT SOCIAL CARE,5 CARE SERVICES LTD,01/03/2021,300.69,6541-Domiciliary Care,THIRD PARTY PAYMENTS,PRIVATE CONTRACTOR,REVENUE
Walsall Council,http://opendatacommunities.org/id/metropolitan-district-council/walsall,WC124-48,31.03.2021,ADULT SOCIAL CARE,5 CARE SERVICES LTD,01/03/2021,"2,482.62",6541-Domiciliary Care,THIRD PARTY PAYMENTS,PRIVATE CONTRACTOR,REVENUE
Walsall Council,http://opendatacommunities.org/id/metropolitan-district-council/walsall,WC124-49,31.03.2021,ADULT SOCIAL CARE,5 CARE SERVICES LTD,01/03/2021,647.64,6541-Domiciliary Care,THIRD PARTY PAYMENTS,PRIVATE CONTRACTOR,REVENUE
Walsall Council,http://opendatacommunities.org/id/metropolitan-district-council/walsall,WC124-50,31.03.2021,ADULT SOCIAL CARE,5 CARE SERVICES LTD,01/03/2021,699.04,6541-Domiciliary Care,THIRD PARTY PAYMENTS,PRIVATE CONTRACTOR,REVENUE
Walsall Council,http://opendatacommunities.org/id/metropolitan-district-council/walsall,WC124-51,31.03.2021,ADULT SOCIAL CARE,5 CARE SERVICES LTD,01/03/2021,593.67,6541-Domiciliary Care,THIRD PARTY PAYMENTS,PRIVATE CONTRACTOR,REVENUE
Walsall Council,http://opendatacommunities.org/id/metropolitan-district-council/walsall,WC124-52,31.03.2021,ADULT SOCIAL CARE,5 CARE SERVICES LTD,01/03/2021,485.73,6541-Domiciliary Care,THIRD PARTY PAYMENTS,PRIVATE CONTRACTOR,REVENUE
Walsall Council,http://opendatacommunities.org/id/metropolitan-district-council/walsall,WC124-53,31.03.2021,ADULT SOCIAL CARE,5 CARE SERVICES LTD,01/03/2021,503.72,6541-Domiciliary Care,THIRD PARTY PAYMENTS,PRIVATE CONTRACTOR,REVENUE
Walsall Council,http://opendatacommunities.org/id/metropolitan-district-council/walsall,WC124-54,31.03.2021,ADULT SOCIAL CARE,5 CARE SERVICES LTD,15/03/2021,251.93,6541-Domiciliary Care,THIRD PARTY PAYMENTS,PRIVATE CONTRACTOR,REVENUE
Walsall Council,http://opendatacommunities.org/id/metropolitan-district-council/walsall,WC124-55,31.03.2021,ADULT SOCIAL CARE,5 CARE SERVICES LTD,15/03/2021,539.70,6541-Domiciliary Care,THIRD PARTY PAYMENTS,PRIVATE CONTRACTOR,REVENUE
Walsall Council,http://opendatacommunities.org/id/metropolitan-district-council/walsall,WC124-56,31.03.2021,ADULT SOCIAL CARE,5 CARE SERVICES LTD,15/03/2021,485.73,6541-Domiciliary Care,THIRD PARTY PAYMENTS,PRIVATE CONTRACTOR,REVENUE
Walsall Council,http://opendatacommunities.org/id/metropolitan-district-council/walsall,WC124-57,31.03.2021,ADULT SOCIAL CARE,5 CARE SERVICES LTD,15/03/2021,755.58,6541-Domiciliary Care,THIRD PARTY PAYMENTS,PRIVATE CONTRACTOR,REVENUE
Walsall Council,http://opendatacommunities.org/id/metropolitan-district-council/walsall,WC124-58,31.03.2021,ADULT SOCIAL CARE,5 CARE SERVICES LTD,15/03/2021,377.79,6541-Domiciliary Care,THIRD PARTY PAYMENTS,PRIVATE CONTRACTOR,REVENUE
Walsall Council,http://opendatacommunities.org/id/metropolitan-district-council/walsall,WC124-59,31.03.2021,ADULT SOCIAL CARE,5 CARE SERVICES LTD,15/03/2021,308.40,6541-Domiciliary Care,THIRD PARTY PAYMENTS,PRIVATE CONTRACTOR,REVENUE
Walsall Council,http://opendatacommunities.org/id/metropolitan-district-council/walsall,WC124-60,31.03.2021,ADULT SOCIAL CARE,5 CARE SERVICES LTD,15/03/2021,323.82,6541-Domiciliary Care,THIRD PARTY PAYMENTS,PRIVATE CONTRACTOR,REVENUE
Walsall Council,http://opendatacommunities.org/id/metropolitan-district-council/walsall,WC124-61,31.03.2021,ADULT SOCIAL CARE,5 CARE SERVICES LTD,15/03/2021,585.96,6541-Domiciliary Care,THIRD PARTY PAYMENTS,PRIVATE CONTRACTOR,REVENUE
Walsall Council,http://opendatacommunities.org/id/metropolitan-district-council/walsall,WC124-62,31.03.2021,ADULT SOCIAL CARE,5 CARE SERVICES LTD,15/03/2021,-809.55,6541-Domiciliary Care,THIRD PARTY PAYMENTS,PRIVATE CONTRACTOR,REVENUE
Walsall Council,http://opendatacommunities.org/id/metropolitan-district-council/walsall,WC124-63,31.03.2021,ADULT SOCIAL CARE,5 CARE SERVICES LTD,15/03/2021,647.64,6541-Domiciliary Care,THIRD PARTY PAYMENTS,PRIVATE CONTRACTOR,REVENUE
Walsall Council,http://opendatacommunities.org/id/metropolitan-district-council/walsall,WC124-64,31.03.2021,ADULT SOCIAL CARE,5 CARE SERVICES LTD,15/03/2021,835.25,6541-Domiciliary Care,THIRD PARTY PAYMENTS,PRIVATE CONTRACTOR,REVENUE
Walsall Council,http://opendatacommunities.org/id/metropolitan-district-council/walsall,WC124-65,31.03.2021,ADULT SOCIAL CARE,5 CARE SERVICES LTD,15/03/2021,285.27,6541-Domiciliary Care,THIRD PARTY PAYMENTS,PRIVATE CONTRACTOR,REVENUE
Walsall Council,http://opendatacommunities.org/id/metropolitan-district-council/walsall,WC124-66,31.03.2021,ADULT SOCIAL CARE,5 CARE SERVICES LTD,15/03/2021,485.80,6541-Domiciliary Care,THIRD PARTY PAYMENTS,PRIVATE CONTRACTOR,REVENUE
Walsall Council,http://opendatacommunities.org/id/metropolitan-district-council/walsall,WC124-67,31.03.2021,ADULT SOCIAL CARE,5 CARE SERVICES LTD,15/03/2021,300.69,6541-Domiciliary Care,THIRD PARTY PAYMENTS,PRIVATE CONTRACTOR,REVENUE
Walsall Council,http://opendatacommunities.org/id/metropolitan-district-council/walsall,WC124-68,31.03.2021,ADULT SOCIAL CARE,5 CARE SERVICES LTD,15/03/2021,"2,482.62",6541-Domiciliary Care,THIRD PARTY PAYMENTS,PRIVATE CONTRACTOR,REVENUE
Walsall Council,http://opendatacommunities.org/id/metropolitan-district-council/walsall,WC124-69,31.03.2021,ADULT SOCIAL CARE,5 CARE SERVICES LTD,15/03/2021,"2,374.68",6541-Domiciliary Care,THIRD PARTY PAYMENTS,PRIVATE CONTRACTOR,REVENUE
Walsall Council,http://opendatacommunities.org/id/metropolitan-district-council/walsall,WC124-70,31.03.2021,ADULT SOCIAL CARE,5 CARE SERVICES LTD,15/03/2021,308.40,6541-Domiciliary Care,THIRD PARTY PAYMENTS,PRIVATE CONTRACTOR,REVENUE
Walsall Council,http://opendatacommunities.org/id/metropolitan-district-council/walsall,WC124-71,31.03.2021,ADULT SOCIAL CARE,5 CARE SERVICES LTD,15/03/2021,431.76,6541-Domiciliary Care,THIRD PARTY PAYMENTS,PRIVATE CONTRACTOR,REVENUE
Walsall Council,http://opendatacommunities.org/id/metropolitan-district-council/walsall,WC124-72,31.03.2021,ADULT SOCIAL CARE,5 CARE SERVICES LTD,15/03/2021,304.58,6541-Domiciliary Care,THIRD PARTY PAYMENTS,PRIVATE CONTRACTOR,REVENUE
Walsall Council,http://opendatacommunities.org/id/metropolitan-district-council/walsall,WC124-73,31.03.2021,ADULT SOCIAL CARE,5 CARE SERVICES LTD,15/03/2021,647.64,6541-Domiciliary Care,THIRD PARTY PAYMENTS,PRIVATE CONTRACTOR,REVENUE
Walsall Council,http://opendatacommunities.org/id/metropolitan-district-council/walsall,WC124-74,31.03.2021,ADULT SOCIAL CARE,5 CARE SERVICES LTD,15/03/2021,323.82,6541-Domiciliary Care,THIRD PARTY PAYMENTS,PRIVATE CONTRACTOR,REVENUE
Walsall Council,http://opendatacommunities.org/id/metropolitan-district-council/walsall,WC124-75,31.03.2021,ADULT SOCIAL CARE,5 CARE SERVICES LTD,15/03/2021,925.20,6541-Domiciliary Care,THIRD PARTY PAYMENTS,PRIVATE CONTRACTOR,REVENUE
Walsall Council,http://opendatacommunities.org/id/metropolitan-district-council/walsall,WC124-76,31.03.2021,ADULT SOCIAL CARE,5 CARE SERVICES LTD,15/03/2021,593.67,6541-Domiciliary Care,THIRD PARTY PAYMENTS,PRIVATE CONTRACTOR,REVENUE
Walsall Council,http://opendatacommunities.org/id/metropolitan-district-council/walsall,WC124-77,31.03.2021,ADULT SOCIAL CARE,5 CARE SERVICES LTD,15/03/2021,485.73,6541-Domiciliary Care,THIRD PARTY PAYMENTS,PRIVATE CONTRACTOR,REVENUE
Walsall Council,http://opendatacommunities.org/id/metropolitan-district-council/walsall,WC124-78,31.03.2021,ADULT SOCIAL CARE,5 CARE SERVICES LTD,15/03/2021,514.00,6541-Domiciliary Care,THIRD PARTY PAYMENTS,PRIVATE CONTRACTOR,REVENUE
Walsall Council,http://opendatacommunities.org/id/metropolitan-district-council/walsall,WC124-79,31.03.2021,ADULT SOCIAL CARE,5 CARE SERVICES LTD,15/03/2021,377.79,6541-Domiciliary Care,THIRD PARTY PAYMENTS,PRIVATE CONTRACTOR,REVENUE
Walsall Council,http://opendatacommunities.org/id/metropolitan-district-council/walsall,WC124-80,31.03.2021,ADULT SOCIAL CARE,5 CARE SERVICES LTD,15/03/2021,"1,017.72",6541-Domiciliary Care,THIRD PARTY PAYMENTS,PRIVATE CONTRACTOR,REVENUE
Walsall Council,http://opendatacommunities.org/id/metropolitan-district-council/walsall,WC124-81,31.03.2021,ADULT SOCIAL CARE,5 CARE SERVICES LTD,15/03/2021,740.16,6541-Domiciliary Care,THIRD PARTY PAYMENTS,PRIVATE CONTRACTOR,REVENUE
Walsall Council,http://opendatacommunities.org/id/metropolitan-district-council/walsall,WC124-82,31.03.2021,ADULT SOCIAL CARE,5 CARE SERVICES LTD,15/03/2021,539.70,6541-Domiciliary Care,THIRD PARTY PAYMENTS,PRIVATE CONTRACTOR,REVENUE
Walsall Council,http://opendatacommunities.org/id/metropolitan-district-council/walsall,WC124-83,31.03.2021,ADULT SOCIAL CARE,5 CARE SERVICES LTD,15/03/2021,485.80,6541-Domiciliary Care,THIRD PARTY PAYMENTS,PRIVATE CONTRACTOR,REVENUE
Walsall Council,http://opendatacommunities.org/id/metropolitan-district-council/walsall,WC124-84,31.03.2021,ADULT SOCIAL CARE,5 CARE SERVICES LTD,15/03/2021,308.40,6541-Domiciliary Care,THIRD PARTY PAYMENTS,PRIVATE CONTRACTOR,REVENUE
Walsall Council,http://opendatacommunities.org/id/metropolitan-district-council/walsall,WC124-85,31.03.2021,ADULT SOCIAL CARE,5 CARE SERVICES LTD,15/03/2021,431.76,6541-Domiciliary Care,THIRD PARTY PAYMENTS,PRIVATE CONTRACTOR,REVENUE
Walsall Council,http://opendatacommunities.org/id/metropolitan-district-council/walsall,WC124-86,31.03.2021,ADULT SOCIAL CARE,5 CARE SERVICES LTD,15/03/2021,304.58,6541-Domiciliary Care,THIRD PARTY PAYMENTS,PRIVATE CONTRACTOR,REVENUE
Walsall Council,http://opendatacommunities.org/id/metropolitan-district-council/walsall,WC124-87,31.03.2021,ADULT SOCIAL CARE,5 CARE SERVICES LTD,15/03/2021,647.64,6541-Domiciliary Care,THIRD PARTY PAYMENTS,PRIVATE CONTRACTOR,REVENUE
Walsall Council,http://opendatacommunities.org/id/metropolitan-district-council/walsall,WC124-88,31.03.2021,ADULT SOCIAL CARE,5 CARE SERVICES LTD,15/03/2021,323.82,6541-Domiciliary Care,THIRD PARTY PAYMENTS,PRIVATE CONTRACTOR,REVENUE
Walsall Council,http://opendatacommunities.org/id/metropolitan-district-council/walsall,WC124-89,31.03.2021,ADULT SOCIAL CARE,5 CARE SERVICES LTD,15/03/2021,377.79,6541-Domiciliary Care,THIRD PARTY PAYMENTS,PRIVATE CONTRACTOR,REVENUE
Walsall Council,http://opendatacommunities.org/id/metropolitan-district-council/walsall,WC124-90,31.03.2021,ADULT SOCIAL CARE,5 CARE SERVICES LTD,15/03/2021,377.79,6541-Domiciliary Care,THIRD PARTY PAYMENTS,PRIVATE CONTRACTOR,REVENUE
Walsall Council,http://opendatacommunities.org/id/metropolitan-district-council/walsall,WC124-91,31.03.2021,ADULT SOCIAL CARE,5 CARE SERVICES LTD,15/03/2021,251.93,6541-Domiciliary Care,THIRD PARTY PAYMENTS,PRIVATE CONTRACTOR,REVENUE
Walsall Council,http://opendatacommunities.org/id/metropolitan-district-council/walsall,WC124-92,31.03.2021,ADULT SOCIAL CARE,5 CARE SERVICES LTD,15/03/2021,485.73,6541-Domiciliary Care,THIRD PARTY PAYMENTS,PRIVATE CONTRACTOR,REVENUE
Walsall Council,http://opendatacommunities.org/id/metropolitan-district-council/walsall,WC124-93,31.03.2021,ADULT SOCIAL CARE,5 CARE SERVICES LTD,15/03/2021,585.96,6541-Domiciliary Care,THIRD PARTY PAYMENTS,PRIVATE CONTRACTOR,REVENUE
Walsall Council,http://opendatacommunities.org/id/metropolitan-district-council/walsall,WC124-94,31.03.2021,ADULT SOCIAL CARE,5 CARE SERVICES LTD,15/03/2021,755.58,6541-Domiciliary Care,THIRD PARTY PAYMENTS,PRIVATE CONTRACTOR,REVENUE
Walsall Council,http://opendatacommunities.org/id/metropolitan-district-council/walsall,WC124-95,31.03.2021,ADULT SOCIAL CARE,5 CARE SERVICES LTD,15/03/2021,308.40,6541-Domiciliary Care,THIRD PARTY PAYMENTS,PRIVATE CONTRACTOR,REVENUE
Walsall Council,http://opendatacommunities.org/id/metropolitan-district-council/walsall,WC124-96,31.03.2021,ADULT SOCIAL CARE,5 CARE SERVICES LTD,15/03/2021,323.82,6541-Domiciliary Care,THIRD PARTY PAYMENTS,PRIVATE CONTRACTOR,REVENUE
Walsall Council,http://opendatacommunities.org/id/metropolitan-district-council/walsall,WC124-97,31.03.2021,ADULT SOCIAL CARE,5 CARE SERVICES LTD,15/03/2021,593.67,6541-Domiciliary Care,THIRD PARTY PAYMENTS,PRIVATE CONTRACTOR,REVENUE
Walsall Council,http://opendatacommunities.org/id/metropolitan-district-council/walsall,WC124-98,31.03.2021,ADULT SOCIAL CARE,5 CARE SERVICES LTD,15/03/2021,485.73,6541-Domiciliary Care,THIRD PARTY PAYMENTS,PRIVATE CONTRACTOR,REVENUE
Walsall Council,http://opendatacommunities.org/id/metropolitan-district-council/walsall,WC124-99,31.03.2021,ADULT SOCIAL CARE,5 CARE SERVICES LTD,15/03/2021,503.72,6541-Domiciliary Care,THIRD PARTY PAYMENTS,PRIVATE CONTRACTOR,REVENUE
Walsall Council,http://opendatacommunities.org/id/metropolitan-district-council/walsall,WC124-100,31.03.2021,ADULT SOCIAL CARE,5 CARE SERVICES LTD,15/03/2021,"2,482.62",6541-Domiciliary Care,THIRD PARTY PAYMENTS,PRIVATE CONTRACTOR,REVENUE
Walsall Council,http://opendatacommunities.org/id/metropolitan-district-council/walsall,WC124-101,31.03.2021,ADULT SOCIAL CARE,5 CARE SERVICES LTD,15/03/2021,"1,187.34",6541-Domiciliary Care,THIRD PARTY PAYMENTS,PRIVATE CONTRACTOR,REVENUE
Walsall Council,http://opendatacommunities.org/id/metropolitan-district-council/walsall,WC124-102,31.03.2021,ADULT SOCIAL CARE,5 CARE SERVICES LTD,15/03/2021,300.69,6541-Domiciliary Care,THIRD PARTY PAYMENTS,PRIVATE CONTRACTOR,REVENUE
Walsall Council,http://opendatacommunities.org/id/metropolitan-district-council/walsall,WC124-103,31.03.2021,ADULT SOCIAL CARE,5 CARE SERVICES LTD,15/03/2021,647.64,6541-Domiciliary Care,THIRD PARTY PAYMENTS,PRIVATE CONTRACTOR,REVENUE
Walsall Council,http://opendatacommunities.org/id/metropolitan-district-council/walsall,WC124-104,31.03.2021,ADULT SOCIAL CARE,5 CARE SERVICES LTD,15/03/2021,699.04,6541-Domiciliary Care,THIRD PARTY PAYMENTS,PRIVATE CONTRACTOR,REVENUE
Walsall Council,http://opendatacommunities.org/id/metropolitan-district-council/walsall,WC124-105,31.03.2021,ADULT SOCIAL CARE,5 CARE SERVICES LTD,15/03/2021,254.43,6541-Domiciliary Care,THIRD PARTY PAYMENTS,PRIVATE CONTRACTOR,REVENUE
Walsall Council,http://opendatacommunities.org/id/metropolitan-district-council/walsall,WC124-106,31.03.2021,ADULT SOCIAL CARE,5 CARE SERVICES LTD,29/03/2021,555.12,6541-Domiciliary Care,THIRD PARTY PAYMENTS,PRIVATE CONTRACTOR,REVENUE
Walsall Council,http://opendatacommunities.org/id/metropolitan-district-council/walsall,WC124-107,31.03.2021,ADULT SOCIAL CARE,5 CARE SERVICES LTD,29/03/2021,377.79,6541-Domiciliary Care,THIRD PARTY PAYMENTS,PRIVATE CONTRACTOR,REVENUE
Walsall Council,http://opendatacommunities.org/id/metropolitan-district-council/walsall,WC124-108,31.03.2021,ADULT SOCIAL CARE,5 CARE SERVICES LTD,29/03/2021,308.40,6541-Domiciliary Care,THIRD PARTY PAYMENTS,PRIVATE CONTRACTOR,REVENUE
Walsall Council,http://opendatacommunities.org/id/metropolitan-district-council/walsall,WC124-109,31.03.2021,ADULT SOCIAL CARE,5 CARE SERVICES LTD,29/03/2021,431.76,6541-Domiciliary Care,THIRD PARTY PAYMENTS,PRIVATE CONTRACTOR,REVENUE
Walsall Council,http://opendatacommunities.org/id/metropolitan-district-council/walsall,WC124-110,31.03.2021,ADULT SOCIAL CARE,5 CARE SERVICES LTD,29/03/2021,304.58,6541-Domiciliary Care,THIRD PARTY PAYMENTS,PRIVATE CONTRACTOR,REVENUE
Walsall Council,http://opendatacommunities.org/id/metropolitan-district-council/walsall,WC124-111,31.03.2021,ADULT SOCIAL CARE,5 CARE SERVICES LTD,29/03/2021,657.92,6541-Domiciliary Care,THIRD PARTY PAYMENTS,PRIVATE CONTRACTOR,REVENUE
Walsall Council,http://opendatacommunities.org/id/metropolitan-district-council/walsall,WC124-112,31.03.2021,ADULT SOCIAL CARE,5 CARE SERVICES LTD,29/03/2021,323.82,6541-Domiciliary Care,THIRD PARTY PAYMENTS,PRIVATE CONTRACTOR,REVENUE
Walsall Council,http://opendatacommunities.org/id/metropolitan-district-council/walsall,WC124-113,31.03.2021,ADULT SOCIAL CARE,5 CARE SERVICES LTD,29/03/2021,593.67,6541-Domiciliary Care,THIRD PARTY PAYMENTS,PRIVATE CONTRACTOR,REVENUE
Walsall Council,http://opendatacommunities.org/id/metropolitan-district-council/walsall,WC124-114,31.03.2021,ADULT SOCIAL CARE,5 CARE SERVICES LTD,29/03/2021,485.80,6541-Domiciliary Care,THIRD PARTY PAYMENTS,PRIVATE CONTRACTOR,REVENUE
Walsall Council,http://opendatacommunities.org/id/metropolitan-district-council/walsall,WC124-115,31.03.2021,ADULT SOCIAL CARE,5 CARE SERVICES LTD,29/03/2021,539.70,6541-Domiciliary Care,THIRD PARTY PAYMENTS,PRIVATE CONTRACTOR,REVENUE
Walsall Council,http://opendatacommunities.org/id/metropolitan-district-council/walsall,WC124-116,31.03.2021,ADULT SOCIAL CARE,5 CARE SERVICES LTD,29/03/2021,485.73,6541-Domiciliary Care,THIRD PARTY PAYMENTS,PRIVATE CONTRACTOR,REVENUE
Walsall Council,http://opendatacommunities.org/id/metropolitan-district-council/walsall,WC124-117,31.03.2021,ADULT SOCIAL CARE,5 CARE SERVICES LTD,29/03/2021,585.96,6541-Domiciliary Care,THIRD PARTY PAYMENTS,PRIVATE CONTRACTOR,REVENUE
Walsall Council,http://opendatacommunities.org/id/metropolitan-district-council/walsall,WC124-118,31.03.2021,ADULT SOCIAL CARE,5 CARE SERVICES LTD,29/03/2021,485.73,6541-Domiciliary Care,THIRD PARTY PAYMENTS,PRIVATE CONTRACTOR,REVENUE
Walsall Council,http://opendatacommunities.org/id/metropolitan-district-council/walsall,WC124-119,31.03.2021,ADULT SOCIAL CARE,5 CARE SERVICES LTD,29/03/2021,503.72,6541-Domiciliary Care,THIRD PARTY PAYMENTS,PRIVATE CONTRACTOR,REVENUE
Walsall Council,http://opendatacommunities.org/id/metropolitan-district-council/walsall,WC124-120,31.03.2021,ADULT SOCIAL CARE,5 CARE SERVICES LTD,29/03/2021,515.29,6541-Domiciliary Care,THIRD PARTY PAYMENTS,PRIVATE CONTRACTOR,REVENUE
Walsall Council,http://opendatacommunities.org/id/metropolitan-district-council/walsall,WC124-121,31.03.2021,ADULT SOCIAL CARE,5 CARE SERVICES LTD,29/03/2021,"2,482.62",6541-Domiciliary Care,THIRD PARTY PAYMENTS,PRIVATE CONTRACTOR,REVENUE
Walsall Council,http://opendatacommunities.org/id/metropolitan-district-council/walsall,WC124-122,31.03.2021,ADULT SOCIAL CARE,5 CARE SERVICES LTD,29/03/2021,"1,187.34",6541-Domiciliary Care,THIRD PARTY PAYMENTS,PRIVATE CONTRACTOR,REVENUE
Walsall Council,http://opendatacommunities.org/id/metropolitan-district-council/walsall,WC124-123,31.03.2021,ADULT SOCIAL CARE,5 CARE SERVICES LTD,29/03/2021,755.58,6541-Domiciliary Care,THIRD PARTY PAYMENTS,PRIVATE CONTRACTOR,REVENUE
Walsall Council,http://opendatacommunities.org/id/metropolitan-district-council/walsall,WC124-124,31.03.2021,ADULT SOCIAL CARE,5 CARE SERVICES LTD,29/03/2021,647.64,6541-Domiciliary Care,THIRD PARTY PAYMENTS,PRIVATE CONTRACTOR,REVENUE
Walsall Council,http://opendatacommunities.org/id/metropolitan-district-council/walsall,WC124-125,31.03.2021,ADULT SOCIAL CARE,5 CARE SERVICES LTD,29/03/2021,251.93,6541-Domiciliary Care,THIRD PARTY PAYMENTS,PRIVATE CONTRACTOR,REVENUE
Walsall Council,http://opendatacommunities.org/id/metropolitan-district-council/walsall,WC124-126,31.03.2021,ADULT SOCIAL CARE,5 CARE SERVICES LTD,29/03/2021,377.79,6541-Domiciliary Care,THIRD PARTY PAYMENTS,PRIVATE CONTRACTOR,REVENUE
Walsall Council,http://opendatacommunities.org/id/metropolitan-district-council/walsall,WC124-127,31.03.2021,ADULT SOCIAL CARE,5 CARE SERVICES LTD,29/03/2021,254.43,6541-Domiciliary Care,THIRD PARTY PAYMENTS,PRIVATE CONTRACTOR,REVENUE
Walsall Council,http://opendatacommunities.org/id/metropolitan-district-council/walsall,WC124-128,31.03.2021,ADULT SOCIAL CARE,5 CARE SERVICES LTD,29/03/2021,300.69,6541-Domiciliary Care,THIRD PARTY PAYMENTS,PRIVATE CONTRACTOR,REVENUE
Walsall Council,http://opendatacommunities.org/id/metropolitan-district-council/walsall,WC124-129,31.03.2021,ADULT SOCIAL CARE,5 CARE SERVICES LTD,29/03/2021,308.40,6541-Domiciliary Care,THIRD PARTY PAYMENTS,PRIVATE CONTRACTOR,REVENUE
Walsall Council,http://opendatacommunities.org/id/metropolitan-district-council/walsall,WC124-130,31.03.2021,ADULT SOCIAL CARE,5 CARE SERVICES LTD,29/03/2021,323.82,6541-Domiciliary Care,THIRD PARTY PAYMENTS,PRIVATE CONTRACTOR,REVENUE
Walsall Council,http://opendatacommunities.org/id/metropolitan-district-council/walsall,WC124-131,31.03.2021,ADULT SOCIAL CARE,5 CARE SERVICES LTD,29/03/2021,539.70,6541-Domiciliary Care,THIRD PARTY PAYMENTS,PRIVATE CONTRACTOR,REVENUE
Walsall Council,http://opendatacommunities.org/id/metropolitan-district-council/walsall,WC124-132,31.03.2021,ADULT SOCIAL CARE,5 CARE SERVICES LTD,29/03/2021,485.73,6541-Domiciliary Care,THIRD PARTY PAYMENTS,PRIVATE CONTRACTOR,REVENUE
Walsall Council,http://opendatacommunities.org/id/metropolitan-district-council/walsall,WC124-133,31.03.2021,ADULT SOCIAL CARE,5 CARE SERVICES LTD,29/03/2021,585.96,6541-Domiciliary Care,THIRD PARTY PAYMENTS,PRIVATE CONTRACTOR,REVENUE
Walsall Council,http://opendatacommunities.org/id/metropolitan-district-council/walsall,WC124-134,31.03.2021,ADULT SOCIAL CARE,5 CARE SERVICES LTD,29/03/2021,377.79,6541-Domiciliary Care,THIRD PARTY PAYMENTS,PRIVATE CONTRACTOR,REVENUE
Walsall Council,http://opendatacommunities.org/id/metropolitan-district-council/walsall,WC124-135,31.03.2021,ADULT SOCIAL CARE,5 CARE SERVICES LTD,29/03/2021,755.58,6541-Domiciliary Care,THIRD PARTY PAYMENTS,PRIVATE CONTRACTOR,REVENUE
Walsall Council,http://opendatacommunities.org/id/metropolitan-district-council/walsall,WC124-136,31.03.2021,ADULT SOCIAL CARE,5 CARE SERVICES LTD,29/03/2021,308.40,6541-Domiciliary Care,THIRD PARTY PAYMENTS,PRIVATE CONTRACTOR,REVENUE
Walsall Council,http://opendatacommunities.org/id/metropolitan-district-council/walsall,WC124-137,31.03.2021,ADULT SOCIAL CARE,5 CARE SERVICES LTD,29/03/2021,431.76,6541-Domiciliary Care,THIRD PARTY PAYMENTS,PRIVATE CONTRACTOR,REVENUE
Walsall Council,http://opendatacommunities.org/id/metropolitan-district-council/walsall,WC124-138,31.03.2021,ADULT SOCIAL CARE,5 CARE SERVICES LTD,29/03/2021,304.58,6541-Domiciliary Care,THIRD PARTY PAYMENTS,PRIVATE CONTRACTOR,REVENUE
Walsall Council,http://opendatacommunities.org/id/metropolitan-district-council/walsall,WC124-139,31.03.2021,ADULT SOCIAL CARE,5 CARE SERVICES LTD,29/03/2021,647.64,6541-Domiciliary Care,THIRD PARTY PAYMENTS,PRIVATE CONTRACTOR,REVENUE
Walsall Council,http://opendatacommunities.org/id/metropolitan-district-council/walsall,WC124-140,31.03.2021,ADULT SOCIAL CARE,5 CARE SERVICES LTD,29/03/2021,323.82,6541-Domiciliary Care,THIRD PARTY PAYMENTS,PRIVATE CONTRACTOR,REVENUE
Walsall Council,http://opendatacommunities.org/id/metropolitan-district-council/walsall,WC124-141,31.03.2021,ADULT SOCIAL CARE,5 CARE SERVICES LTD,29/03/2021,300.69,6541-Domiciliary Care,THIRD PARTY PAYMENTS,PRIVATE CONTRACTOR,REVENUE
Walsall Council,http://opendatacommunities.org/id/metropolitan-district-council/walsall,WC124-142,31.03.2021,ADULT SOCIAL CARE,5 CARE SERVICES LTD,29/03/2021,593.67,6541-Domiciliary Care,THIRD PARTY PAYMENTS,PRIVATE CONTRACTOR,REVENUE
Walsall Council,http://opendatacommunities.org/id/metropolitan-district-council/walsall,WC124-143,31.03.2021,ADULT SOCIAL CARE,5 CARE SERVICES LTD,29/03/2021,647.64,6541-Domiciliary Care,THIRD PARTY PAYMENTS,PRIVATE CONTRACTOR,REVENUE
Walsall Council,http://opendatacommunities.org/id/metropolitan-district-council/walsall,WC124-144,31.03.2021,ADULT SOCIAL CARE,5 CARE SERVICES LTD,29/03/2021,"2,482.62",6541-Domiciliary Care,THIRD PARTY PAYMENTS,PRIVATE CONTRACTOR,REVENUE
Walsall Council,http://opendatacommunities.org/id/metropolitan-district-council/walsall,WC124-145,31.03.2021,ADULT SOCIAL CARE,5 CARE SERVICES LTD,29/03/2021,"1,187.34",6541-Domiciliary Care,THIRD PARTY PAYMENTS,PRIVATE CONTRACTOR,REVENUE
Walsall Council,http://opendatacommunities.org/id/metropolitan-district-council/walsall,WC124-146,31.03.2021,ADULT SOCIAL CARE,5 CARE SERVICES LTD,29/03/2021,254.43,6541-Domiciliary Care,THIRD PARTY PAYMENTS,PRIVATE CONTRACTOR,REVENUE
Walsall Council,http://opendatacommunities.org/id/metropolitan-district-council/walsall,WC124-147,31.03.2021,ADULT SOCIAL CARE,5 CARE SERVICES LTD,29/03/2021,485.73,6541-Domiciliary Care,THIRD PARTY PAYMENTS,PRIVATE CONTRACTOR,REVENUE
Walsall Council,http://opendatacommunities.org/id/metropolitan-district-council/walsall,WC124-148,31.03.2021,ADULT SOCIAL CARE,5 CARE SERVICES LTD,29/03/2021,503.72,6541-Domiciliary Care,THIRD PARTY PAYMENTS,PRIVATE CONTRACTOR,REVENUE
Walsall Council,http://opendatacommunities.org/id/metropolitan-district-council/walsall,WC124-149,31.03.2021,ADULT SOCIAL CARE,5 CARE SERVICES LTD,29/03/2021,699.04,6541-Domiciliary Care,THIRD PARTY PAYMENTS,PRIVATE CONTRACTOR,REVENUE
Walsall Council,http://opendatacommunities.org/id/metropolitan-district-council/walsall,WC124-150,31.03.2021,ADULT SOCIAL CARE,5 CARE SERVICES LTD,29/03/2021,251.93,6541-Domiciliary Care,THIRD PARTY PAYMENTS,PRIVATE CONTRACTOR,REVENUE
Walsall Council,http://opendatacommunities.org/id/metropolitan-district-council/walsall,WC124-151,31.03.2021,ADULT SOCIAL CARE,5 CARE SERVICES LTD,29/03/2021,740.16,6541-Domiciliary Care,THIRD PARTY PAYMENTS,PRIVATE CONTRACTOR,REVENUE
Walsall Council,http://opendatacommunities.org/id/metropolitan-district-council/walsall,WC124-152,31.03.2021,ADULT SOCIAL CARE,5 CARE SERVICES LTD,29/03/2021,339.24,6541-Domiciliary Care,THIRD PARTY PAYMENTS,PRIVATE CONTRACTOR,REVENUE
Walsall Council,http://opendatacommunities.org/id/metropolitan-district-council/walsall,WC124-153,31.03.2021,ADULT SOCIAL CARE,5 CARE SERVICES LTD,29/03/2021,308.40,6541-Domiciliary Care,THIRD PARTY PAYMENTS,PRIVATE CONTRACTOR,REVENUE
Walsall Council,http://opendatacommunities.org/id/metropolitan-district-council/walsall,WC124-154,31.03.2021,ADULT SOCIAL CARE,5 CARE SERVICES LTD,29/03/2021,323.82,6541-Domiciliary Care,THIRD PARTY PAYMENTS,PRIVATE CONTRACTOR,REVENUE
Walsall Council,http://opendatacommunities.org/id/metropolitan-district-council/walsall,WC124-155,31.03.2021,ADULT SOCIAL CARE,5 CARE SERVICES LTD,12/03/2021,"1,510.24",6550-Professional Fees & Services,SUPPLIES & SERVICES,SERVICES,REVENUE
Walsall Council,http://opendatacommunities.org/id/metropolitan-district-council/walsall,WC124-156,31.03.2021,ADULT SOCIAL CARE,5 CARE SERVICES LTD,05/03/2021,287.84,6554-Professional Services-Priv Contractor & Other Agencies,THIRD PARTY PAYMENTS,PRIVATE CONTRACTOR,REVENUE
Walsall Council,http://opendatacommunities.org/id/metropolitan-district-council/walsall,WC124-157,31.03.2021,ADULT SOCIAL CARE,5 CARE SERVICES LTD,05/03/2021,539.84,6554-Professional Services-Priv Contractor & Other Agencies,THIRD PARTY PAYMENTS,PRIVATE CONTRACTOR,REVENUE
Walsall Council,http://opendatacommunities.org/id/metropolitan-district-council/walsall,WC124-158,31.03.2021,ADULT SOCIAL CARE,5 CARE SERVICES LTD,05/03/2021,354.66,6554-Professional Services-Priv Contractor & Other Agencies,THIRD PARTY PAYMENTS,PRIVATE CONTRACTOR,REVENUE
Walsall Council,http://opendatacommunities.org/id/metropolitan-district-council/walsall,WC124-159,31.03.2021,ADULT SOCIAL CARE,5 CARE SERVICES LTD,05/03/2021,312.30,6554-Professional Services-Priv Contractor & Other Agencies,THIRD PARTY PAYMENTS,PRIVATE CONTRACTOR,REVENUE
Walsall Council,http://opendatacommunities.org/id/metropolitan-district-council/walsall,WC124-160,31.03.2021,CHILDRENS,5 CARE SERVICES LTD,05/03/2021,287.10,6220-Professional Fees & Services,SUPPLIES & SERVICES,SERVICES,REVENUE
Walsall Council,http://opendatacommunities.org/id/metropolitan-district-council/walsall,WC124-161,31.03.2021,ADULT SOCIAL CARE,5 CARE SERVICES LTD,10/03/2021,"1,002.30",6541-Domiciliary Care,THIRD PARTY PAYMENTS,PRIVATE CONTRACTOR,REVENUE
Walsall Council,http://opendatacommunities.org/id/metropolitan-district-council/walsall,WC124-162,31.03.2021,ADULT SOCIAL CARE,5 CARE SERVICES LTD,17/03/2021,370.08,6554-Professional Services-Priv Contractor & Other Agencies,THIRD PARTY PAYMENTS,PRIVATE CONTRACTOR,REVENUE
Walsall Council,http://opendatacommunities.org/id/metropolitan-district-council/walsall,WC124-163,31.03.2021,ADULT SOCIAL CARE,5 CARE SERVICES LTD,10/03/2021,601.38,6541-Domiciliary Care,THIRD PARTY PAYMENTS,PRIVATE CONTRACTOR,REVENUE
Walsall Council,http://opendatacommunities.org/id/metropolitan-district-council/walsall,WC124-164,31.03.2021,ADULT SOCIAL CARE,5 CARE SERVICES LTD,10/03/2021,940.62,6541-Domiciliary Care,THIRD PARTY PAYMENTS,PRIVATE CONTRACTOR,REVENUE
Walsall Council,http://opendatacommunities.org/id/metropolitan-district-council/walsall,WC124-165,31.03.2021,ADULT SOCIAL CARE,5 CARE SERVICES LTD,10/03/2021,"1,110.24",6541-Domiciliary Care,THIRD PARTY PAYMENTS,PRIVATE CONTRACTOR,REVENUE
Walsall Council,http://opendatacommunities.org/id/metropolitan-district-council/walsall,WC124-166,31.03.2021,ADULT SOCIAL CARE,5 CARE SERVICES LTD,10/03/2021,"2,220.48",6541-Domiciliary Care,THIRD PARTY PAYMENTS,PRIVATE CONTRACTOR,REVENUE
Walsall Council,http://opendatacommunities.org/id/metropolitan-district-council/walsall,WC124-167,31.03.2021,ADULT SOCIAL CARE,5 CARE SERVICES LTD,23/03/2021,493.44,6554-Professional Services-Priv Contractor & Other Agencies,THIRD PARTY PAYMENTS,PRIVATE CONTRACTOR,REVENUE
Walsall Council,http://opendatacommunities.org/id/metropolitan-district-council/walsall,WC124-168,31.03.2021,ADULT SOCIAL CARE,5 CARE SERVICES LTD,23/03/2021,-539.85,6554-Professional Services-Priv Contractor & Other Agencies,THIRD PARTY PAYMENTS,PRIVATE CONTRACTOR,REVENUE
Walsall Council,http://opendatacommunities.org/id/metropolitan-district-council/walsall,WC124-169,31.03.2021,ADULT SOCIAL CARE,5 CARE SERVICES LTD,23/03/2021,539.84,6554-Professional Services-Priv Contractor & Other Agencies,THIRD PARTY PAYMENTS,PRIVATE CONTRACTOR,REVENUE
Walsall Council,http://opendatacommunities.org/id/metropolitan-district-council/walsall,WC124-170,31.03.2021,ADULT SOCIAL CARE,5 CARE SERVICES LTD,23/03/2021,539.85,6554-Professional Services-Priv Contractor & Other Agencies,THIRD PARTY PAYMENTS,PRIVATE CONTRACTOR,REVENUE
Walsall Council,http://opendatacommunities.org/id/metropolitan-district-council/walsall,WC124-171,31.03.2021,ADULT SOCIAL CARE,5 CARE SERVICES LTD,23/03/2021,"2,590.56",6554-Professional Services-Priv Contractor & Other Agencies,THIRD PARTY PAYMENTS,PRIVATE CONTRACTOR,REVENUE
Walsall Council,http://opendatacommunities.org/id/metropolitan-district-council/walsall,WC124-172,31.03.2021,CHILDRENS,5 CARE SERVICES LTD,23/03/2021,"1,579.05",6220-Professional Fees & Services,SUPPLIES & SERVICES,SERVICES,REVENUE
Walsall Council,http://opendatacommunities.org/id/metropolitan-district-council/walsall,WC124-173,31.03.2021,ADULT SOCIAL CARE,5 CARE SERVICES LTD,23/03/2021,"16,896.41",6550-Professional Services-Priv Contractor & Other Agencies,THIRD PARTY PAYMENTS,PRIVATE CONTRACTOR,REVENUE
Walsall Council,http://opendatacommunities.org/id/metropolitan-district-council/walsall,WC124-174,31.03.2021,RESOURCES AND TRANSFORMATION,A D T FIRE AND SECURITY PLC,15/03/2021,"1,339.79",6310-Repair & Maintenance of Furniture & Equipment,SUPPLIES & SERVICES,EQUIPMENT FURNITURE & MATERIALS,REVENUE
Walsall Council,http://opendatacommunities.org/id/metropolitan-district-council/walsall,WC124-175,31.03.2021,ECONOMY & ENVIRONMENT,AAINA COMMUNITY HUB,24/03/2021,"1,376.16",6430-Grants to Other Orgs,SUPPLIES & SERVICES,GRANTS (EXP) & SUBSCRIPTIONS,REVENUE
Walsall Council,http://opendatacommunities.org/id/metropolitan-district-council/walsall,WC124-176,31.03.2021,ADULT SOCIAL CARE,ABBEY COURT NURSING & RESIDEN,15/03/2021,"2,308.00",6541-Residential EMI,THIRD PARTY PAYMENTS,PRIVATE CONTRACTOR,REVENUE
Walsall Council,http://opendatacommunities.org/id/metropolitan-district-council/walsall,WC124-177,31.03.2021,ADULT SOCIAL CARE,ABBEY COURT NURSING & RESIDEN,15/03/2021,"2,548.00",6541-Residential EMI,THIRD PARTY PAYMENTS,PRIVATE CONTRACTOR,REVENUE
Walsall Council,http://opendatacommunities.org/id/metropolitan-district-council/walsall,WC124-178,31.03.2021,ADULT SOCIAL CARE,ABBEY COURT NURSING & RESIDEN,15/03/2021,"2,044.00",6541-Residential,THIRD PARTY PAYMENTS,PRIVATE CONTRACTOR,REVENUE
Walsall Council,http://opendatacommunities.org/id/metropolitan-district-council/walsall,WC124-179,31.03.2021,ADULT SOCIAL CARE,ABBEY COURT NURSING & RESIDEN,15/03/2021,"2,143.14",6541-Residential EMI,THIRD PARTY PAYMENTS,PRIVATE CONTRACTOR,REVENUE
Walsall Council,http://opendatacommunities.org/id/metropolitan-district-council/walsall,WC124-180,31.03.2021,ADULT SOCIAL CARE,ABBEY HEALTHCARE HOMES LTD,15/03/2021,"3,102.72",6541-Residential,THIRD PARTY PAYMENTS,PRIVATE CONTRACTOR,REVENUE
Walsall Council,http://opendatacommunities.org/id/metropolitan-district-council/walsall,WC124-181,31.03.2021,ADULT SOCIAL CARE,ABBEY HEALTHCARE HOMES LTD,15/03/2021,"3,102.72",6541-Residential,THIRD PARTY PAYMENTS,PRIVATE CONTRACTOR,REVENUE
Walsall Council,http://opendatacommunities.org/id/metropolitan-district-council/walsall,WC124-182,31.03.2021,ADULT SOCIAL CARE,ABBEY HEALTHCARE HOMES LTD,15/03/2021,"3,516.40",6541-Residential,THIRD PARTY PAYMENTS,PRIVATE CONTRACTOR,REVENUE
Walsall Council,http://opendatacommunities.org/id/metropolitan-district-council/walsall,WC124-183,31.03.2021,ADULT SOCIAL CARE,ABBEY HEALTHCARE HOMES LTD,15/03/2021,"2,372.64",6541-Residential,THIRD PARTY PAYMENTS,PRIVATE CONTRACTOR,REVENUE
Walsall Council,http://opendatacommunities.org/id/metropolitan-district-council/walsall,WC124-184,31.03.2021,ADULT SOCIAL CARE,REDACTED,10/03/2021,"2,638.65",6541-Direct Payment,THIRD PARTY PAYMENTS,PRIVATE CONTRACTOR,REVENUE
Walsall Council,http://opendatacommunities.org/id/metropolitan-district-council/walsall,WC124-185,31.03.2021,CHILDRENS,ABLEWELL CARS,24/03/2021,686.40,6241-Hire of Vehicle with Driver,TRANSPORT,DIRECT TRANSPORT COSTS,REVENUE
Walsall Council,http://opendatacommunities.org/id/metropolitan-district-council/walsall,WC124-186,31.03.2021,CHILDRENS,ABLEWELL CARS,24/03/2021,"1,372.40",6241-Hire of Vehicle with Driver,TRANSPORT,DIRECT TRANSPORT COSTS,REVENUE
Walsall Council,http://opendatacommunities.org/id/metropolitan-district-council/walsall,WC124-187,31.03.2021,CHILDRENS,ABLEWELL CARS,24/03/2021,873.54,6241-Hire of Vehicle with Driver,TRANSPORT,DIRECT TRANSPORT COSTS,REVENUE
Walsall Council,http://opendatacommunities.org/id/metropolitan-district-council/walsall,WC124-188,31.03.2021,CHILDRENS,ABLEWELL CARS,24/03/2021,"1,335.60",6241-Hire of Vehicle with Driver,TRANSPORT,DIRECT TRANSPORT COSTS,REVENUE
Walsall Council,http://opendatacommunities.org/id/metropolitan-district-council/walsall,WC124-189,31.03.2021,CHILDRENS,ABLEWELL CARS,24/03/2021,590.40,6241-Hire of Vehicle with Driver,TRANSPORT,DIRECT TRANSPORT COSTS,REVENUE
Walsall Council,http://opendatacommunities.org/id/metropolitan-district-council/walsall,WC124-190,31.03.2021,CHILDRENS,ABLEWELL CARS,24/03/2021,"1,411.80",6241-Hire of Vehicle with Driver,TRANSPORT,DIRECT TRANSPORT COSTS,REVENUE
Walsall Council,http://opendatacommunities.org/id/metropolitan-district-council/walsall,WC124-191,31.03.2021,CHILDRENS,ABLEWELL CARS,24/03/2021,858.60,6241-Hire of Vehicle with Driver,TRANSPORT,DIRECT TRANSPORT COSTS,REVENUE
Walsall Council,http://opendatacommunities.org/id/metropolitan-district-council/walsall,WC124-192,31.03.2021,CHILDRENS,ABS TAXIS (ALDRIDGE),24/03/2021,588.00,6241-Hire of Vehicle with Driver,TRANSPORT,DIRECT TRANSPORT COSTS,REVENUE
Walsall Council,http://opendatacommunities.org/id/metropolitan-district-council/walsall,WC124-193,31.03.2021,CHILDRENS,ABS TAXIS (ALDRIDGE),24/03/2021,"1,559.25",6241-Hire of Vehicle with Driver,TRANSPORT,DIRECT TRANSPORT COSTS,REVENUE
Walsall Council,http://opendatacommunities.org/id/metropolitan-district-council/walsall,WC124-194,31.03.2021,CHILDRENS,ABS TAXIS (ALDRIDGE),24/03/2021,"1,579.35",6241-Hire of Vehicle with Driver,TRANSPORT,DIRECT TRANSPORT COSTS,REVENUE
Walsall Council,http://opendatacommunities.org/id/metropolitan-district-council/walsall,WC124-195,31.03.2021,CHILDRENS,ACCALIA CARE SERVICES LTD,19/03/2021,-713.57,6223-External Residential Care-Oth Agency Provision,THIRD PARTY PAYMENTS,PRIVATE CONTRACTOR,REVENUE
Walsall Council,http://opendatacommunities.org/id/metropolitan-district-council/walsall,WC124-196,31.03.2021,CHILDRENS,ACCALIA CARE SERVICES LTD,19/03/2021,"19,980.00",6223-External Residential Care-Oth Agency Provision,THIRD PARTY PAYMENTS,PRIVATE CONTRACTOR,REVENUE
Walsall Council,http://opendatacommunities.org/id/metropolitan-district-council/walsall,WC124-197,31.03.2021,ADULT SOCIAL CARE,ACCOMPLISH GROUP LTD,15/03/2021,"7,861.04",6541-Residential,THIRD PARTY PAYMENTS,PRIVATE CONTRACTOR,REVENUE
Walsall Council,http://opendatacommunities.org/id/metropolitan-district-council/walsall,WC124-198,31.03.2021,ADULT SOCIAL CARE,ACCORD HOUSING ASSOCIATION LIMITED - HOBS MEADOW,15/03/2021,"4,659.64",6541-Residential,THIRD PARTY PAYMENTS,PRIVATE CONTRACTOR,REVENUE
Walsall Council,http://opendatacommunities.org/id/metropolitan-district-council/walsall,WC124-199,31.03.2021,ADULT SOCIAL CARE,ACCORD HOUSING ASSOCIATION LIMITED - HOBS MEADOW,15/03/2021,"4,659.64",6541-Residential,THIRD PARTY PAYMENTS,PRIVATE CONTRACTOR,REVENUE
Walsall Council,http://opendatacommunities.org/id/metropolitan-district-council/walsall,WC124-200,31.03.2021,ADULT SOCIAL CARE,ACCORD HOUSING ASSOCIATION LIMITED - HOBS MEADOW,15/03/2021,"4,659.64",6541-Residential,THIRD PARTY PAYMENTS,PRIVATE CONTRACTOR,REVENUE
Walsall Council,http://opendatacommunities.org/id/metropolitan-district-council/walsall,WC124-201,31.03.2021,ADULT SOCIAL CARE,ACCORD HOUSING ASSOCIATION LIMITED - HOBS MEADOW,15/03/2021,"4,659.64",6541-Residential,THIRD PARTY PAYMENTS,PRIVATE CONTRACTOR,REVENUE
Walsall Council,http://opendatacommunities.org/id/metropolitan-district-council/walsall,WC124-202,31.03.2021,ADULT SOCIAL CARE,ACCORD HOUSING ASSOCIATION LTD#135,19/03/2021,379.32,6550-Professional Services-Priv Contractor & Other Agencies,THIRD PARTY PAYMENTS,PRIVATE CONTRACTOR,REVENUE
Walsall Council,http://opendatacommunities.org/id/metropolitan-district-council/walsall,WC124-203,31.03.2021,ADULT SOCIAL CARE,ACCORD HOUSING ASSOCIATION LTD#135,15/03/2021,"6,503.40",6541-Residential,THIRD PARTY PAYMENTS,PRIVATE CONTRACTOR,REVENUE
Walsall Council,http://opendatacommunities.org/id/metropolitan-district-council/walsall,WC124-204,31.03.2021,ADULT SOCIAL CARE,ACCORD HOUSING ASSOCIATION LTD#135,15/03/2021,"6,503.40",6541-Residential,THIRD PARTY PAYMENTS,PRIVATE CONTRACTOR,REVENUE
Walsall Council,http://opendatacommunities.org/id/metropolitan-district-council/walsall,WC124-205,31.03.2021,ADULT SOCIAL CARE,ACCORD HOUSING ASSOCIATION LTD#135,15/03/2021,"5,807.56",6541-Residential,THIRD PARTY PAYMENTS,PRIVATE CONTRACTOR,REVENUE
Walsall Council,http://opendatacommunities.org/id/metropolitan-district-council/walsall,WC124-206,31.03.2021,ADULT SOCIAL CARE,ACCORD HOUSING ASSOCIATION LTD#135,19/03/2021,"1,896.60",6550-Professional Services-Priv Contractor & Other Agencies,THIRD PARTY PAYMENTS,PRIVATE CONTRACTOR,REVENUE
Walsall Council,http://opendatacommunities.org/id/metropolitan-district-council/walsall,WC124-207,31.03.2021,ADULT SOCIAL CARE,ACCORD HOUSING ASSOCIATION LTD#135,19/03/2021,"2,370.75",6550-Professional Services-Priv Contractor & Other Agencies,THIRD PARTY PAYMENTS,PRIVATE CONTRACTOR,REVENUE
Walsall Council,http://opendatacommunities.org/id/metropolitan-district-council/walsall,WC124-208,31.03.2021,CHILDRENS,ACCORD HOUSING ASSOCIATION LTD#135,19/03/2021,396.59,6314-Rents,PREMISES,RENTS,REVENUE
Walsall Council,http://opendatacommunities.org/id/metropolitan-district-council/walsall,WC124-209,31.03.2021,CHILDRENS,ACCORD HOUSING ASSOCIATION LTD#135,19/03/2021,343.32,6314-Rents,PREMISES,RENTS,REVENUE
Walsall Council,http://opendatacommunities.org/id/metropolitan-district-council/walsall,WC124-210,31.03.2021,CHILDRENS,ACCORD HOUSING ASSOCIATION LTD#135,16/03/2021,343.32,6314-Rents,PREMISES,RENTS,REVENUE
Walsall Council,http://opendatacommunities.org/id/metropolitan-district-council/walsall,WC124-211,31.03.2021,CHILDRENS,ACCORD HOUSING ASSOCIATION LTD#135,19/03/2021,540.76,6314-Rents,PREMISES,RENTS,REVENUE
Walsall Council,http://opendatacommunities.org/id/metropolitan-district-council/walsall,WC124-212,31.03.2021,CHILDRENS,ACCORD HOUSING ASSOCIATION LTD#135,19/03/2021,447.13,6314-Rents,PREMISES,RENTS,REVENUE
Walsall Council,http://opendatacommunities.org/id/metropolitan-district-council/walsall,WC124-213,31.03.2021,CHILDRENS,ACCORD HOUSING ASSOCIATION LTD#135,16/03/2021,447.13,6314-Rents,PREMISES,RENTS,REVENUE
Walsall Council,http://opendatacommunities.org/id/metropolitan-district-council/walsall,WC124-214,31.03.2021,CHILDRENS,ACCORD HOUSING ASSOCIATION LTD#135,19/03/2021,413.20,6314-Rents,PREMISES,RENTS,REVENUE
Walsall Council,http://opendatacommunities.org/id/metropolitan-district-council/walsall,WC124-215,31.03.2021,CHILDRENS,ACCORD HOUSING ASSOCIATION LTD#135,16/03/2021,413.20,6314-Rents,PREMISES,RENTS,REVENUE
Walsall Council,http://opendatacommunities.org/id/metropolitan-district-council/walsall,WC124-216,31.03.2021,ADULT SOCIAL CARE,ACCORD HOUSING ASSOCIATION LTD#135,23/03/2021,"1,488.00",6550-Professional Services-Priv Contractor & Other Agencies,THIRD PARTY PAYMENTS,PRIVATE CONTRACTOR,REVENUE
Walsall Council,http://opendatacommunities.org/id/metropolitan-district-council/walsall,WC124-217,31.03.2021,ADULT SOCIAL CARE,ACCORD HOUSING ASSOCIATION LTD#135,23/03/2021,"7,921.31",6550-Professional Services-Priv Contractor & Other Agencies,THIRD PARTY PAYMENTS,PRIVATE CONTRACTOR,REVENUE
Walsall Council,http://opendatacommunities.org/id/metropolitan-district-council/walsall,WC124-218,31.03.2021,ADULT SOCIAL CARE,ACCORD HOUSING ASSOCIATION LTD#135,23/03/2021,"2,635.19",6550-Professional Services-Priv Contractor & Other Agencies,THIRD PARTY PAYMENTS,PRIVATE CONTRACTOR,REVENUE
Walsall Council,http://opendatacommunities.org/id/metropolitan-district-council/walsall,WC124-219,31.03.2021,ADULT SOCIAL CARE,ACCORD HOUSING ASSOCIATION LTD#135,23/03/2021,"4,740.00",6550-Professional Services-Priv Contractor & Other Agencies,THIRD PARTY PAYMENTS,PRIVATE CONTRACTOR,REVENUE
Walsall Council,http://opendatacommunities.org/id/metropolitan-district-council/walsall,WC124-220,31.03.2021,ADULT SOCIAL CARE,ACCORD HOUSING ASSOCIATION LTD#135,23/03/2021,"6,003.48",6550-Professional Services-Priv Contractor & Other Agencies,THIRD PARTY PAYMENTS,PRIVATE CONTRACTOR,REVENUE
Walsall Council,http://opendatacommunities.org/id/metropolitan-district-council/walsall,WC124-221,31.03.2021,ADULT SOCIAL CARE,ACCORD HOUSING ASSOCIATION LTD#135,10/03/2021,390.72,6541-Domiciliary Care,THIRD PARTY PAYMENTS,PRIVATE CONTRACTOR,REVENUE
Walsall Council,http://opendatacommunities.org/id/metropolitan-district-council/walsall,WC124-222,31.03.2021,ADULT SOCIAL CARE,ACCORD HOUSING ASSOCIATION LTD#135,30/03/2021,"1,672.09",6541-Domiciliary Care,THIRD PARTY PAYMENTS,PRIVATE CONTRACTOR,REVENUE
Walsall Council,http://opendatacommunities.org/id/metropolitan-district-council/walsall,WC124-223,31.03.2021,ADULT SOCIAL CARE,ACCORD HOUSING ASSOCIATION LTD#135,10/03/2021,431.76,6541-Domiciliary Care,THIRD PARTY PAYMENTS,PRIVATE CONTRACTOR,REVENUE
Walsall Council,http://opendatacommunities.org/id/metropolitan-district-council/walsall,WC124-224,31.03.2021,ADULT SOCIAL CARE,ACCORD HOUSING ASSOCIATION LTD#135,10/03/2021,709.32,6541-Domiciliary Care,THIRD PARTY PAYMENTS,PRIVATE CONTRACTOR,REVENUE
Walsall Council,http://opendatacommunities.org/id/metropolitan-district-council/walsall,WC124-225,31.03.2021,ADULT SOCIAL CARE,ACCORD HOUSING ASSOCIATION LTD#135,30/03/2021,"1,028.14",6541-Domiciliary Care,THIRD PARTY PAYMENTS,PRIVATE CONTRACTOR,REVENUE
Walsall Council,http://opendatacommunities.org/id/metropolitan-district-council/walsall,WC124-226,31.03.2021,ADULT SOCIAL CARE,ACCORD HOUSING ASSOCIATION LTD#135,10/03/2021,310.98,6541-Domiciliary Care,THIRD PARTY PAYMENTS,PRIVATE CONTRACTOR,REVENUE
Walsall Council,http://opendatacommunities.org/id/metropolitan-district-council/walsall,WC124-227,31.03.2021,ADULT SOCIAL CARE,ACCORD HOUSING ASSOCIATION LTD#135,10/03/2021,909.92,6541-Domiciliary Care,THIRD PARTY PAYMENTS,PRIVATE CONTRACTOR,REVENUE
Walsall Council,http://opendatacommunities.org/id/metropolitan-district-council/walsall,WC124-228,31.03.2021,ADULT SOCIAL CARE,ACCORD HOUSING ASSOCIATION LTD#135,10/03/2021,488.36,6541-Domiciliary Care,THIRD PARTY PAYMENTS,PRIVATE CONTRACTOR,REVENUE
Walsall Council,http://opendatacommunities.org/id/metropolitan-district-council/walsall,WC124-229,31.03.2021,ADULT SOCIAL CARE,ACCORD HOUSING ASSOCIATION LTD#135,10/03/2021,945.76,6541-Domiciliary Care,THIRD PARTY PAYMENTS,PRIVATE CONTRACTOR,REVENUE
Walsall Council,http://opendatacommunities.org/id/metropolitan-district-council/walsall,WC124-230,31.03.2021,ADULT SOCIAL CARE,ACCORD HOUSING ASSOCIATION LTD#135,10/03/2021,"1,079.40",6541-Domiciliary Care,THIRD PARTY PAYMENTS,PRIVATE CONTRACTOR,REVENUE
Walsall Council,http://opendatacommunities.org/id/metropolitan-district-council/walsall,WC124-231,31.03.2021,ADULT SOCIAL CARE,ACCORD HOUSING ASSOCIATION LTD#135,10/03/2021,"1,987.91",6541-Domiciliary Care,THIRD PARTY PAYMENTS,PRIVATE CONTRACTOR,REVENUE
Walsall Council,http://opendatacommunities.org/id/metropolitan-district-council/walsall,WC124-232,31.03.2021,ADULT SOCIAL CARE,ACCORD HOUSING ASSOCIATION LTD#135,10/03/2021,"2,171.65",6541-Community Supported Living/Supported Accommodation,THIRD PARTY PAYMENTS,PRIVATE CONTRACTOR,REVENUE
Walsall Council,http://opendatacommunities.org/id/metropolitan-district-council/walsall,WC124-233,31.03.2021,ADULT SOCIAL CARE,ACCORD HOUSING ASSOCIATION LTD#135,10/03/2021,"1,465.04",6541-Domiciliary Care,THIRD PARTY PAYMENTS,PRIVATE CONTRACTOR,REVENUE
Walsall Council,http://opendatacommunities.org/id/metropolitan-district-council/walsall,WC124-234,31.03.2021,ADULT SOCIAL CARE,ACCORD HOUSING ASSOCIATION LTD#135,10/03/2021,359.80,6541-Domiciliary Care,THIRD PARTY PAYMENTS,PRIVATE CONTRACTOR,REVENUE
Walsall Council,http://opendatacommunities.org/id/metropolitan-district-council/walsall,WC124-235,31.03.2021,ADULT SOCIAL CARE,ACCORD HOUSING ASSOCIATION LTD#135,10/03/2021,992.16,6541-Domiciliary Care,THIRD PARTY PAYMENTS,PRIVATE CONTRACTOR,REVENUE
Walsall Council,http://opendatacommunities.org/id/metropolitan-district-council/walsall,WC124-236,31.03.2021,ADULT SOCIAL CARE,ACCORD HOUSING ASSOCIATION LTD#135,10/03/2021,819.95,6541-Domiciliary Care,THIRD PARTY PAYMENTS,PRIVATE CONTRACTOR,REVENUE
Walsall Council,http://opendatacommunities.org/id/metropolitan-district-council/walsall,WC124-237,31.03.2021,ADULT SOCIAL CARE,ACCORD HOUSING ASSOCIATION LTD#135,10/03/2021,"1,439.20",6541-Domiciliary Care,THIRD PARTY PAYMENTS,PRIVATE CONTRACTOR,REVENUE
Walsall Council,http://opendatacommunities.org/id/metropolitan-district-council/walsall,WC124-238,31.03.2021,CHILDRENS,ACCORD HOUSING ASSOCIATION LTD#135,12/03/2021,"9,590.00",6314-Professional Services-Priv Contractor & Other Agencies,THIRD PARTY PAYMENTS,PRIVATE CONTRACTOR,REVENUE
Walsall Council,http://opendatacommunities.org/id/metropolitan-district-council/walsall,WC124-239,31.03.2021,CHILDRENS,ACCORD HOUSING ASSOCIATION LTD#135,12/03/2021,"2,000.00",6314-Professional Services-Priv Contractor & Other Agencies,THIRD PARTY PAYMENTS,PRIVATE CONTRACTOR,REVENUE
Walsall Council,http://opendatacommunities.org/id/metropolitan-district-council/walsall,WC124-240,31.03.2021,ADULT SOCIAL CARE,ACCORD HOUSING ASSOCIATION LTD#135,30/03/2021,447.18,6541-Domiciliary Care,THIRD PARTY PAYMENTS,PRIVATE CONTRACTOR,REVENUE
Walsall Council,http://opendatacommunities.org/id/metropolitan-district-council/walsall,WC124-241,31.03.2021,ADULT SOCIAL CARE,ACCORD HOUSING ASSOCIATION LTD#135,30/03/2021,"1,115.52",6541-Domiciliary Care,THIRD PARTY PAYMENTS,PRIVATE CONTRACTOR,REVENUE
Walsall Council,http://opendatacommunities.org/id/metropolitan-district-council/walsall,WC124-242,31.03.2021,ADULT SOCIAL CARE,ACCORD HOUSING ASSOCIATION LTD#135,30/03/2021,"1,907.08",6541-Domiciliary Care,THIRD PARTY PAYMENTS,PRIVATE CONTRACTOR,REVENUE
Walsall Council,http://opendatacommunities.org/id/metropolitan-district-council/walsall,WC124-243,31.03.2021,ADULT SOCIAL CARE,ACCORD HOUSING ASSOCIATION LTD#135,30/03/2021,452.32,6541-Domiciliary Care,THIRD PARTY PAYMENTS,PRIVATE CONTRACTOR,REVENUE
Walsall Council,http://opendatacommunities.org/id/metropolitan-district-council/walsall,WC124-244,31.03.2021,ADULT SOCIAL CARE,ACCORD HOUSING ASSOCIATION LTD#135,30/03/2021,503.72,6541-Domiciliary Care,THIRD PARTY PAYMENTS,PRIVATE CONTRACTOR,REVENUE
Walsall Council,http://opendatacommunities.org/id/metropolitan-district-council/walsall,WC124-245,31.03.2021,ADULT SOCIAL CARE,ACCORD HOUSING ASSOCIATION LTD#135,30/03/2021,"1,439.20",6541-Domiciliary Care,THIRD PARTY PAYMENTS,PRIVATE CONTRACTOR,REVENUE
Walsall Council,http://opendatacommunities.org/id/metropolitan-district-council/walsall,WC124-246,31.03.2021,ADULT SOCIAL CARE,ACCORD HOUSING ASSOCIATION LTD#135,30/03/2021,493.44,6541-Domiciliary Care,THIRD PARTY PAYMENTS,PRIVATE CONTRACTOR,REVENUE
Walsall Council,http://opendatacommunities.org/id/metropolitan-district-council/walsall,WC124-247,31.03.2021,ADULT SOCIAL CARE,ACCORD HOUSING ASSOCIATION LTD#135,30/03/2021,"1,048.56",6541-Community Supported Living/Supported Accommodation,THIRD PARTY PAYMENTS,PRIVATE CONTRACTOR,REVENUE
Walsall Council,http://opendatacommunities.org/id/metropolitan-district-council/walsall,WC124-248,31.03.2021,ADULT SOCIAL CARE,ACCORD HOUSING ASSOCIATION LTD#135,30/03/2021,719.60,6541-Domiciliary Care,THIRD PARTY PAYMENTS,PRIVATE CONTRACTOR,REVENUE
Walsall Council,http://opendatacommunities.org/id/metropolitan-district-council/walsall,WC124-249,31.03.2021,ADULT SOCIAL CARE,ACCORD HOUSING ASSOCIATION LTD#135,30/03/2021,575.68,6541-Domiciliary Care,THIRD PARTY PAYMENTS,PRIVATE CONTRACTOR,REVENUE
Walsall Council,http://opendatacommunities.org/id/metropolitan-district-council/walsall,WC124-250,31.03.2021,ADULT SOCIAL CARE,ACCORD HOUSING ASSOCIATION LTD#135,30/03/2021,421.48,6541-Domiciliary Care,THIRD PARTY PAYMENTS,PRIVATE CONTRACTOR,REVENUE
Walsall Council,http://opendatacommunities.org/id/metropolitan-district-council/walsall,WC124-251,31.03.2021,ADULT SOCIAL CARE,ACCORD HOUSING ASSOCIATION LTD#135,30/03/2021,368.84,6541-Domiciliary Care,THIRD PARTY PAYMENTS,PRIVATE CONTRACTOR,REVENUE
Walsall Council,http://opendatacommunities.org/id/metropolitan-district-council/walsall,WC124-252,31.03.2021,ADULT SOCIAL CARE,ACCORD HOUSING ASSOCIATION LTD#135,30/03/2021,447.18,6541-Domiciliary Care,THIRD PARTY PAYMENTS,PRIVATE CONTRACTOR,REVENUE
Walsall Council,http://opendatacommunities.org/id/metropolitan-district-council/walsall,WC124-253,31.03.2021,ADULT SOCIAL CARE,ACCORD HOUSING ASSOCIATION LTD#135,30/03/2021,"2,447.20",6541-Domiciliary Care,THIRD PARTY PAYMENTS,PRIVATE CONTRACTOR,REVENUE
Walsall Council,http://opendatacommunities.org/id/metropolitan-district-council/walsall,WC124-254,31.03.2021,ADULT SOCIAL CARE,ACCORD HOUSING ASSOCIATION LTD#135,30/03/2021,"1,696.48",6541-Domiciliary Care,THIRD PARTY PAYMENTS,PRIVATE CONTRACTOR,REVENUE
Walsall Council,http://opendatacommunities.org/id/metropolitan-district-council/walsall,WC124-255,31.03.2021,ADULT SOCIAL CARE,ACCORD HOUSING ASSOCIATION LTD#135,30/03/2021,925.20,6541-Domiciliary Care,THIRD PARTY PAYMENTS,PRIVATE CONTRACTOR,REVENUE
Walsall Council,http://opendatacommunities.org/id/metropolitan-district-council/walsall,WC124-256,31.03.2021,ADULT SOCIAL CARE,ACCORD HOUSING ASSOCIATION LTD#135,30/03/2021,771.00,6541-Domiciliary Care,THIRD PARTY PAYMENTS,PRIVATE CONTRACTOR,REVENUE
Walsall Council,http://opendatacommunities.org/id/metropolitan-district-council/walsall,WC124-257,31.03.2021,ADULT SOCIAL CARE,ACCORD HOUSING ASSOCIATION LTD#135,30/03/2021,"2,285.92",6541-Domiciliary Care,THIRD PARTY PAYMENTS,PRIVATE CONTRACTOR,REVENUE
Walsall Council,http://opendatacommunities.org/id/metropolitan-district-council/walsall,WC124-258,31.03.2021,ADULT SOCIAL CARE,ACCORD HOUSING ASSOCIATION LTD#135,30/03/2021,431.76,6541-Domiciliary Care,THIRD PARTY PAYMENTS,PRIVATE CONTRACTOR,REVENUE
Walsall Council,http://opendatacommunities.org/id/metropolitan-district-council/walsall,WC124-259,31.03.2021,ADULT SOCIAL CARE,ACCORD HOUSING ASSOCIATION LTD#135,30/03/2021,"1,187.48",6541-Domiciliary Care,THIRD PARTY PAYMENTS,PRIVATE CONTRACTOR,REVENUE
Walsall Council,http://opendatacommunities.org/id/metropolitan-district-council/walsall,WC124-260,31.03.2021,ADULT SOCIAL CARE,ACCORD HOUSING ASSOCIATION LTD#135,30/03/2021,462.68,6541-Domiciliary Care,THIRD PARTY PAYMENTS,PRIVATE CONTRACTOR,REVENUE
Walsall Council,http://opendatacommunities.org/id/metropolitan-district-council/walsall,WC124-261,31.03.2021,ADULT SOCIAL CARE,ACCORD HOUSING ASSOCIATION LTD#135,30/03/2021,992.16,6541-Domiciliary Care,THIRD PARTY PAYMENTS,PRIVATE CONTRACTOR,REVENUE
Walsall Council,http://opendatacommunities.org/id/metropolitan-district-council/walsall,WC124-262,31.03.2021,ADULT SOCIAL CARE,ACCORD HOUSING ASSOCIATION LTD#135,30/03/2021,452.32,6541-Domiciliary Care,THIRD PARTY PAYMENTS,PRIVATE CONTRACTOR,REVENUE
Walsall Council,http://opendatacommunities.org/id/metropolitan-district-council/walsall,WC124-263,31.03.2021,ADULT SOCIAL CARE,ACCORD HOUSING ASSOCIATION LTD#135,30/03/2021,287.84,6541-Domiciliary Care,THIRD PARTY PAYMENTS,PRIVATE CONTRACTOR,REVENUE
Walsall Council,http://opendatacommunities.org/id/metropolitan-district-council/walsall,WC124-264,31.03.2021,ADULT SOCIAL CARE,ACCORD HOUSING ASSOCIATION LTD#135,30/03/2021,493.44,6541-Domiciliary Care,THIRD PARTY PAYMENTS,PRIVATE CONTRACTOR,REVENUE
Walsall Council,http://opendatacommunities.org/id/metropolitan-district-council/walsall,WC124-265,31.03.2021,ADULT SOCIAL CARE,ACCORD HOUSING ASSOCIATION LTD#135,30/03/2021,894.40,6541-Domiciliary Care,THIRD PARTY PAYMENTS,PRIVATE CONTRACTOR,REVENUE
Walsall Council,http://opendatacommunities.org/id/metropolitan-district-council/walsall,WC124-266,31.03.2021,ADULT SOCIAL CARE,ACCORD HOUSING ASSOCIATION LTD#135,30/03/2021,269.85,6541-Domiciliary Care,THIRD PARTY PAYMENTS,PRIVATE CONTRACTOR,REVENUE
Walsall Council,http://opendatacommunities.org/id/metropolitan-district-council/walsall,WC124-267,31.03.2021,ADULT SOCIAL CARE,ACCORD HOUSING ASSOCIATION LTD#135,30/03/2021,"3,310.72",6541-Domiciliary Care,THIRD PARTY PAYMENTS,PRIVATE CONTRACTOR,REVENUE
Walsall Council,http://opendatacommunities.org/id/metropolitan-district-council/walsall,WC124-268,31.03.2021,ADULT SOCIAL CARE,ACCORD HOUSING ASSOCIATION LTD#135,30/03/2021,621.94,6541-Domiciliary Care,THIRD PARTY PAYMENTS,PRIVATE CONTRACTOR,REVENUE
Walsall Council,http://opendatacommunities.org/id/metropolitan-district-council/walsall,WC124-269,31.03.2021,ADULT SOCIAL CARE,ACCORD HOUSING ASSOCIATION LTD#135,30/03/2021,524.28,6541-Domiciliary Care,THIRD PARTY PAYMENTS,PRIVATE CONTRACTOR,REVENUE
Walsall Council,http://opendatacommunities.org/id/metropolitan-district-council/walsall,WC124-270,31.03.2021,ADULT SOCIAL CARE,ACCORD HOUSING ASSOCIATION LTD#135,30/03/2021,719.60,6541-Domiciliary Care,THIRD PARTY PAYMENTS,PRIVATE CONTRACTOR,REVENUE
Walsall Council,http://opendatacommunities.org/id/metropolitan-district-council/walsall,WC124-271,31.03.2021,ADULT SOCIAL CARE,ACCORD HOUSING ASSOCIATION LTD#135,30/03/2021,390.72,6541-Domiciliary Care,THIRD PARTY PAYMENTS,PRIVATE CONTRACTOR,REVENUE
Walsall Council,http://opendatacommunities.org/id/metropolitan-district-council/walsall,WC124-272,31.03.2021,ADULT SOCIAL CARE,ACCORD HOUSING ASSOCIATION LTD#135,30/03/2021,"2,179.92",6541-Domiciliary Care,THIRD PARTY PAYMENTS,PRIVATE CONTRACTOR,REVENUE
Walsall Council,http://opendatacommunities.org/id/metropolitan-district-council/walsall,WC124-273,31.03.2021,ADULT SOCIAL CARE,ACCORD HOUSING ASSOCIATION LTD#135,30/03/2021,"2,050.88",6541-Domiciliary Care,THIRD PARTY PAYMENTS,PRIVATE CONTRACTOR,REVENUE
Walsall Council,http://opendatacommunities.org/id/metropolitan-district-council/walsall,WC124-274,31.03.2021,ADULT SOCIAL CARE,ACCORD HOUSING ASSOCIATION LTD#135,30/03/2021,431.76,6541-Domiciliary Care,THIRD PARTY PAYMENTS,PRIVATE CONTRACTOR,REVENUE
Walsall Council,http://opendatacommunities.org/id/metropolitan-district-council/walsall,WC124-275,31.03.2021,ADULT SOCIAL CARE,ACCORD HOUSING ASSOCIATION LTD#135,30/03/2021,709.32,6541-Domiciliary Care,THIRD PARTY PAYMENTS,PRIVATE CONTRACTOR,REVENUE
Walsall Council,http://opendatacommunities.org/id/metropolitan-district-council/walsall,WC124-276,31.03.2021,ADULT SOCIAL CARE,ACCORD HOUSING ASSOCIATION LTD#135,30/03/2021,"1,043.56",6541-Domiciliary Care,THIRD PARTY PAYMENTS,PRIVATE CONTRACTOR,REVENUE
Walsall Council,http://opendatacommunities.org/id/metropolitan-district-council/walsall,WC124-277,31.03.2021,ADULT SOCIAL CARE,ACCORD HOUSING ASSOCIATION LTD#135,30/03/2021,334.12,6541-Domiciliary Care,THIRD PARTY PAYMENTS,PRIVATE CONTRACTOR,REVENUE
Walsall Council,http://opendatacommunities.org/id/metropolitan-district-council/walsall,WC124-278,31.03.2021,ADULT SOCIAL CARE,ACCORD HOUSING ASSOCIATION LTD#135,30/03/2021,909.92,6541-Domiciliary Care,THIRD PARTY PAYMENTS,PRIVATE CONTRACTOR,REVENUE
Walsall Council,http://opendatacommunities.org/id/metropolitan-district-council/walsall,WC124-279,31.03.2021,ADULT SOCIAL CARE,ACCORD HOUSING ASSOCIATION LTD#135,30/03/2021,637.40,6541-Domiciliary Care,THIRD PARTY PAYMENTS,PRIVATE CONTRACTOR,REVENUE
Walsall Council,http://opendatacommunities.org/id/metropolitan-district-council/walsall,WC124-280,31.03.2021,ADULT SOCIAL CARE,ACCORD HOUSING ASSOCIATION LTD#135,30/03/2021,945.76,6541-Domiciliary Care,THIRD PARTY PAYMENTS,PRIVATE CONTRACTOR,REVENUE
Walsall Council,http://opendatacommunities.org/id/metropolitan-district-council/walsall,WC124-281,31.03.2021,ADULT SOCIAL CARE,ACCORD HOUSING ASSOCIATION LTD#135,30/03/2021,"1,079.40",6541-Domiciliary Care,THIRD PARTY PAYMENTS,PRIVATE CONTRACTOR,REVENUE
Walsall Council,http://opendatacommunities.org/id/metropolitan-district-council/walsall,WC124-282,31.03.2021,ADULT SOCIAL CARE,ACCORD HOUSING ASSOCIATION LTD#135,30/03/2021,349.52,6541-Domiciliary Care,THIRD PARTY PAYMENTS,PRIVATE CONTRACTOR,REVENUE
Walsall Council,http://opendatacommunities.org/id/metropolitan-district-council/walsall,WC124-283,31.03.2021,ADULT SOCIAL CARE,ACCORD HOUSING ASSOCIATION LTD#135,30/03/2021,"1,465.04",6541-Domiciliary Care,THIRD PARTY PAYMENTS,PRIVATE CONTRACTOR,REVENUE
Walsall Council,http://opendatacommunities.org/id/metropolitan-district-council/walsall,WC124-284,31.03.2021,ADULT SOCIAL CARE,ACCORD HOUSING ASSOCIATION LTD#135,30/03/2021,359.80,6541-Domiciliary Care,THIRD PARTY PAYMENTS,PRIVATE CONTRACTOR,REVENUE
Walsall Council,http://opendatacommunities.org/id/metropolitan-district-council/walsall,WC124-285,31.03.2021,ADULT SOCIAL CARE,ACCORD HOUSING ASSOCIATION LTD#135,30/03/2021,992.16,6541-Domiciliary Care,THIRD PARTY PAYMENTS,PRIVATE CONTRACTOR,REVENUE
Walsall Council,http://opendatacommunities.org/id/metropolitan-district-council/walsall,WC124-286,31.03.2021,ADULT SOCIAL CARE,ACCORD HOUSING ASSOCIATION LTD#135,30/03/2021,832.80,6541-Domiciliary Care,THIRD PARTY PAYMENTS,PRIVATE CONTRACTOR,REVENUE
Walsall Council,http://opendatacommunities.org/id/metropolitan-district-council/walsall,WC124-287,31.03.2021,ADULT SOCIAL CARE,ACCORD HOUSING ASSOCIATION LTD#135,30/03/2021,"1,439.20",6541-Domiciliary Care,THIRD PARTY PAYMENTS,PRIVATE CONTRACTOR,REVENUE
Walsall Council,http://opendatacommunities.org/id/metropolitan-district-council/walsall,WC124-288,31.03.2021,ADULT SOCIAL CARE,ACE CARE AGENCY,12/03/2021,"5,100.00",6550-Professional Fees & Services,SUPPLIES & SERVICES,SERVICES,REVENUE
Walsall Council,http://opendatacommunities.org/id/metropolitan-district-council/walsall,WC124-289,31.03.2021,ADULT SOCIAL CARE,ACE CARE AGENCY,23/03/2021,"2,001.16",6550-Professional Services-Priv Contractor & Other Agencies,THIRD PARTY PAYMENTS,PRIVATE CONTRACTOR,REVENUE
Walsall Council,http://opendatacommunities.org/id/metropolitan-district-council/walsall,WC124-290,31.03.2021,CHILDRENS,ACE CARS & MINIBUSES LTD,24/03/2021,"1,345.50",6241-Hire of Vehicle with Driver,TRANSPORT,DIRECT TRANSPORT COSTS,REVENUE
Walsall Council,http://opendatacommunities.org/id/metropolitan-district-council/walsall,WC124-291,31.03.2021,CHILDRENS,ACE CARS & MINIBUSES LTD,24/03/2021,"2,007.20",6241-Hire of Vehicle with Driver,TRANSPORT,DIRECT TRANSPORT COSTS,REVENUE
Walsall Council,http://opendatacommunities.org/id/metropolitan-district-council/walsall,WC124-292,31.03.2021,CHILDRENS,ACE CARS & MINIBUSES LTD,24/03/2021,845.00,6241-Hire of Vehicle with Driver,TRANSPORT,DIRECT TRANSPORT COSTS,REVENUE
Walsall Council,http://opendatacommunities.org/id/metropolitan-district-council/walsall,WC124-293,31.03.2021,CHILDRENS,ACE CARS & MINIBUSES LTD,24/03/2021,"1,020.50",6241-Hire of Vehicle with Driver,TRANSPORT,DIRECT TRANSPORT COSTS,REVENUE
Walsall Council,http://opendatacommunities.org/id/metropolitan-district-council/walsall,WC124-294,31.03.2021,CHILDRENS,ACE CARS & MINIBUSES LTD,24/03/2021,"1,014.00",6241-Hire of Vehicle with Driver,TRANSPORT,DIRECT TRANSPORT COSTS,REVENUE
Walsall Council,http://opendatacommunities.org/id/metropolitan-district-council/walsall,WC124-295,31.03.2021,CHILDRENS,ACE CARS & MINIBUSES LTD,24/03/2021,"1,638.75",6241-Hire of Vehicle with Driver,TRANSPORT,DIRECT TRANSPORT COSTS,REVENUE
Walsall Council,http://opendatacommunities.org/id/metropolitan-district-council/walsall,WC124-296,31.03.2021,CHILDRENS,ACE CARS & MINIBUSES LTD,24/03/2021,"1,638.75",6241-Hire of Vehicle with Driver,TRANSPORT,DIRECT TRANSPORT COSTS,REVENUE
Walsall Council,http://opendatacommunities.org/id/metropolitan-district-council/walsall,WC124-297,31.03.2021,CHILDRENS,ACE CARS & MINIBUSES LTD,24/03/2021,"1,430.00",6241-Hire of Vehicle with Driver,TRANSPORT,DIRECT TRANSPORT COSTS,REVENUE
Walsall Council,http://opendatacommunities.org/id/metropolitan-district-council/walsall,WC124-298,31.03.2021,CHILDRENS,ACE CARS & MINIBUSES LTD,24/03/2021,"1,725.00",6241-Hire of Vehicle with Driver,TRANSPORT,DIRECT TRANSPORT COSTS,REVENUE
Walsall Council,http://opendatacommunities.org/id/metropolitan-district-council/walsall,WC124-299,31.03.2021,CHILDRENS,ACE CARS & MINIBUSES LTD,24/03/2021,"1,644.50",6241-Hire of Vehicle with Driver,TRANSPORT,DIRECT TRANSPORT COSTS,REVENUE
Walsall Council,http://opendatacommunities.org/id/metropolitan-district-council/walsall,WC124-300,31.03.2021,CHILDRENS,ACE CARS & MINIBUSES LTD,24/03/2021,"1,320.00",6241-Hire of Vehicle with Driver,TRANSPORT,DIRECT TRANSPORT COSTS,REVENUE
Walsall Council,http://opendatacommunities.org/id/metropolitan-district-council/walsall,WC124-301,31.03.2021,CHILDRENS,ACE CARS & MINIBUSES LTD,24/03/2021,"2,070.00",6241-Hire of Vehicle with Driver,TRANSPORT,DIRECT TRANSPORT COSTS,REVENUE
Walsall Council,http://opendatacommunities.org/id/metropolitan-district-council/walsall,WC124-302,31.03.2021,CHILDRENS,ACE CARS & MINIBUSES LTD,24/03/2021,"1,552.50",6241-Hire of Vehicle with Driver,TRANSPORT,DIRECT TRANSPORT COSTS,REVENUE
Walsall Council,http://opendatacommunities.org/id/metropolitan-district-council/walsall,WC124-303,31.03.2021,CHILDRENS,ACE CARS & MINIBUSES LTD,24/03/2021,"1,897.50",6241-Hire of Vehicle with Driver,TRANSPORT,DIRECT TRANSPORT COSTS,REVENUE
Walsall Council,http://opendatacommunities.org/id/metropolitan-district-council/walsall,WC124-304,31.03.2021,CHILDRENS,ACE CARS & MINIBUSES LTD,24/03/2021,"2,062.50",6241-Hire of Vehicle with Driver,TRANSPORT,DIRECT TRANSPORT COSTS,REVENUE
Walsall Council,http://opendatacommunities.org/id/metropolitan-district-council/walsall,WC124-305,31.03.2021,CHILDRENS,ACE CARS & MINIBUSES LTD,24/03/2021,"2,812.50",6241-Hire of Vehicle with Driver,TRANSPORT,DIRECT TRANSPORT COSTS,REVENUE
Walsall Council,http://opendatacommunities.org/id/metropolitan-district-council/walsall,WC124-306,31.03.2021,CHILDRENS,ACE CARS & MINIBUSES LTD,24/03/2021,"1,923.75",6241-Hire of Vehicle with Driver,TRANSPORT,DIRECT TRANSPORT COSTS,REVENUE
Walsall Council,http://opendatacommunities.org/id/metropolitan-district-council/walsall,WC124-307,31.03.2021,CHILDRENS,ACE CARS & MINIBUSES LTD,24/03/2021,"2,008.50",6241-Hire of Vehicle with Driver,TRANSPORT,DIRECT TRANSPORT COSTS,REVENUE
Walsall Council,http://opendatacommunities.org/id/metropolitan-district-council/walsall,WC124-308,31.03.2021,CHILDRENS,ACE CARS & MINIBUSES LTD,24/03/2021,982.50,6241-Hire of Vehicle with Driver,TRANSPORT,DIRECT TRANSPORT COSTS,REVENUE
Walsall Council,http://opendatacommunities.org/id/metropolitan-district-council/walsall,WC124-309,31.03.2021,CHILDRENS,ACE CARS & MINIBUSES LTD,24/03/2021,"1,650.00",6241-Hire of Vehicle with Driver,TRANSPORT,DIRECT TRANSPORT COSTS,REVENUE
Walsall Council,http://opendatacommunities.org/id/metropolitan-district-council/walsall,WC124-310,31.03.2021,CHILDRENS,ACE CARS & MINIBUSES LTD,24/03/2021,"2,917.50",6241-Hire of Vehicle with Driver,TRANSPORT,DIRECT TRANSPORT COSTS,REVENUE
Walsall Council,http://opendatacommunities.org/id/metropolitan-district-council/walsall,WC124-311,31.03.2021,CHILDRENS,ACE CARS & MINIBUSES LTD,24/03/2021,650.00,6241-Hire of Vehicle with Driver,TRANSPORT,DIRECT TRANSPORT COSTS,REVENUE
Walsall Council,http://opendatacommunities.org/id/metropolitan-district-council/walsall,WC124-312,31.03.2021,CHILDRENS,ACE CARS & MINIBUSES LTD,24/03/2021,"2,482.50",6241-Hire of Vehicle with Driver,TRANSPORT,DIRECT TRANSPORT COSTS,REVENUE
Walsall Council,http://opendatacommunities.org/id/metropolitan-district-council/walsall,WC124-313,31.03.2021,CHILDRENS,ACE CARS & MINIBUSES LTD,24/03/2021,960.00,6241-Hire of Vehicle with Driver,TRANSPORT,DIRECT TRANSPORT COSTS,REVENUE
Walsall Council,http://opendatacommunities.org/id/metropolitan-district-council/walsall,WC124-314,31.03.2021,CHILDRENS,ACE CARS & MINIBUSES LTD,24/03/2021,"1,932.00",6241-Hire of Vehicle with Driver,TRANSPORT,DIRECT TRANSPORT COSTS,REVENUE
Walsall Council,http://opendatacommunities.org/id/metropolitan-district-council/walsall,WC124-315,31.03.2021,CHILDRENS,ACE CARS & MINIBUSES LTD,24/03/2021,"2,317.50",6241-Hire of Vehicle with Driver,TRANSPORT,DIRECT TRANSPORT COSTS,REVENUE
Walsall Council,http://opendatacommunities.org/id/metropolitan-district-council/walsall,WC124-316,31.03.2021,CHILDRENS,ACE CARS & MINIBUSES LTD,24/03/2021,"1,943.50",6241-Hire of Vehicle with Driver,TRANSPORT,DIRECT TRANSPORT COSTS,REVENUE
Walsall Council,http://opendatacommunities.org/id/metropolitan-district-council/walsall,WC124-317,31.03.2021,CHILDRENS,ACE CARS & MINIBUSES LTD,24/03/2021,360.00,6241-Hire of Vehicle with Driver,TRANSPORT,DIRECT TRANSPORT COSTS,REVENUE
Walsall Council,http://opendatacommunities.org/id/metropolitan-district-council/walsall,WC124-318,31.03.2021,CHILDRENS,ACE CARS & MINIBUSES LTD,24/03/2021,660.00,6241-Hire of Vehicle with Driver,TRANSPORT,DIRECT TRANSPORT COSTS,REVENUE
Walsall Council,http://opendatacommunities.org/id/metropolitan-district-council/walsall,WC124-319,31.03.2021,CHILDRENS,ACE COACHING LIMITED,19/03/2021,"1,236.00",6213-Professional Fees & Services,SUPPLIES & SERVICES,SERVICES,REVENUE
Walsall Council,http://opendatacommunities.org/id/metropolitan-district-council/walsall,WC124-320,31.03.2021,ADULT SOCIAL CARE,ACEPAY LTD (COTTAGE NUR HOME),15/03/2021,"2,396.00",6541-Nursing,THIRD PARTY PAYMENTS,PRIVATE CONTRACTOR,REVENUE
Walsall Council,http://opendatacommunities.org/id/metropolitan-district-council/walsall,WC124-321,31.03.2021,ADULT SOCIAL CARE,ACEPAY LTD (COTTAGE NUR HOME),15/03/2021,"2,396.00",6541-Nursing,THIRD PARTY PAYMENTS,PRIVATE CONTRACTOR,REVENUE
Walsall Council,http://opendatacommunities.org/id/metropolitan-district-council/walsall,WC124-322,31.03.2021,ADULT SOCIAL CARE,ACEPAY LTD (COTTAGE NUR HOME),15/03/2021,"2,396.00",6541-Nursing,THIRD PARTY PAYMENTS,PRIVATE CONTRACTOR,REVENUE
Walsall Council,http://opendatacommunities.org/id/metropolitan-district-council/walsall,WC124-323,31.03.2021,ADULT SOCIAL CARE,ACEPAY LTD (COTTAGE NUR HOME),15/03/2021,"2,396.00",6541-Nursing,THIRD PARTY PAYMENTS,PRIVATE CONTRACTOR,REVENUE
Walsall Council,http://opendatacommunities.org/id/metropolitan-district-council/walsall,WC124-324,31.03.2021,ADULT SOCIAL CARE,ACEPAY LTD (COTTAGE NUR HOME),15/03/2021,256.71,6541-Nursing,THIRD PARTY PAYMENTS,PRIVATE CONTRACTOR,REVENUE
Walsall Council,http://opendatacommunities.org/id/metropolitan-district-council/walsall,WC124-325,31.03.2021,ADULT SOCIAL CARE,ACEPAY LTD (COTTAGE NUR HOME),15/03/2021,"2,396.00",6541-Nursing,THIRD PARTY PAYMENTS,PRIVATE CONTRACTOR,REVENUE
Walsall Council,http://opendatacommunities.org/id/metropolitan-district-council/walsall,WC124-326,31.03.2021,ADULT SOCIAL CARE,ACEPAY LTD (COTTAGE NUR HOME),15/03/2021,"2,396.00",6541-Nursing,THIRD PARTY PAYMENTS,PRIVATE CONTRACTOR,REVENUE
Walsall Council,http://opendatacommunities.org/id/metropolitan-district-council/walsall,WC124-327,31.03.2021,ADULT SOCIAL CARE,ACEPAY LTD (COTTAGE NUR HOME),15/03/2021,"2,308.00",6541-Residential EMI,THIRD PARTY PAYMENTS,PRIVATE CONTRACTOR,REVENUE
Walsall Council,http://opendatacommunities.org/id/metropolitan-district-council/walsall,WC124-328,31.03.2021,ADULT SOCIAL CARE,ACEPAY LTD (COTTAGE NUR HOME),15/03/2021,"2,396.00",6541-Nursing,THIRD PARTY PAYMENTS,PRIVATE CONTRACTOR,REVENUE
Walsall Council,http://opendatacommunities.org/id/metropolitan-district-council/walsall,WC124-329,31.03.2021,ADULT SOCIAL CARE,ACEPAY LTD (COTTAGE NUR HOME),15/03/2021,"2,396.00",6541-Nursing,THIRD PARTY PAYMENTS,PRIVATE CONTRACTOR,REVENUE
Walsall Council,http://opendatacommunities.org/id/metropolitan-district-council/walsall,WC124-330,31.03.2021,ADULT SOCIAL CARE,ACEPAY LTD (COTTAGE NUR HOME),15/03/2021,"2,596.00",6541-Nursing,THIRD PARTY PAYMENTS,PRIVATE CONTRACTOR,REVENUE
Walsall Council,http://opendatacommunities.org/id/metropolitan-district-council/walsall,WC124-331,31.03.2021,ADULT SOCIAL CARE,ACEPAY LTD (COTTAGE NUR HOME),15/03/2021,"2,396.00",6541-Nursing,THIRD PARTY PAYMENTS,PRIVATE CONTRACTOR,REVENUE
Walsall Council,http://opendatacommunities.org/id/metropolitan-district-council/walsall,WC124-332,31.03.2021,ADULT SOCIAL CARE,ACEPAY LTD (COTTAGE NUR HOME),15/03/2021,"2,396.00",6541-Nursing,THIRD PARTY PAYMENTS,PRIVATE CONTRACTOR,REVENUE
Walsall Council,http://opendatacommunities.org/id/metropolitan-district-council/walsall,WC124-333,31.03.2021,ADULT SOCIAL CARE,ACEPAY LTD (COTTAGE NUR HOME),15/03/2021,599.00,6541-Nursing,THIRD PARTY PAYMENTS,PRIVATE CONTRACTOR,REVENUE
Walsall Council,http://opendatacommunities.org/id/metropolitan-district-council/walsall,WC124-334,31.03.2021,ADULT SOCIAL CARE,ACEPAY LTD (COTTAGE NUR HOME),15/03/2021,730.00,6541-Residential,THIRD PARTY PAYMENTS,PRIVATE CONTRACTOR,REVENUE
Walsall Council,http://opendatacommunities.org/id/metropolitan-district-council/walsall,WC124-335,31.03.2021,ADULT SOCIAL CARE,ACEPAY LTD (COTTAGE NUR HOME),15/03/2021,"2,396.00",6541-Nursing,THIRD PARTY PAYMENTS,PRIVATE CONTRACTOR,REVENUE
Walsall Council,http://opendatacommunities.org/id/metropolitan-district-council/walsall,WC124-336,31.03.2021,ADULT SOCIAL CARE,ACEPAY LTD (COTTAGE NUR HOME),15/03/2021,"2,396.00",6541-Nursing,THIRD PARTY PAYMENTS,PRIVATE CONTRACTOR,REVENUE
Walsall Council,http://opendatacommunities.org/id/metropolitan-district-council/walsall,WC124-337,31.03.2021,ADULT SOCIAL CARE,ACEPAY LTD (COTTAGE NUR HOME),19/03/2021,"3,129.39",6550-Professional Services-Priv Contractor & Other Agencies,THIRD PARTY PAYMENTS,PRIVATE CONTRACTOR,REVENUE
Walsall Council,http://opendatacommunities.org/id/metropolitan-district-council/walsall,WC124-338,31.03.2021,ADULT SOCIAL CARE,ACEPAY LTD (COTTAGE NUR HOME),02/03/2021,"2,053.71",6541-Nursing,THIRD PARTY PAYMENTS,PRIVATE CONTRACTOR,REVENUE
Walsall Council,http://opendatacommunities.org/id/metropolitan-district-council/walsall,WC124-339,31.03.2021,CHILDRENS,ACORN CARE & EDUCATION LTD (SALES),19/03/2021,"15,442.87",6223-External Residential Care-Oth Agency Provision,THIRD PARTY PAYMENTS,PRIVATE CONTRACTOR,REVENUE
Walsall Council,http://opendatacommunities.org/id/metropolitan-district-council/walsall,WC124-340,31.03.2021,CHILDRENS,ACORN FOSTERING SERVICES LTD,19/03/2021,"3,380.00",6223-Independent Foster Care-Oth Agency Provision,THIRD PARTY PAYMENTS,PRIVATE CONTRACTOR,REVENUE
Walsall Council,http://opendatacommunities.org/id/metropolitan-district-council/walsall,WC124-341,31.03.2021,CHILDRENS,ACORNS CHILDRENS HOSPICE TRUST,10/03/2021,"8,500.00",6220-Professional Fees & Services,SUPPLIES & SERVICES,SERVICES,REVENUE
Walsall Council,http://opendatacommunities.org/id/metropolitan-district-council/walsall,WC124-342,31.03.2021,CHILDRENS,ACTIVE CARE SOLUTIONS LTD,19/03/2021,"2,596.36",6223-Independent Foster Care-Oth Agency Provision,THIRD PARTY PAYMENTS,PRIVATE CONTRACTOR,REVENUE
Walsall Council,http://opendatacommunities.org/id/metropolitan-district-council/walsall,WC124-343,31.03.2021,CHILDRENS CAPITAL,ACTS GROUP LTD - CHIRMARN,30/03/2021,620.00,7150-Site Works Contractors,CAPITAL,"NEW CONSTRUCTION,CONVERSION & RENOVATION",REVENUE
Walsall Council,http://opendatacommunities.org/id/metropolitan-district-council/walsall,WC124-344,31.03.2021,ADULT SOCIAL CARE,REDACTED,10/03/2021,978.60,6541-Direct Payment,THIRD PARTY PAYMENTS,PRIVATE CONTRACTOR,REVENUE
Walsall Council,http://opendatacommunities.org/id/metropolitan-district-council/walsall,WC124-345,31.03.2021,CHILDRENS,ADCS (ASSOCIATION OF DIRECTORS OF CHILDRENS SERVICES),23/03/2021,"2,686.00",6213-Payment to Contractors,SUPPLIES & SERVICES,SERVICES,REVENUE
Walsall Council,http://opendatacommunities.org/id/metropolitan-district-council/walsall,WC124-346,31.03.2021,CHILDRENS,REDACTED,05/03/2021,361.12,6223-Residents Orders,TRANSFER PAYMENTS,CHILDREN SOCIAL SERVICES CLIENT,REVENUE
Walsall Council,http://opendatacommunities.org/id/metropolitan-district-council/walsall,WC124-347,31.03.2021,CHILDRENS,REDACTED,05/03/2021,333.12,6223-Residents Orders,TRANSFER PAYMENTS,CHILDREN SOCIAL SERVICES CLIENT,REVENUE
Walsall Council,http://opendatacommunities.org/id/metropolitan-district-council/walsall,WC124-348,31.03.2021,ADULT SOCIAL CARE,REDACTED,10/03/2021,"2,604.00",6541-Direct Payment,THIRD PARTY PAYMENTS,PRIVATE CONTRACTOR,REVENUE
Walsall Council,http://opendatacommunities.org/id/metropolitan-district-council/walsall,WC124-349,31.03.2021,ADULT SOCIAL CARE,ADVANCE HEALTH CARE (UK) LTD,01/03/2021,524.28,6541-Domiciliary Care,THIRD PARTY PAYMENTS,PRIVATE CONTRACTOR,REVENUE
Walsall Council,http://opendatacommunities.org/id/metropolitan-district-council/walsall,WC124-350,31.03.2021,ADULT SOCIAL CARE,ADVANCE HEALTH CARE (UK) LTD,01/03/2021,485.73,6541-Domiciliary Care,THIRD PARTY PAYMENTS,PRIVATE CONTRACTOR,REVENUE
Walsall Council,http://opendatacommunities.org/id/metropolitan-district-council/walsall,WC124-351,31.03.2021,ADULT SOCIAL CARE,ADVANCE HEALTH CARE (UK) LTD,01/03/2021,485.80,6541-Domiciliary Care,THIRD PARTY PAYMENTS,PRIVATE CONTRACTOR,REVENUE
Walsall Council,http://opendatacommunities.org/id/metropolitan-district-council/walsall,WC124-352,31.03.2021,ADULT SOCIAL CARE,ADVANCE HEALTH CARE (UK) LTD,01/03/2021,501.15,6541-Domiciliary Care,THIRD PARTY PAYMENTS,PRIVATE CONTRACTOR,REVENUE
Walsall Council,http://opendatacommunities.org/id/metropolitan-district-council/walsall,WC124-353,31.03.2021,ADULT SOCIAL CARE,ADVANCE HEALTH CARE (UK) LTD,01/03/2021,431.76,6541-Domiciliary Care,THIRD PARTY PAYMENTS,PRIVATE CONTRACTOR,REVENUE
Walsall Council,http://opendatacommunities.org/id/metropolitan-district-council/walsall,WC124-354,31.03.2021,ADULT SOCIAL CARE,ADVANCE HEALTH CARE (UK) LTD,01/03/2021,485.73,6541-Domiciliary Care,THIRD PARTY PAYMENTS,PRIVATE CONTRACTOR,REVENUE
Walsall Council,http://opendatacommunities.org/id/metropolitan-district-council/walsall,WC124-355,31.03.2021,ADULT SOCIAL CARE,ADVANCE HEALTH CARE (UK) LTD,01/03/2021,485.73,6541-Domiciliary Care,THIRD PARTY PAYMENTS,PRIVATE CONTRACTOR,REVENUE
Walsall Council,http://opendatacommunities.org/id/metropolitan-district-council/walsall,WC124-356,31.03.2021,ADULT SOCIAL CARE,ADVANCE HEALTH CARE (UK) LTD,01/03/2021,485.73,6541-Domiciliary Care,THIRD PARTY PAYMENTS,PRIVATE CONTRACTOR,REVENUE
Walsall Council,http://opendatacommunities.org/id/metropolitan-district-council/walsall,WC124-357,31.03.2021,ADULT SOCIAL CARE,ADVANCE HEALTH CARE (UK) LTD,01/03/2021,824.97,6541-Domiciliary Care,THIRD PARTY PAYMENTS,PRIVATE CONTRACTOR,REVENUE
Walsall Council,http://opendatacommunities.org/id/metropolitan-district-council/walsall,WC124-358,31.03.2021,ADULT SOCIAL CARE,ADVANCE HEALTH CARE (UK) LTD,01/03/2021,485.73,6541-Domiciliary Care,THIRD PARTY PAYMENTS,PRIVATE CONTRACTOR,REVENUE
Walsall Council,http://opendatacommunities.org/id/metropolitan-district-council/walsall,WC124-359,31.03.2021,ADULT SOCIAL CARE,ADVANCE HEALTH CARE (UK) LTD,01/03/2021,485.73,6541-Domiciliary Care,THIRD PARTY PAYMENTS,PRIVATE CONTRACTOR,REVENUE
Walsall Council,http://opendatacommunities.org/id/metropolitan-district-council/walsall,WC124-360,31.03.2021,ADULT SOCIAL CARE,ADVANCE HEALTH CARE (UK) LTD,01/03/2021,431.76,6541-Domiciliary Care,THIRD PARTY PAYMENTS,PRIVATE CONTRACTOR,REVENUE
Walsall Council,http://opendatacommunities.org/id/metropolitan-district-council/walsall,WC124-361,31.03.2021,ADULT SOCIAL CARE,ADVANCE HEALTH CARE (UK) LTD,01/03/2021,539.70,6541-Domiciliary Care,THIRD PARTY PAYMENTS,PRIVATE CONTRACTOR,REVENUE
Walsall Council,http://opendatacommunities.org/id/metropolitan-district-council/walsall,WC124-362,31.03.2021,ADULT SOCIAL CARE,ADVANCE HEALTH CARE (UK) LTD,01/03/2021,359.80,6541-Domiciliary Care,THIRD PARTY PAYMENTS,PRIVATE CONTRACTOR,REVENUE
Walsall Council,http://opendatacommunities.org/id/metropolitan-district-council/walsall,WC124-363,31.03.2021,ADULT SOCIAL CARE,ADVANCE HEALTH CARE (UK) LTD,01/03/2021,323.82,6541-Domiciliary Care,THIRD PARTY PAYMENTS,PRIVATE CONTRACTOR,REVENUE
Walsall Council,http://opendatacommunities.org/id/metropolitan-district-council/walsall,WC124-364,31.03.2021,ADULT SOCIAL CARE,ADVANCE HEALTH CARE (UK) LTD,01/03/2021,701.61,6541-Domiciliary Care,THIRD PARTY PAYMENTS,PRIVATE CONTRACTOR,REVENUE
Walsall Council,http://opendatacommunities.org/id/metropolitan-district-council/walsall,WC124-365,31.03.2021,ADULT SOCIAL CARE,ADVANCE HEALTH CARE (UK) LTD,01/03/2021,431.76,6541-Domiciliary Care,THIRD PARTY PAYMENTS,PRIVATE CONTRACTOR,REVENUE
Walsall Council,http://opendatacommunities.org/id/metropolitan-district-council/walsall,WC124-366,31.03.2021,ADULT SOCIAL CARE,ADVANCE HEALTH CARE (UK) LTD,01/03/2021,431.76,6541-Domiciliary Care,THIRD PARTY PAYMENTS,PRIVATE CONTRACTOR,REVENUE
Walsall Council,http://opendatacommunities.org/id/metropolitan-district-council/walsall,WC124-367,31.03.2021,ADULT SOCIAL CARE,ADVANCE HEALTH CARE (UK) LTD,01/03/2021,431.76,6541-Domiciliary Care,THIRD PARTY PAYMENTS,PRIVATE CONTRACTOR,REVENUE
Walsall Council,http://opendatacommunities.org/id/metropolitan-district-council/walsall,WC124-368,31.03.2021,ADULT SOCIAL CARE,ADVANCE HEALTH CARE (UK) LTD,01/03/2021,431.76,6541-Domiciliary Care,THIRD PARTY PAYMENTS,PRIVATE CONTRACTOR,REVENUE
Walsall Council,http://opendatacommunities.org/id/metropolitan-district-council/walsall,WC124-369,31.03.2021,ADULT SOCIAL CARE,ADVANCE HEALTH CARE (UK) LTD,01/03/2021,359.80,6541-Domiciliary Care,THIRD PARTY PAYMENTS,PRIVATE CONTRACTOR,REVENUE
Walsall Council,http://opendatacommunities.org/id/metropolitan-district-council/walsall,WC124-370,31.03.2021,ADULT SOCIAL CARE,ADVANCE HEALTH CARE (UK) LTD,01/03/2021,431.76,6541-Domiciliary Care,THIRD PARTY PAYMENTS,PRIVATE CONTRACTOR,REVENUE
Walsall Council,http://opendatacommunities.org/id/metropolitan-district-council/walsall,WC124-371,31.03.2021,ADULT SOCIAL CARE,ADVANCE HEALTH CARE (UK) LTD,01/03/2021,431.76,6541-Domiciliary Care,THIRD PARTY PAYMENTS,PRIVATE CONTRACTOR,REVENUE
Walsall Council,http://opendatacommunities.org/id/metropolitan-district-council/walsall,WC124-372,31.03.2021,ADULT SOCIAL CARE,ADVANCE HEALTH CARE (UK) LTD,01/03/2021,485.73,6541-Domiciliary Care,THIRD PARTY PAYMENTS,PRIVATE CONTRACTOR,REVENUE
Walsall Council,http://opendatacommunities.org/id/metropolitan-district-council/walsall,WC124-373,31.03.2021,ADULT SOCIAL CARE,ADVANCE HEALTH CARE (UK) LTD,01/03/2021,755.58,6541-Domiciliary Care,THIRD PARTY PAYMENTS,PRIVATE CONTRACTOR,REVENUE
Walsall Council,http://opendatacommunities.org/id/metropolitan-district-council/walsall,WC124-374,31.03.2021,ADULT SOCIAL CARE,ADVANCE HEALTH CARE (UK) LTD,01/03/2021,449.75,6541-Domiciliary Care,THIRD PARTY PAYMENTS,PRIVATE CONTRACTOR,REVENUE
Walsall Council,http://opendatacommunities.org/id/metropolitan-district-council/walsall,WC124-375,31.03.2021,ADULT SOCIAL CARE,ADVANCE HEALTH CARE (UK) LTD,01/03/2021,439.47,6541-Domiciliary Care,THIRD PARTY PAYMENTS,PRIVATE CONTRACTOR,REVENUE
Walsall Council,http://opendatacommunities.org/id/metropolitan-district-council/walsall,WC124-376,31.03.2021,ADULT SOCIAL CARE,ADVANCE HEALTH CARE (UK) LTD,01/03/2021,-593.88,6541-Domiciliary Care,THIRD PARTY PAYMENTS,PRIVATE CONTRACTOR,REVENUE
Walsall Council,http://opendatacommunities.org/id/metropolitan-district-council/walsall,WC124-377,31.03.2021,ADULT SOCIAL CARE,ADVANCE HEALTH CARE (UK) LTD,01/03/2021,485.73,6541-Domiciliary Care,THIRD PARTY PAYMENTS,PRIVATE CONTRACTOR,REVENUE
Walsall Council,http://opendatacommunities.org/id/metropolitan-district-council/walsall,WC124-378,31.03.2021,ADULT SOCIAL CARE,ADVANCE HEALTH CARE (UK) LTD,01/03/2021,863.52,6541-Domiciliary Care,THIRD PARTY PAYMENTS,PRIVATE CONTRACTOR,REVENUE
Walsall Council,http://opendatacommunities.org/id/metropolitan-district-council/walsall,WC124-379,31.03.2021,ADULT SOCIAL CARE,ADVANCE HEALTH CARE (UK) LTD,01/03/2021,323.82,6541-Domiciliary Care,THIRD PARTY PAYMENTS,PRIVATE CONTRACTOR,REVENUE
Walsall Council,http://opendatacommunities.org/id/metropolitan-district-council/walsall,WC124-380,31.03.2021,ADULT SOCIAL CARE,ADVANCE HEALTH CARE (UK) LTD,01/03/2021,377.79,6541-Domiciliary Care,THIRD PARTY PAYMENTS,PRIVATE CONTRACTOR,REVENUE
Walsall Council,http://opendatacommunities.org/id/metropolitan-district-council/walsall,WC124-381,31.03.2021,ADULT SOCIAL CARE,ADVANCE HEALTH CARE (UK) LTD,01/03/2021,377.79,6541-Domiciliary Care,THIRD PARTY PAYMENTS,PRIVATE CONTRACTOR,REVENUE
Walsall Council,http://opendatacommunities.org/id/metropolitan-district-council/walsall,WC124-382,31.03.2021,ADULT SOCIAL CARE,ADVANCE HEALTH CARE (UK) LTD,01/03/2021,971.46,6541-Domiciliary Care,THIRD PARTY PAYMENTS,PRIVATE CONTRACTOR,REVENUE
Walsall Council,http://opendatacommunities.org/id/metropolitan-district-council/walsall,WC124-383,31.03.2021,ADULT SOCIAL CARE,ADVANCE HEALTH CARE (UK) LTD,01/03/2021,-370.08,6541-Domiciliary Care,THIRD PARTY PAYMENTS,PRIVATE CONTRACTOR,REVENUE
Walsall Council,http://opendatacommunities.org/id/metropolitan-district-council/walsall,WC124-384,31.03.2021,ADULT SOCIAL CARE,ADVANCE HEALTH CARE (UK) LTD,01/03/2021,377.79,6541-Domiciliary Care,THIRD PARTY PAYMENTS,PRIVATE CONTRACTOR,REVENUE
Walsall Council,http://opendatacommunities.org/id/metropolitan-district-council/walsall,WC124-385,31.03.2021,ADULT SOCIAL CARE,ADVANCE HEALTH CARE (UK) LTD,01/03/2021,485.73,6541-Domiciliary Care,THIRD PARTY PAYMENTS,PRIVATE CONTRACTOR,REVENUE
Walsall Council,http://opendatacommunities.org/id/metropolitan-district-council/walsall,WC124-386,31.03.2021,ADULT SOCIAL CARE,ADVANCE HEALTH CARE (UK) LTD,01/03/2021,431.76,6541-Domiciliary Care,THIRD PARTY PAYMENTS,PRIVATE CONTRACTOR,REVENUE
Walsall Council,http://opendatacommunities.org/id/metropolitan-district-council/walsall,WC124-387,31.03.2021,ADULT SOCIAL CARE,ADVANCE HEALTH CARE (UK) LTD,01/03/2021,485.73,6541-Domiciliary Care,THIRD PARTY PAYMENTS,PRIVATE CONTRACTOR,REVENUE
Walsall Council,http://opendatacommunities.org/id/metropolitan-district-council/walsall,WC124-388,31.03.2021,ADULT SOCIAL CARE,ADVANCE HEALTH CARE (UK) LTD,01/03/2021,485.73,6541-Domiciliary Care,THIRD PARTY PAYMENTS,PRIVATE CONTRACTOR,REVENUE
Walsall Council,http://opendatacommunities.org/id/metropolitan-district-council/walsall,WC124-389,31.03.2021,ADULT SOCIAL CARE,ADVANCE HEALTH CARE (UK) LTD,01/03/2021,485.73,6541-Domiciliary Care,THIRD PARTY PAYMENTS,PRIVATE CONTRACTOR,REVENUE
Walsall Council,http://opendatacommunities.org/id/metropolitan-district-council/walsall,WC124-390,31.03.2021,ADULT SOCIAL CARE,ADVANCE HEALTH CARE (UK) LTD,01/03/2021,824.97,6541-Domiciliary Care,THIRD PARTY PAYMENTS,PRIVATE CONTRACTOR,REVENUE
Walsall Council,http://opendatacommunities.org/id/metropolitan-district-council/walsall,WC124-391,31.03.2021,ADULT SOCIAL CARE,ADVANCE HEALTH CARE (UK) LTD,01/03/2021,485.73,6541-Domiciliary Care,THIRD PARTY PAYMENTS,PRIVATE CONTRACTOR,REVENUE
Walsall Council,http://opendatacommunities.org/id/metropolitan-district-council/walsall,WC124-392,31.03.2021,ADULT SOCIAL CARE,ADVANCE HEALTH CARE (UK) LTD,01/03/2021,485.73,6541-Domiciliary Care,THIRD PARTY PAYMENTS,PRIVATE CONTRACTOR,REVENUE
Walsall Council,http://opendatacommunities.org/id/metropolitan-district-council/walsall,WC124-393,31.03.2021,ADULT SOCIAL CARE,ADVANCE HEALTH CARE (UK) LTD,01/03/2021,431.76,6541-Domiciliary Care,THIRD PARTY PAYMENTS,PRIVATE CONTRACTOR,REVENUE
Walsall Council,http://opendatacommunities.org/id/metropolitan-district-council/walsall,WC124-394,31.03.2021,ADULT SOCIAL CARE,ADVANCE HEALTH CARE (UK) LTD,01/03/2021,539.70,6541-Domiciliary Care,THIRD PARTY PAYMENTS,PRIVATE CONTRACTOR,REVENUE
Walsall Council,http://opendatacommunities.org/id/metropolitan-district-council/walsall,WC124-395,31.03.2021,ADULT SOCIAL CARE,ADVANCE HEALTH CARE (UK) LTD,01/03/2021,431.76,6541-Domiciliary Care,THIRD PARTY PAYMENTS,PRIVATE CONTRACTOR,REVENUE
Walsall Council,http://opendatacommunities.org/id/metropolitan-district-council/walsall,WC124-396,31.03.2021,ADULT SOCIAL CARE,ADVANCE HEALTH CARE (UK) LTD,01/03/2021,323.82,6541-Domiciliary Care,THIRD PARTY PAYMENTS,PRIVATE CONTRACTOR,REVENUE
Walsall Council,http://opendatacommunities.org/id/metropolitan-district-council/walsall,WC124-397,31.03.2021,ADULT SOCIAL CARE,ADVANCE HEALTH CARE (UK) LTD,01/03/2021,701.61,6541-Domiciliary Care,THIRD PARTY PAYMENTS,PRIVATE CONTRACTOR,REVENUE
Walsall Council,http://opendatacommunities.org/id/metropolitan-district-council/walsall,WC124-398,31.03.2021,ADULT SOCIAL CARE,ADVANCE HEALTH CARE (UK) LTD,01/03/2021,431.76,6541-Domiciliary Care,THIRD PARTY PAYMENTS,PRIVATE CONTRACTOR,REVENUE
Walsall Council,http://opendatacommunities.org/id/metropolitan-district-council/walsall,WC124-399,31.03.2021,ADULT SOCIAL CARE,ADVANCE HEALTH CARE (UK) LTD,01/03/2021,431.76,6541-Domiciliary Care,THIRD PARTY PAYMENTS,PRIVATE CONTRACTOR,REVENUE
Walsall Council,http://opendatacommunities.org/id/metropolitan-district-council/walsall,WC124-400,31.03.2021,ADULT SOCIAL CARE,ADVANCE HEALTH CARE (UK) LTD,01/03/2021,616.80,6541-Domiciliary Care,THIRD PARTY PAYMENTS,PRIVATE CONTRACTOR,REVENUE
Walsall Council,http://opendatacommunities.org/id/metropolitan-district-council/walsall,WC124-401,31.03.2021,ADULT SOCIAL CARE,ADVANCE HEALTH CARE (UK) LTD,01/03/2021,485.80,6541-Domiciliary Care,THIRD PARTY PAYMENTS,PRIVATE CONTRACTOR,REVENUE
Walsall Council,http://opendatacommunities.org/id/metropolitan-district-council/walsall,WC124-402,31.03.2021,ADULT SOCIAL CARE,ADVANCE HEALTH CARE (UK) LTD,01/03/2021,501.15,6541-Domiciliary Care,THIRD PARTY PAYMENTS,PRIVATE CONTRACTOR,REVENUE
Walsall Council,http://opendatacommunities.org/id/metropolitan-district-council/walsall,WC124-403,31.03.2021,ADULT SOCIAL CARE,ADVANCE HEALTH CARE (UK) LTD,01/03/2021,431.76,6541-Domiciliary Care,THIRD PARTY PAYMENTS,PRIVATE CONTRACTOR,REVENUE
Walsall Council,http://opendatacommunities.org/id/metropolitan-district-council/walsall,WC124-404,31.03.2021,ADULT SOCIAL CARE,ADVANCE HEALTH CARE (UK) LTD,01/03/2021,439.47,6541-Domiciliary Care,THIRD PARTY PAYMENTS,PRIVATE CONTRACTOR,REVENUE
Walsall Council,http://opendatacommunities.org/id/metropolitan-district-council/walsall,WC124-405,31.03.2021,ADULT SOCIAL CARE,ADVANCE HEALTH CARE (UK) LTD,01/03/2021,485.73,6541-Domiciliary Care,THIRD PARTY PAYMENTS,PRIVATE CONTRACTOR,REVENUE
Walsall Council,http://opendatacommunities.org/id/metropolitan-district-council/walsall,WC124-406,31.03.2021,ADULT SOCIAL CARE,ADVANCE HEALTH CARE (UK) LTD,01/03/2021,863.52,6541-Domiciliary Care,THIRD PARTY PAYMENTS,PRIVATE CONTRACTOR,REVENUE
Walsall Council,http://opendatacommunities.org/id/metropolitan-district-council/walsall,WC124-407,31.03.2021,ADULT SOCIAL CARE,ADVANCE HEALTH CARE (UK) LTD,01/03/2021,323.82,6541-Domiciliary Care,THIRD PARTY PAYMENTS,PRIVATE CONTRACTOR,REVENUE
Walsall Council,http://opendatacommunities.org/id/metropolitan-district-council/walsall,WC124-408,31.03.2021,ADULT SOCIAL CARE,ADVANCE HEALTH CARE (UK) LTD,01/03/2021,377.79,6541-Domiciliary Care,THIRD PARTY PAYMENTS,PRIVATE CONTRACTOR,REVENUE
Walsall Council,http://opendatacommunities.org/id/metropolitan-district-council/walsall,WC124-409,31.03.2021,ADULT SOCIAL CARE,ADVANCE HEALTH CARE (UK) LTD,01/03/2021,431.76,6541-Domiciliary Care,THIRD PARTY PAYMENTS,PRIVATE CONTRACTOR,REVENUE
Walsall Council,http://opendatacommunities.org/id/metropolitan-district-council/walsall,WC124-410,31.03.2021,ADULT SOCIAL CARE,ADVANCE HEALTH CARE (UK) LTD,01/03/2021,485.73,6541-Domiciliary Care,THIRD PARTY PAYMENTS,PRIVATE CONTRACTOR,REVENUE
Walsall Council,http://opendatacommunities.org/id/metropolitan-district-council/walsall,WC124-411,31.03.2021,ADULT SOCIAL CARE,ADVANCE HEALTH CARE (UK) LTD,01/03/2021,755.58,6541-Domiciliary Care,THIRD PARTY PAYMENTS,PRIVATE CONTRACTOR,REVENUE
Walsall Council,http://opendatacommunities.org/id/metropolitan-district-council/walsall,WC124-412,31.03.2021,ADULT SOCIAL CARE,ADVANCE HEALTH CARE (UK) LTD,01/03/2021,359.80,6541-Domiciliary Care,THIRD PARTY PAYMENTS,PRIVATE CONTRACTOR,REVENUE
Walsall Council,http://opendatacommunities.org/id/metropolitan-district-council/walsall,WC124-413,31.03.2021,ADULT SOCIAL CARE,ADVANCE HEALTH CARE (UK) LTD,01/03/2021,377.79,6541-Domiciliary Care,THIRD PARTY PAYMENTS,PRIVATE CONTRACTOR,REVENUE
Walsall Council,http://opendatacommunities.org/id/metropolitan-district-council/walsall,WC124-414,31.03.2021,ADULT SOCIAL CARE,ADVANCE HEALTH CARE (UK) LTD,01/03/2021,485.73,6541-Domiciliary Care,THIRD PARTY PAYMENTS,PRIVATE CONTRACTOR,REVENUE
Walsall Council,http://opendatacommunities.org/id/metropolitan-district-council/walsall,WC124-415,31.03.2021,ADULT SOCIAL CARE,ADVANCE HEALTH CARE (UK) LTD,01/03/2021,485.73,6541-Domiciliary Care,THIRD PARTY PAYMENTS,PRIVATE CONTRACTOR,REVENUE
Walsall Council,http://opendatacommunities.org/id/metropolitan-district-council/walsall,WC124-416,31.03.2021,ADULT SOCIAL CARE,ADVANCE HEALTH CARE (UK) LTD,01/03/2021,431.76,6541-Domiciliary Care,THIRD PARTY PAYMENTS,PRIVATE CONTRACTOR,REVENUE
Walsall Council,http://opendatacommunities.org/id/metropolitan-district-council/walsall,WC124-417,31.03.2021,ADULT SOCIAL CARE,ADVANCE HEALTH CARE (UK) LTD,01/03/2021,359.80,6541-Domiciliary Care,THIRD PARTY PAYMENTS,PRIVATE CONTRACTOR,REVENUE
Walsall Council,http://opendatacommunities.org/id/metropolitan-district-council/walsall,WC124-418,31.03.2021,ADULT SOCIAL CARE,ADVANCE HEALTH CARE (UK) LTD,01/03/2021,449.75,6541-Domiciliary Care,THIRD PARTY PAYMENTS,PRIVATE CONTRACTOR,REVENUE
Walsall Council,http://opendatacommunities.org/id/metropolitan-district-council/walsall,WC124-419,31.03.2021,ADULT SOCIAL CARE,ADVANCE HEALTH CARE (UK) LTD,01/03/2021,431.76,6541-Domiciliary Care,THIRD PARTY PAYMENTS,PRIVATE CONTRACTOR,REVENUE
Walsall Council,http://opendatacommunities.org/id/metropolitan-district-council/walsall,WC124-420,31.03.2021,ADULT SOCIAL CARE,ADVANCE HEALTH CARE (UK) LTD,01/03/2021,377.79,6541-Domiciliary Care,THIRD PARTY PAYMENTS,PRIVATE CONTRACTOR,REVENUE
Walsall Council,http://opendatacommunities.org/id/metropolitan-district-council/walsall,WC124-421,31.03.2021,ADULT SOCIAL CARE,ADVANCE HEALTH CARE (UK) LTD,01/03/2021,485.73,6541-Domiciliary Care,THIRD PARTY PAYMENTS,PRIVATE CONTRACTOR,REVENUE
Walsall Council,http://opendatacommunities.org/id/metropolitan-district-council/walsall,WC124-422,31.03.2021,ADULT SOCIAL CARE,ADVANCE HEALTH CARE (UK) LTD,01/03/2021,431.76,6541-Domiciliary Care,THIRD PARTY PAYMENTS,PRIVATE CONTRACTOR,REVENUE
Walsall Council,http://opendatacommunities.org/id/metropolitan-district-council/walsall,WC124-423,31.03.2021,ADULT SOCIAL CARE,ADVANCE HEALTH CARE (UK) LTD,15/03/2021,323.82,6541-Domiciliary Care,THIRD PARTY PAYMENTS,PRIVATE CONTRACTOR,REVENUE
Walsall Council,http://opendatacommunities.org/id/metropolitan-district-council/walsall,WC124-424,31.03.2021,ADULT SOCIAL CARE,ADVANCE HEALTH CARE (UK) LTD,15/03/2021,701.61,6541-Domiciliary Care,THIRD PARTY PAYMENTS,PRIVATE CONTRACTOR,REVENUE
Walsall Council,http://opendatacommunities.org/id/metropolitan-district-council/walsall,WC124-425,31.03.2021,ADULT SOCIAL CARE,ADVANCE HEALTH CARE (UK) LTD,15/03/2021,431.76,6541-Domiciliary Care,THIRD PARTY PAYMENTS,PRIVATE CONTRACTOR,REVENUE
Walsall Council,http://opendatacommunities.org/id/metropolitan-district-council/walsall,WC124-426,31.03.2021,ADULT SOCIAL CARE,ADVANCE HEALTH CARE (UK) LTD,15/03/2021,539.70,6541-Domiciliary Care,THIRD PARTY PAYMENTS,PRIVATE CONTRACTOR,REVENUE
Walsall Council,http://opendatacommunities.org/id/metropolitan-district-council/walsall,WC124-427,31.03.2021,ADULT SOCIAL CARE,ADVANCE HEALTH CARE (UK) LTD,15/03/2021,485.73,6541-Domiciliary Care,THIRD PARTY PAYMENTS,PRIVATE CONTRACTOR,REVENUE
Walsall Council,http://opendatacommunities.org/id/metropolitan-district-council/walsall,WC124-428,31.03.2021,ADULT SOCIAL CARE,ADVANCE HEALTH CARE (UK) LTD,15/03/2021,485.73,6541-Domiciliary Care,THIRD PARTY PAYMENTS,PRIVATE CONTRACTOR,REVENUE
Walsall Council,http://opendatacommunities.org/id/metropolitan-district-council/walsall,WC124-429,31.03.2021,ADULT SOCIAL CARE,ADVANCE HEALTH CARE (UK) LTD,15/03/2021,485.73,6541-Domiciliary Care,THIRD PARTY PAYMENTS,PRIVATE CONTRACTOR,REVENUE
Walsall Council,http://opendatacommunities.org/id/metropolitan-district-council/walsall,WC124-430,31.03.2021,ADULT SOCIAL CARE,ADVANCE HEALTH CARE (UK) LTD,15/03/2021,431.76,6541-Domiciliary Care,THIRD PARTY PAYMENTS,PRIVATE CONTRACTOR,REVENUE
Walsall Council,http://opendatacommunities.org/id/metropolitan-district-council/walsall,WC124-431,31.03.2021,ADULT SOCIAL CARE,ADVANCE HEALTH CARE (UK) LTD,15/03/2021,755.58,6541-Domiciliary Care,THIRD PARTY PAYMENTS,PRIVATE CONTRACTOR,REVENUE
Walsall Council,http://opendatacommunities.org/id/metropolitan-district-council/walsall,WC124-432,31.03.2021,ADULT SOCIAL CARE,ADVANCE HEALTH CARE (UK) LTD,15/03/2021,485.73,6541-Domiciliary Care,THIRD PARTY PAYMENTS,PRIVATE CONTRACTOR,REVENUE
Walsall Council,http://opendatacommunities.org/id/metropolitan-district-council/walsall,WC124-433,31.03.2021,ADULT SOCIAL CARE,ADVANCE HEALTH CARE (UK) LTD,15/03/2021,824.97,6541-Domiciliary Care,THIRD PARTY PAYMENTS,PRIVATE CONTRACTOR,REVENUE
Walsall Council,http://opendatacommunities.org/id/metropolitan-district-council/walsall,WC124-434,31.03.2021,ADULT SOCIAL CARE,ADVANCE HEALTH CARE (UK) LTD,15/03/2021,485.73,6541-Domiciliary Care,THIRD PARTY PAYMENTS,PRIVATE CONTRACTOR,REVENUE
Walsall Council,http://opendatacommunities.org/id/metropolitan-district-council/walsall,WC124-435,31.03.2021,ADULT SOCIAL CARE,ADVANCE HEALTH CARE (UK) LTD,15/03/2021,485.73,6541-Domiciliary Care,THIRD PARTY PAYMENTS,PRIVATE CONTRACTOR,REVENUE
Walsall Council,http://opendatacommunities.org/id/metropolitan-district-council/walsall,WC124-436,31.03.2021,ADULT SOCIAL CARE,ADVANCE HEALTH CARE (UK) LTD,15/03/2021,431.76,6541-Domiciliary Care,THIRD PARTY PAYMENTS,PRIVATE CONTRACTOR,REVENUE
Walsall Council,http://opendatacommunities.org/id/metropolitan-district-council/walsall,WC124-437,31.03.2021,ADULT SOCIAL CARE,ADVANCE HEALTH CARE (UK) LTD,15/03/2021,539.70,6541-Domiciliary Care,THIRD PARTY PAYMENTS,PRIVATE CONTRACTOR,REVENUE
Walsall Council,http://opendatacommunities.org/id/metropolitan-district-council/walsall,WC124-438,31.03.2021,ADULT SOCIAL CARE,ADVANCE HEALTH CARE (UK) LTD,15/03/2021,431.76,6541-Domiciliary Care,THIRD PARTY PAYMENTS,PRIVATE CONTRACTOR,REVENUE
Walsall Council,http://opendatacommunities.org/id/metropolitan-district-council/walsall,WC124-439,31.03.2021,ADULT SOCIAL CARE,ADVANCE HEALTH CARE (UK) LTD,15/03/2021,431.76,6541-Domiciliary Care,THIRD PARTY PAYMENTS,PRIVATE CONTRACTOR,REVENUE
Walsall Council,http://opendatacommunities.org/id/metropolitan-district-council/walsall,WC124-440,31.03.2021,ADULT SOCIAL CARE,ADVANCE HEALTH CARE (UK) LTD,15/03/2021,449.75,6541-Domiciliary Care,THIRD PARTY PAYMENTS,PRIVATE CONTRACTOR,REVENUE
Walsall Council,http://opendatacommunities.org/id/metropolitan-district-council/walsall,WC124-441,31.03.2021,ADULT SOCIAL CARE,ADVANCE HEALTH CARE (UK) LTD,15/03/2021,485.80,6541-Domiciliary Care,THIRD PARTY PAYMENTS,PRIVATE CONTRACTOR,REVENUE
Walsall Council,http://opendatacommunities.org/id/metropolitan-district-council/walsall,WC124-442,31.03.2021,ADULT SOCIAL CARE,ADVANCE HEALTH CARE (UK) LTD,15/03/2021,501.15,6541-Domiciliary Care,THIRD PARTY PAYMENTS,PRIVATE CONTRACTOR,REVENUE
Walsall Council,http://opendatacommunities.org/id/metropolitan-district-council/walsall,WC124-443,31.03.2021,ADULT SOCIAL CARE,ADVANCE HEALTH CARE (UK) LTD,15/03/2021,431.76,6541-Domiciliary Care,THIRD PARTY PAYMENTS,PRIVATE CONTRACTOR,REVENUE
Walsall Council,http://opendatacommunities.org/id/metropolitan-district-council/walsall,WC124-444,31.03.2021,ADULT SOCIAL CARE,ADVANCE HEALTH CARE (UK) LTD,15/03/2021,431.76,6541-Domiciliary Care,THIRD PARTY PAYMENTS,PRIVATE CONTRACTOR,REVENUE
Walsall Council,http://opendatacommunities.org/id/metropolitan-district-council/walsall,WC124-445,31.03.2021,ADULT SOCIAL CARE,ADVANCE HEALTH CARE (UK) LTD,15/03/2021,359.80,6541-Domiciliary Care,THIRD PARTY PAYMENTS,PRIVATE CONTRACTOR,REVENUE
Walsall Council,http://opendatacommunities.org/id/metropolitan-district-council/walsall,WC124-446,31.03.2021,ADULT SOCIAL CARE,ADVANCE HEALTH CARE (UK) LTD,15/03/2021,439.47,6541-Domiciliary Care,THIRD PARTY PAYMENTS,PRIVATE CONTRACTOR,REVENUE
Walsall Council,http://opendatacommunities.org/id/metropolitan-district-council/walsall,WC124-447,31.03.2021,ADULT SOCIAL CARE,ADVANCE HEALTH CARE (UK) LTD,15/03/2021,485.73,6541-Domiciliary Care,THIRD PARTY PAYMENTS,PRIVATE CONTRACTOR,REVENUE
Walsall Council,http://opendatacommunities.org/id/metropolitan-district-council/walsall,WC124-448,31.03.2021,ADULT SOCIAL CARE,ADVANCE HEALTH CARE (UK) LTD,15/03/2021,863.52,6541-Domiciliary Care,THIRD PARTY PAYMENTS,PRIVATE CONTRACTOR,REVENUE
Walsall Council,http://opendatacommunities.org/id/metropolitan-district-council/walsall,WC124-449,31.03.2021,ADULT SOCIAL CARE,ADVANCE HEALTH CARE (UK) LTD,15/03/2021,323.82,6541-Domiciliary Care,THIRD PARTY PAYMENTS,PRIVATE CONTRACTOR,REVENUE
Walsall Council,http://opendatacommunities.org/id/metropolitan-district-council/walsall,WC124-450,31.03.2021,ADULT SOCIAL CARE,ADVANCE HEALTH CARE (UK) LTD,15/03/2021,377.79,6541-Domiciliary Care,THIRD PARTY PAYMENTS,PRIVATE CONTRACTOR,REVENUE
Walsall Council,http://opendatacommunities.org/id/metropolitan-district-council/walsall,WC124-451,31.03.2021,ADULT SOCIAL CARE,ADVANCE HEALTH CARE (UK) LTD,15/03/2021,359.80,6541-Domiciliary Care,THIRD PARTY PAYMENTS,PRIVATE CONTRACTOR,REVENUE
Walsall Council,http://opendatacommunities.org/id/metropolitan-district-council/walsall,WC124-452,31.03.2021,ADULT SOCIAL CARE,ADVANCE HEALTH CARE (UK) LTD,15/03/2021,431.76,6541-Domiciliary Care,THIRD PARTY PAYMENTS,PRIVATE CONTRACTOR,REVENUE
Walsall Council,http://opendatacommunities.org/id/metropolitan-district-council/walsall,WC124-453,31.03.2021,ADULT SOCIAL CARE,ADVANCE HEALTH CARE (UK) LTD,15/03/2021,377.79,6541-Domiciliary Care,THIRD PARTY PAYMENTS,PRIVATE CONTRACTOR,REVENUE
Walsall Council,http://opendatacommunities.org/id/metropolitan-district-council/walsall,WC124-454,31.03.2021,ADULT SOCIAL CARE,ADVANCE HEALTH CARE (UK) LTD,15/03/2021,485.73,6541-Domiciliary Care,THIRD PARTY PAYMENTS,PRIVATE CONTRACTOR,REVENUE
Walsall Council,http://opendatacommunities.org/id/metropolitan-district-council/walsall,WC124-455,31.03.2021,ADULT SOCIAL CARE,ADVANCE HEALTH CARE (UK) LTD,15/03/2021,431.76,6541-Domiciliary Care,THIRD PARTY PAYMENTS,PRIVATE CONTRACTOR,REVENUE
Walsall Council,http://opendatacommunities.org/id/metropolitan-district-council/walsall,WC124-456,31.03.2021,ADULT SOCIAL CARE,ADVANCE HEALTH CARE (UK) LTD,15/03/2021,377.79,6541-Domiciliary Care,THIRD PARTY PAYMENTS,PRIVATE CONTRACTOR,REVENUE
Walsall Council,http://opendatacommunities.org/id/metropolitan-district-council/walsall,WC124-457,31.03.2021,ADULT SOCIAL CARE,ADVANCE HEALTH CARE (UK) LTD,15/03/2021,485.73,6541-Domiciliary Care,THIRD PARTY PAYMENTS,PRIVATE CONTRACTOR,REVENUE
Walsall Council,http://opendatacommunities.org/id/metropolitan-district-council/walsall,WC124-458,31.03.2021,ADULT SOCIAL CARE,ADVANCE HEALTH CARE (UK) LTD,15/03/2021,439.47,6541-Domiciliary Care,THIRD PARTY PAYMENTS,PRIVATE CONTRACTOR,REVENUE
Walsall Council,http://opendatacommunities.org/id/metropolitan-district-council/walsall,WC124-459,31.03.2021,ADULT SOCIAL CARE,ADVANCE HEALTH CARE (UK) LTD,15/03/2021,485.73,6541-Domiciliary Care,THIRD PARTY PAYMENTS,PRIVATE CONTRACTOR,REVENUE
Walsall Council,http://opendatacommunities.org/id/metropolitan-district-council/walsall,WC124-460,31.03.2021,ADULT SOCIAL CARE,ADVANCE HEALTH CARE (UK) LTD,15/03/2021,863.52,6541-Domiciliary Care,THIRD PARTY PAYMENTS,PRIVATE CONTRACTOR,REVENUE
Walsall Council,http://opendatacommunities.org/id/metropolitan-district-council/walsall,WC124-461,31.03.2021,ADULT SOCIAL CARE,ADVANCE HEALTH CARE (UK) LTD,15/03/2021,323.82,6541-Domiciliary Care,THIRD PARTY PAYMENTS,PRIVATE CONTRACTOR,REVENUE
Walsall Council,http://opendatacommunities.org/id/metropolitan-district-council/walsall,WC124-462,31.03.2021,ADULT SOCIAL CARE,ADVANCE HEALTH CARE (UK) LTD,15/03/2021,377.79,6541-Domiciliary Care,THIRD PARTY PAYMENTS,PRIVATE CONTRACTOR,REVENUE
Walsall Council,http://opendatacommunities.org/id/metropolitan-district-council/walsall,WC124-463,31.03.2021,ADULT SOCIAL CARE,ADVANCE HEALTH CARE (UK) LTD,15/03/2021,539.70,6541-Domiciliary Care,THIRD PARTY PAYMENTS,PRIVATE CONTRACTOR,REVENUE
Walsall Council,http://opendatacommunities.org/id/metropolitan-district-council/walsall,WC124-464,31.03.2021,ADULT SOCIAL CARE,ADVANCE HEALTH CARE (UK) LTD,15/03/2021,485.80,6541-Domiciliary Care,THIRD PARTY PAYMENTS,PRIVATE CONTRACTOR,REVENUE
Walsall Council,http://opendatacommunities.org/id/metropolitan-district-council/walsall,WC124-465,31.03.2021,ADULT SOCIAL CARE,ADVANCE HEALTH CARE (UK) LTD,15/03/2021,501.15,6541-Domiciliary Care,THIRD PARTY PAYMENTS,PRIVATE CONTRACTOR,REVENUE
Walsall Council,http://opendatacommunities.org/id/metropolitan-district-council/walsall,WC124-466,31.03.2021,ADULT SOCIAL CARE,ADVANCE HEALTH CARE (UK) LTD,15/03/2021,431.76,6541-Domiciliary Care,THIRD PARTY PAYMENTS,PRIVATE CONTRACTOR,REVENUE
Walsall Council,http://opendatacommunities.org/id/metropolitan-district-council/walsall,WC124-467,31.03.2021,ADULT SOCIAL CARE,ADVANCE HEALTH CARE (UK) LTD,15/03/2021,485.73,6541-Domiciliary Care,THIRD PARTY PAYMENTS,PRIVATE CONTRACTOR,REVENUE
Walsall Council,http://opendatacommunities.org/id/metropolitan-district-council/walsall,WC124-468,31.03.2021,ADULT SOCIAL CARE,ADVANCE HEALTH CARE (UK) LTD,15/03/2021,824.97,6541-Domiciliary Care,THIRD PARTY PAYMENTS,PRIVATE CONTRACTOR,REVENUE
Walsall Council,http://opendatacommunities.org/id/metropolitan-district-council/walsall,WC124-469,31.03.2021,ADULT SOCIAL CARE,ADVANCE HEALTH CARE (UK) LTD,15/03/2021,485.73,6541-Domiciliary Care,THIRD PARTY PAYMENTS,PRIVATE CONTRACTOR,REVENUE
Walsall Council,http://opendatacommunities.org/id/metropolitan-district-council/walsall,WC124-470,31.03.2021,ADULT SOCIAL CARE,ADVANCE HEALTH CARE (UK) LTD,15/03/2021,485.73,6541-Domiciliary Care,THIRD PARTY PAYMENTS,PRIVATE CONTRACTOR,REVENUE
Walsall Council,http://opendatacommunities.org/id/metropolitan-district-council/walsall,WC124-471,31.03.2021,ADULT SOCIAL CARE,ADVANCE HEALTH CARE (UK) LTD,15/03/2021,431.76,6541-Domiciliary Care,THIRD PARTY PAYMENTS,PRIVATE CONTRACTOR,REVENUE
Walsall Council,http://opendatacommunities.org/id/metropolitan-district-council/walsall,WC124-472,31.03.2021,ADULT SOCIAL CARE,ADVANCE HEALTH CARE (UK) LTD,15/03/2021,539.70,6541-Domiciliary Care,THIRD PARTY PAYMENTS,PRIVATE CONTRACTOR,REVENUE
Walsall Council,http://opendatacommunities.org/id/metropolitan-district-council/walsall,WC124-473,31.03.2021,ADULT SOCIAL CARE,ADVANCE HEALTH CARE (UK) LTD,15/03/2021,431.76,6541-Domiciliary Care,THIRD PARTY PAYMENTS,PRIVATE CONTRACTOR,REVENUE
Walsall Council,http://opendatacommunities.org/id/metropolitan-district-council/walsall,WC124-474,31.03.2021,ADULT SOCIAL CARE,ADVANCE HEALTH CARE (UK) LTD,15/03/2021,339.24,6541-Domiciliary Care,THIRD PARTY PAYMENTS,PRIVATE CONTRACTOR,REVENUE
Walsall Council,http://opendatacommunities.org/id/metropolitan-district-council/walsall,WC124-475,31.03.2021,ADULT SOCIAL CARE,ADVANCE HEALTH CARE (UK) LTD,15/03/2021,701.61,6541-Domiciliary Care,THIRD PARTY PAYMENTS,PRIVATE CONTRACTOR,REVENUE
Walsall Council,http://opendatacommunities.org/id/metropolitan-district-council/walsall,WC124-476,31.03.2021,ADULT SOCIAL CARE,ADVANCE HEALTH CARE (UK) LTD,15/03/2021,431.76,6541-Domiciliary Care,THIRD PARTY PAYMENTS,PRIVATE CONTRACTOR,REVENUE
Walsall Council,http://opendatacommunities.org/id/metropolitan-district-council/walsall,WC124-477,31.03.2021,ADULT SOCIAL CARE,ADVANCE HEALTH CARE (UK) LTD,15/03/2021,485.73,6541-Domiciliary Care,THIRD PARTY PAYMENTS,PRIVATE CONTRACTOR,REVENUE
Walsall Council,http://opendatacommunities.org/id/metropolitan-district-council/walsall,WC124-478,31.03.2021,ADULT SOCIAL CARE,ADVANCE HEALTH CARE (UK) LTD,15/03/2021,485.73,6541-Domiciliary Care,THIRD PARTY PAYMENTS,PRIVATE CONTRACTOR,REVENUE
Walsall Council,http://opendatacommunities.org/id/metropolitan-district-council/walsall,WC124-479,31.03.2021,ADULT SOCIAL CARE,ADVANCE HEALTH CARE (UK) LTD,15/03/2021,377.79,6541-Domiciliary Care,THIRD PARTY PAYMENTS,PRIVATE CONTRACTOR,REVENUE
Walsall Council,http://opendatacommunities.org/id/metropolitan-district-council/walsall,WC124-480,31.03.2021,ADULT SOCIAL CARE,ADVANCE HEALTH CARE (UK) LTD,15/03/2021,485.73,6541-Domiciliary Care,THIRD PARTY PAYMENTS,PRIVATE CONTRACTOR,REVENUE
Walsall Council,http://opendatacommunities.org/id/metropolitan-district-council/walsall,WC124-481,31.03.2021,ADULT SOCIAL CARE,ADVANCE HEALTH CARE (UK) LTD,15/03/2021,431.76,6541-Domiciliary Care,THIRD PARTY PAYMENTS,PRIVATE CONTRACTOR,REVENUE
Walsall Council,http://opendatacommunities.org/id/metropolitan-district-council/walsall,WC124-482,31.03.2021,ADULT SOCIAL CARE,ADVANCE HEALTH CARE (UK) LTD,15/03/2021,485.73,6541-Domiciliary Care,THIRD PARTY PAYMENTS,PRIVATE CONTRACTOR,REVENUE
Walsall Council,http://opendatacommunities.org/id/metropolitan-district-council/walsall,WC124-483,31.03.2021,ADULT SOCIAL CARE,ADVANCE HEALTH CARE (UK) LTD,15/03/2021,431.76,6541-Domiciliary Care,THIRD PARTY PAYMENTS,PRIVATE CONTRACTOR,REVENUE
Walsall Council,http://opendatacommunities.org/id/metropolitan-district-council/walsall,WC124-484,31.03.2021,ADULT SOCIAL CARE,ADVANCE HEALTH CARE (UK) LTD,15/03/2021,359.80,6541-Domiciliary Care,THIRD PARTY PAYMENTS,PRIVATE CONTRACTOR,REVENUE
Walsall Council,http://opendatacommunities.org/id/metropolitan-district-council/walsall,WC124-485,31.03.2021,ADULT SOCIAL CARE,ADVANCE HEALTH CARE (UK) LTD,15/03/2021,359.80,6541-Domiciliary Care,THIRD PARTY PAYMENTS,PRIVATE CONTRACTOR,REVENUE
Walsall Council,http://opendatacommunities.org/id/metropolitan-district-council/walsall,WC124-486,31.03.2021,ADULT SOCIAL CARE,ADVANCE HEALTH CARE (UK) LTD,15/03/2021,431.76,6541-Domiciliary Care,THIRD PARTY PAYMENTS,PRIVATE CONTRACTOR,REVENUE
Walsall Council,http://opendatacommunities.org/id/metropolitan-district-council/walsall,WC124-487,31.03.2021,ADULT SOCIAL CARE,ADVANCE HEALTH CARE (UK) LTD,15/03/2021,755.58,6541-Domiciliary Care,THIRD PARTY PAYMENTS,PRIVATE CONTRACTOR,REVENUE
Walsall Council,http://opendatacommunities.org/id/metropolitan-district-council/walsall,WC124-488,31.03.2021,ADULT SOCIAL CARE,ADVANCE HEALTH CARE (UK) LTD,15/03/2021,431.76,6541-Domiciliary Care,THIRD PARTY PAYMENTS,PRIVATE CONTRACTOR,REVENUE
Walsall Council,http://opendatacommunities.org/id/metropolitan-district-council/walsall,WC124-489,31.03.2021,ADULT SOCIAL CARE,ADVANCE HEALTH CARE (UK) LTD,15/03/2021,323.82,6541-Domiciliary Care,THIRD PARTY PAYMENTS,PRIVATE CONTRACTOR,REVENUE
Walsall Council,http://opendatacommunities.org/id/metropolitan-district-council/walsall,WC124-490,31.03.2021,ADULT SOCIAL CARE,ADVANCE HEALTH CARE (UK) LTD,15/03/2021,431.76,6541-Domiciliary Care,THIRD PARTY PAYMENTS,PRIVATE CONTRACTOR,REVENUE
Walsall Council,http://opendatacommunities.org/id/metropolitan-district-council/walsall,WC124-491,31.03.2021,ADULT SOCIAL CARE,ADVANCE HEALTH CARE (UK) LTD,15/03/2021,377.79,6541-Domiciliary Care,THIRD PARTY PAYMENTS,PRIVATE CONTRACTOR,REVENUE
Walsall Council,http://opendatacommunities.org/id/metropolitan-district-council/walsall,WC124-492,31.03.2021,ADULT SOCIAL CARE,ADVANCE HEALTH CARE (UK) LTD,15/03/2021,485.73,6541-Domiciliary Care,THIRD PARTY PAYMENTS,PRIVATE CONTRACTOR,REVENUE
Walsall Council,http://opendatacommunities.org/id/metropolitan-district-council/walsall,WC124-493,31.03.2021,ADULT SOCIAL CARE,ADVANCE HEALTH CARE (UK) LTD,15/03/2021,449.75,6541-Domiciliary Care,THIRD PARTY PAYMENTS,PRIVATE CONTRACTOR,REVENUE
Walsall Council,http://opendatacommunities.org/id/metropolitan-district-council/walsall,WC124-494,31.03.2021,ADULT SOCIAL CARE,ADVANCE HEALTH CARE (UK) LTD,29/03/2021,439.47,6541-Domiciliary Care,THIRD PARTY PAYMENTS,PRIVATE CONTRACTOR,REVENUE
Walsall Council,http://opendatacommunities.org/id/metropolitan-district-council/walsall,WC124-495,31.03.2021,ADULT SOCIAL CARE,ADVANCE HEALTH CARE (UK) LTD,29/03/2021,485.73,6541-Domiciliary Care,THIRD PARTY PAYMENTS,PRIVATE CONTRACTOR,REVENUE
Walsall Council,http://opendatacommunities.org/id/metropolitan-district-council/walsall,WC124-496,31.03.2021,ADULT SOCIAL CARE,ADVANCE HEALTH CARE (UK) LTD,29/03/2021,863.52,6541-Domiciliary Care,THIRD PARTY PAYMENTS,PRIVATE CONTRACTOR,REVENUE
Walsall Council,http://opendatacommunities.org/id/metropolitan-district-council/walsall,WC124-497,31.03.2021,ADULT SOCIAL CARE,ADVANCE HEALTH CARE (UK) LTD,29/03/2021,323.82,6541-Domiciliary Care,THIRD PARTY PAYMENTS,PRIVATE CONTRACTOR,REVENUE
Walsall Council,http://opendatacommunities.org/id/metropolitan-district-council/walsall,WC124-498,31.03.2021,ADULT SOCIAL CARE,ADVANCE HEALTH CARE (UK) LTD,29/03/2021,377.79,6541-Domiciliary Care,THIRD PARTY PAYMENTS,PRIVATE CONTRACTOR,REVENUE
Walsall Council,http://opendatacommunities.org/id/metropolitan-district-council/walsall,WC124-499,31.03.2021,ADULT SOCIAL CARE,ADVANCE HEALTH CARE (UK) LTD,29/03/2021,251.86,6541-Domiciliary Care,THIRD PARTY PAYMENTS,PRIVATE CONTRACTOR,REVENUE
Walsall Council,http://opendatacommunities.org/id/metropolitan-district-council/walsall,WC124-500,31.03.2021,ADULT SOCIAL CARE,ADVANCE HEALTH CARE (UK) LTD,29/03/2021,377.79,6541-Domiciliary Care,THIRD PARTY PAYMENTS,PRIVATE CONTRACTOR,REVENUE
Walsall Council,http://opendatacommunities.org/id/metropolitan-district-council/walsall,WC124-501,31.03.2021,ADULT SOCIAL CARE,ADVANCE HEALTH CARE (UK) LTD,29/03/2021,377.79,6541-Domiciliary Care,THIRD PARTY PAYMENTS,PRIVATE CONTRACTOR,REVENUE
Walsall Council,http://opendatacommunities.org/id/metropolitan-district-council/walsall,WC124-502,31.03.2021,ADULT SOCIAL CARE,ADVANCE HEALTH CARE (UK) LTD,29/03/2021,485.73,6541-Domiciliary Care,THIRD PARTY PAYMENTS,PRIVATE CONTRACTOR,REVENUE
Walsall Council,http://opendatacommunities.org/id/metropolitan-district-council/walsall,WC124-503,31.03.2021,ADULT SOCIAL CARE,ADVANCE HEALTH CARE (UK) LTD,29/03/2021,485.80,6541-Domiciliary Care,THIRD PARTY PAYMENTS,PRIVATE CONTRACTOR,REVENUE
Walsall Council,http://opendatacommunities.org/id/metropolitan-district-council/walsall,WC124-504,31.03.2021,ADULT SOCIAL CARE,ADVANCE HEALTH CARE (UK) LTD,29/03/2021,501.15,6541-Domiciliary Care,THIRD PARTY PAYMENTS,PRIVATE CONTRACTOR,REVENUE
Walsall Council,http://opendatacommunities.org/id/metropolitan-district-council/walsall,WC124-505,31.03.2021,ADULT SOCIAL CARE,ADVANCE HEALTH CARE (UK) LTD,29/03/2021,431.76,6541-Domiciliary Care,THIRD PARTY PAYMENTS,PRIVATE CONTRACTOR,REVENUE
Walsall Council,http://opendatacommunities.org/id/metropolitan-district-council/walsall,WC124-506,31.03.2021,ADULT SOCIAL CARE,ADVANCE HEALTH CARE (UK) LTD,29/03/2021,431.76,6541-Domiciliary Care,THIRD PARTY PAYMENTS,PRIVATE CONTRACTOR,REVENUE
Walsall Council,http://opendatacommunities.org/id/metropolitan-district-council/walsall,WC124-507,31.03.2021,ADULT SOCIAL CARE,ADVANCE HEALTH CARE (UK) LTD,29/03/2021,359.80,6541-Domiciliary Care,THIRD PARTY PAYMENTS,PRIVATE CONTRACTOR,REVENUE
Walsall Council,http://opendatacommunities.org/id/metropolitan-district-council/walsall,WC124-508,31.03.2021,ADULT SOCIAL CARE,ADVANCE HEALTH CARE (UK) LTD,29/03/2021,539.70,6541-Domiciliary Care,THIRD PARTY PAYMENTS,PRIVATE CONTRACTOR,REVENUE
Walsall Council,http://opendatacommunities.org/id/metropolitan-district-council/walsall,WC124-509,31.03.2021,ADULT SOCIAL CARE,ADVANCE HEALTH CARE (UK) LTD,29/03/2021,485.73,6541-Domiciliary Care,THIRD PARTY PAYMENTS,PRIVATE CONTRACTOR,REVENUE
Walsall Council,http://opendatacommunities.org/id/metropolitan-district-council/walsall,WC124-510,31.03.2021,ADULT SOCIAL CARE,ADVANCE HEALTH CARE (UK) LTD,29/03/2021,323.82,6541-Domiciliary Care,THIRD PARTY PAYMENTS,PRIVATE CONTRACTOR,REVENUE
Walsall Council,http://opendatacommunities.org/id/metropolitan-district-council/walsall,WC124-511,31.03.2021,ADULT SOCIAL CARE,ADVANCE HEALTH CARE (UK) LTD,29/03/2021,701.61,6541-Domiciliary Care,THIRD PARTY PAYMENTS,PRIVATE CONTRACTOR,REVENUE
Walsall Council,http://opendatacommunities.org/id/metropolitan-district-council/walsall,WC124-512,31.03.2021,ADULT SOCIAL CARE,ADVANCE HEALTH CARE (UK) LTD,29/03/2021,431.76,6541-Domiciliary Care,THIRD PARTY PAYMENTS,PRIVATE CONTRACTOR,REVENUE
Walsall Council,http://opendatacommunities.org/id/metropolitan-district-council/walsall,WC124-513,31.03.2021,ADULT SOCIAL CARE,ADVANCE HEALTH CARE (UK) LTD,29/03/2021,431.76,6541-Domiciliary Care,THIRD PARTY PAYMENTS,PRIVATE CONTRACTOR,REVENUE
Walsall Council,http://opendatacommunities.org/id/metropolitan-district-council/walsall,WC124-514,31.03.2021,ADULT SOCIAL CARE,ADVANCE HEALTH CARE (UK) LTD,29/03/2021,755.58,6541-Domiciliary Care,THIRD PARTY PAYMENTS,PRIVATE CONTRACTOR,REVENUE
Walsall Council,http://opendatacommunities.org/id/metropolitan-district-council/walsall,WC124-515,31.03.2021,ADULT SOCIAL CARE,ADVANCE HEALTH CARE (UK) LTD,29/03/2021,359.80,6541-Domiciliary Care,THIRD PARTY PAYMENTS,PRIVATE CONTRACTOR,REVENUE
Walsall Council,http://opendatacommunities.org/id/metropolitan-district-council/walsall,WC124-516,31.03.2021,ADULT SOCIAL CARE,ADVANCE HEALTH CARE (UK) LTD,29/03/2021,485.73,6541-Domiciliary Care,THIRD PARTY PAYMENTS,PRIVATE CONTRACTOR,REVENUE
Walsall Council,http://opendatacommunities.org/id/metropolitan-district-council/walsall,WC124-517,31.03.2021,ADULT SOCIAL CARE,ADVANCE HEALTH CARE (UK) LTD,29/03/2021,485.73,6541-Domiciliary Care,THIRD PARTY PAYMENTS,PRIVATE CONTRACTOR,REVENUE
Walsall Council,http://opendatacommunities.org/id/metropolitan-district-council/walsall,WC124-518,31.03.2021,ADULT SOCIAL CARE,ADVANCE HEALTH CARE (UK) LTD,29/03/2021,485.73,6541-Domiciliary Care,THIRD PARTY PAYMENTS,PRIVATE CONTRACTOR,REVENUE
Walsall Council,http://opendatacommunities.org/id/metropolitan-district-council/walsall,WC124-519,31.03.2021,ADULT SOCIAL CARE,ADVANCE HEALTH CARE (UK) LTD,29/03/2021,824.97,6541-Domiciliary Care,THIRD PARTY PAYMENTS,PRIVATE CONTRACTOR,REVENUE
Walsall Council,http://opendatacommunities.org/id/metropolitan-district-council/walsall,WC124-520,31.03.2021,ADULT SOCIAL CARE,ADVANCE HEALTH CARE (UK) LTD,29/03/2021,485.73,6541-Domiciliary Care,THIRD PARTY PAYMENTS,PRIVATE CONTRACTOR,REVENUE
Walsall Council,http://opendatacommunities.org/id/metropolitan-district-council/walsall,WC124-521,31.03.2021,ADULT SOCIAL CARE,ADVANCE HEALTH CARE (UK) LTD,29/03/2021,485.73,6541-Domiciliary Care,THIRD PARTY PAYMENTS,PRIVATE CONTRACTOR,REVENUE
Walsall Council,http://opendatacommunities.org/id/metropolitan-district-council/walsall,WC124-522,31.03.2021,ADULT SOCIAL CARE,ADVANCE HEALTH CARE (UK) LTD,29/03/2021,431.76,6541-Domiciliary Care,THIRD PARTY PAYMENTS,PRIVATE CONTRACTOR,REVENUE
Walsall Council,http://opendatacommunities.org/id/metropolitan-district-council/walsall,WC124-523,31.03.2021,ADULT SOCIAL CARE,ADVANCE HEALTH CARE (UK) LTD,29/03/2021,539.70,6541-Domiciliary Care,THIRD PARTY PAYMENTS,PRIVATE CONTRACTOR,REVENUE
Walsall Council,http://opendatacommunities.org/id/metropolitan-district-council/walsall,WC124-524,31.03.2021,ADULT SOCIAL CARE,ADVANCE HEALTH CARE (UK) LTD,29/03/2021,431.76,6541-Domiciliary Care,THIRD PARTY PAYMENTS,PRIVATE CONTRACTOR,REVENUE
Walsall Council,http://opendatacommunities.org/id/metropolitan-district-council/walsall,WC124-525,31.03.2021,ADULT SOCIAL CARE,ADVANCE HEALTH CARE (UK) LTD,29/03/2021,431.76,6541-Domiciliary Care,THIRD PARTY PAYMENTS,PRIVATE CONTRACTOR,REVENUE
Walsall Council,http://opendatacommunities.org/id/metropolitan-district-council/walsall,WC124-526,31.03.2021,ADULT SOCIAL CARE,ADVANCE HEALTH CARE (UK) LTD,29/03/2021,377.79,6541-Domiciliary Care,THIRD PARTY PAYMENTS,PRIVATE CONTRACTOR,REVENUE
Walsall Council,http://opendatacommunities.org/id/metropolitan-district-council/walsall,WC124-527,31.03.2021,ADULT SOCIAL CARE,ADVANCE HEALTH CARE (UK) LTD,29/03/2021,485.73,6541-Domiciliary Care,THIRD PARTY PAYMENTS,PRIVATE CONTRACTOR,REVENUE
Walsall Council,http://opendatacommunities.org/id/metropolitan-district-council/walsall,WC124-528,31.03.2021,ADULT SOCIAL CARE,ADVANCE HEALTH CARE (UK) LTD,29/03/2021,323.82,6541-Domiciliary Care,THIRD PARTY PAYMENTS,PRIVATE CONTRACTOR,REVENUE
Walsall Council,http://opendatacommunities.org/id/metropolitan-district-council/walsall,WC124-529,31.03.2021,ADULT SOCIAL CARE,ADVANCE HEALTH CARE (UK) LTD,29/03/2021,431.76,6541-Domiciliary Care,THIRD PARTY PAYMENTS,PRIVATE CONTRACTOR,REVENUE
Walsall Council,http://opendatacommunities.org/id/metropolitan-district-council/walsall,WC124-530,31.03.2021,ADULT SOCIAL CARE,ADVANCE HEALTH CARE (UK) LTD,29/03/2021,449.75,6541-Domiciliary Care,THIRD PARTY PAYMENTS,PRIVATE CONTRACTOR,REVENUE
Walsall Council,http://opendatacommunities.org/id/metropolitan-district-council/walsall,WC124-531,31.03.2021,ADULT SOCIAL CARE,ADVANCE HEALTH CARE (UK) LTD,29/03/2021,539.70,6541-Domiciliary Care,THIRD PARTY PAYMENTS,PRIVATE CONTRACTOR,REVENUE
Walsall Council,http://opendatacommunities.org/id/metropolitan-district-council/walsall,WC124-532,31.03.2021,ADULT SOCIAL CARE,ADVANCE HEALTH CARE (UK) LTD,29/03/2021,485.73,6541-Domiciliary Care,THIRD PARTY PAYMENTS,PRIVATE CONTRACTOR,REVENUE
Walsall Council,http://opendatacommunities.org/id/metropolitan-district-council/walsall,WC124-533,31.03.2021,ADULT SOCIAL CARE,ADVANCE HEALTH CARE (UK) LTD,29/03/2021,485.80,6541-Domiciliary Care,THIRD PARTY PAYMENTS,PRIVATE CONTRACTOR,REVENUE
Walsall Council,http://opendatacommunities.org/id/metropolitan-district-council/walsall,WC124-534,31.03.2021,ADULT SOCIAL CARE,ADVANCE HEALTH CARE (UK) LTD,29/03/2021,501.15,6541-Domiciliary Care,THIRD PARTY PAYMENTS,PRIVATE CONTRACTOR,REVENUE
Walsall Council,http://opendatacommunities.org/id/metropolitan-district-council/walsall,WC124-535,31.03.2021,ADULT SOCIAL CARE,ADVANCE HEALTH CARE (UK) LTD,29/03/2021,485.73,6541-Domiciliary Care,THIRD PARTY PAYMENTS,PRIVATE CONTRACTOR,REVENUE
Walsall Council,http://opendatacommunities.org/id/metropolitan-district-council/walsall,WC124-536,31.03.2021,ADULT SOCIAL CARE,ADVANCE HEALTH CARE (UK) LTD,29/03/2021,824.97,6541-Domiciliary Care,THIRD PARTY PAYMENTS,PRIVATE CONTRACTOR,REVENUE
Walsall Council,http://opendatacommunities.org/id/metropolitan-district-council/walsall,WC124-537,31.03.2021,ADULT SOCIAL CARE,ADVANCE HEALTH CARE (UK) LTD,29/03/2021,485.73,6541-Domiciliary Care,THIRD PARTY PAYMENTS,PRIVATE CONTRACTOR,REVENUE
Walsall Council,http://opendatacommunities.org/id/metropolitan-district-council/walsall,WC124-538,31.03.2021,ADULT SOCIAL CARE,ADVANCE HEALTH CARE (UK) LTD,29/03/2021,485.73,6541-Domiciliary Care,THIRD PARTY PAYMENTS,PRIVATE CONTRACTOR,REVENUE
Walsall Council,http://opendatacommunities.org/id/metropolitan-district-council/walsall,WC124-539,31.03.2021,ADULT SOCIAL CARE,ADVANCE HEALTH CARE (UK) LTD,29/03/2021,431.76,6541-Domiciliary Care,THIRD PARTY PAYMENTS,PRIVATE CONTRACTOR,REVENUE
Walsall Council,http://opendatacommunities.org/id/metropolitan-district-council/walsall,WC124-540,31.03.2021,ADULT SOCIAL CARE,ADVANCE HEALTH CARE (UK) LTD,29/03/2021,431.76,6541-Domiciliary Care,THIRD PARTY PAYMENTS,PRIVATE CONTRACTOR,REVENUE
Walsall Council,http://opendatacommunities.org/id/metropolitan-district-council/walsall,WC124-541,31.03.2021,ADULT SOCIAL CARE,ADVANCE HEALTH CARE (UK) LTD,29/03/2021,323.82,6541-Domiciliary Care,THIRD PARTY PAYMENTS,PRIVATE CONTRACTOR,REVENUE
Walsall Council,http://opendatacommunities.org/id/metropolitan-district-council/walsall,WC124-542,31.03.2021,ADULT SOCIAL CARE,ADVANCE HEALTH CARE (UK) LTD,29/03/2021,701.61,6541-Domiciliary Care,THIRD PARTY PAYMENTS,PRIVATE CONTRACTOR,REVENUE
Walsall Council,http://opendatacommunities.org/id/metropolitan-district-council/walsall,WC124-543,31.03.2021,ADULT SOCIAL CARE,ADVANCE HEALTH CARE (UK) LTD,29/03/2021,431.76,6541-Domiciliary Care,THIRD PARTY PAYMENTS,PRIVATE CONTRACTOR,REVENUE
Walsall Council,http://opendatacommunities.org/id/metropolitan-district-council/walsall,WC124-544,31.03.2021,ADULT SOCIAL CARE,ADVANCE HEALTH CARE (UK) LTD,29/03/2021,431.76,6541-Domiciliary Care,THIRD PARTY PAYMENTS,PRIVATE CONTRACTOR,REVENUE
Walsall Council,http://opendatacommunities.org/id/metropolitan-district-council/walsall,WC124-545,31.03.2021,ADULT SOCIAL CARE,ADVANCE HEALTH CARE (UK) LTD,29/03/2021,359.80,6541-Domiciliary Care,THIRD PARTY PAYMENTS,PRIVATE CONTRACTOR,REVENUE
Walsall Council,http://opendatacommunities.org/id/metropolitan-district-council/walsall,WC124-546,31.03.2021,ADULT SOCIAL CARE,ADVANCE HEALTH CARE (UK) LTD,29/03/2021,431.76,6541-Domiciliary Care,THIRD PARTY PAYMENTS,PRIVATE CONTRACTOR,REVENUE
Walsall Council,http://opendatacommunities.org/id/metropolitan-district-council/walsall,WC124-547,31.03.2021,ADULT SOCIAL CARE,ADVANCE HEALTH CARE (UK) LTD,29/03/2021,755.58,6541-Domiciliary Care,THIRD PARTY PAYMENTS,PRIVATE CONTRACTOR,REVENUE
Walsall Council,http://opendatacommunities.org/id/metropolitan-district-council/walsall,WC124-548,31.03.2021,ADULT SOCIAL CARE,ADVANCE HEALTH CARE (UK) LTD,29/03/2021,359.80,6541-Domiciliary Care,THIRD PARTY PAYMENTS,PRIVATE CONTRACTOR,REVENUE
Walsall Council,http://opendatacommunities.org/id/metropolitan-district-council/walsall,WC124-549,31.03.2021,ADULT SOCIAL CARE,ADVANCE HEALTH CARE (UK) LTD,29/03/2021,323.82,6541-Domiciliary Care,THIRD PARTY PAYMENTS,PRIVATE CONTRACTOR,REVENUE
Walsall Council,http://opendatacommunities.org/id/metropolitan-district-council/walsall,WC124-550,31.03.2021,ADULT SOCIAL CARE,ADVANCE HEALTH CARE (UK) LTD,29/03/2021,377.79,6541-Domiciliary Care,THIRD PARTY PAYMENTS,PRIVATE CONTRACTOR,REVENUE
Walsall Council,http://opendatacommunities.org/id/metropolitan-district-council/walsall,WC124-551,31.03.2021,ADULT SOCIAL CARE,ADVANCE HEALTH CARE (UK) LTD,29/03/2021,485.73,6541-Domiciliary Care,THIRD PARTY PAYMENTS,PRIVATE CONTRACTOR,REVENUE
Walsall Council,http://opendatacommunities.org/id/metropolitan-district-council/walsall,WC124-552,31.03.2021,ADULT SOCIAL CARE,ADVANCE HEALTH CARE (UK) LTD,29/03/2021,431.76,6541-Domiciliary Care,THIRD PARTY PAYMENTS,PRIVATE CONTRACTOR,REVENUE
Walsall Council,http://opendatacommunities.org/id/metropolitan-district-council/walsall,WC124-553,31.03.2021,ADULT SOCIAL CARE,ADVANCE HEALTH CARE (UK) LTD,29/03/2021,377.79,6541-Domiciliary Care,THIRD PARTY PAYMENTS,PRIVATE CONTRACTOR,REVENUE
Walsall Council,http://opendatacommunities.org/id/metropolitan-district-council/walsall,WC124-554,31.03.2021,ADULT SOCIAL CARE,ADVANCE HEALTH CARE (UK) LTD,29/03/2021,485.73,6541-Domiciliary Care,THIRD PARTY PAYMENTS,PRIVATE CONTRACTOR,REVENUE
Walsall Council,http://opendatacommunities.org/id/metropolitan-district-council/walsall,WC124-555,31.03.2021,ADULT SOCIAL CARE,ADVANCE HEALTH CARE (UK) LTD,29/03/2021,257.00,6541-Domiciliary Care,THIRD PARTY PAYMENTS,PRIVATE CONTRACTOR,REVENUE
Walsall Council,http://opendatacommunities.org/id/metropolitan-district-council/walsall,WC124-556,31.03.2021,ADULT SOCIAL CARE,ADVANCE HEALTH CARE (UK) LTD,29/03/2021,485.73,6541-Domiciliary Care,THIRD PARTY PAYMENTS,PRIVATE CONTRACTOR,REVENUE
Walsall Council,http://opendatacommunities.org/id/metropolitan-district-council/walsall,WC124-557,31.03.2021,ADULT SOCIAL CARE,ADVANCE HEALTH CARE (UK) LTD,29/03/2021,485.73,6541-Domiciliary Care,THIRD PARTY PAYMENTS,PRIVATE CONTRACTOR,REVENUE
Walsall Council,http://opendatacommunities.org/id/metropolitan-district-council/walsall,WC124-558,31.03.2021,ADULT SOCIAL CARE,ADVANCE HEALTH CARE (UK) LTD,29/03/2021,439.47,6541-Domiciliary Care,THIRD PARTY PAYMENTS,PRIVATE CONTRACTOR,REVENUE
Walsall Council,http://opendatacommunities.org/id/metropolitan-district-council/walsall,WC124-559,31.03.2021,ADULT SOCIAL CARE,ADVANCE HEALTH CARE (UK) LTD,29/03/2021,485.73,6541-Domiciliary Care,THIRD PARTY PAYMENTS,PRIVATE CONTRACTOR,REVENUE
Walsall Council,http://opendatacommunities.org/id/metropolitan-district-council/walsall,WC124-560,31.03.2021,ADULT SOCIAL CARE,ADVANCE HEALTH CARE (UK) LTD,29/03/2021,863.52,6541-Domiciliary Care,THIRD PARTY PAYMENTS,PRIVATE CONTRACTOR,REVENUE
Walsall Council,http://opendatacommunities.org/id/metropolitan-district-council/walsall,WC124-561,31.03.2021,ADULT SOCIAL CARE,ADVANCE HEALTH CARE (UK) LTD,29/03/2021,323.82,6541-Domiciliary Care,THIRD PARTY PAYMENTS,PRIVATE CONTRACTOR,REVENUE
Walsall Council,http://opendatacommunities.org/id/metropolitan-district-council/walsall,WC124-562,31.03.2021,ADULT SOCIAL CARE,ADVANCE HEALTH CARE (UK) LTD,29/03/2021,377.79,6541-Domiciliary Care,THIRD PARTY PAYMENTS,PRIVATE CONTRACTOR,REVENUE
Walsall Council,http://opendatacommunities.org/id/metropolitan-district-council/walsall,WC124-563,31.03.2021,ADULT SOCIAL CARE,ADVANCE HEALTH CARE (UK) LTD,29/03/2021,485.73,6541-Domiciliary Care,THIRD PARTY PAYMENTS,PRIVATE CONTRACTOR,REVENUE
Walsall Council,http://opendatacommunities.org/id/metropolitan-district-council/walsall,WC124-564,31.03.2021,ADULT SOCIAL CARE,ADVANCE HEALTH CARE (UK) LTD,29/03/2021,431.76,6541-Domiciliary Care,THIRD PARTY PAYMENTS,PRIVATE CONTRACTOR,REVENUE
Walsall Council,http://opendatacommunities.org/id/metropolitan-district-council/walsall,WC124-565,31.03.2021,ADULT SOCIAL CARE,ADVANCE HEALTH CARE (UK) LTD,29/03/2021,449.75,6541-Domiciliary Care,THIRD PARTY PAYMENTS,PRIVATE CONTRACTOR,REVENUE
Walsall Council,http://opendatacommunities.org/id/metropolitan-district-council/walsall,WC124-566,31.03.2021,ADULT SOCIAL CARE,ADVANCE HEALTH CARE (UK) LTD,30/03/2021,-485.73,6554-Professional Services-Priv Contractor & Other Agencies,THIRD PARTY PAYMENTS,PRIVATE CONTRACTOR,REVENUE
Walsall Council,http://opendatacommunities.org/id/metropolitan-district-council/walsall,WC124-567,31.03.2021,ADULT SOCIAL CARE,ADVANCE HEALTH CARE (UK) LTD,30/03/2021,-485.73,6554-Professional Services-Priv Contractor & Other Agencies,THIRD PARTY PAYMENTS,PRIVATE CONTRACTOR,REVENUE
Walsall Council,http://opendatacommunities.org/id/metropolitan-district-council/walsall,WC124-568,31.03.2021,ADULT SOCIAL CARE,ADVANCE HEALTH CARE (UK) LTD,30/03/2021,-485.73,6554-Professional Services-Priv Contractor & Other Agencies,THIRD PARTY PAYMENTS,PRIVATE CONTRACTOR,REVENUE
Walsall Council,http://opendatacommunities.org/id/metropolitan-district-council/walsall,WC124-569,31.03.2021,ADULT SOCIAL CARE,ADVANCE HEALTH CARE (UK) LTD,30/03/2021,-485.73,6554-Professional Services-Priv Contractor & Other Agencies,THIRD PARTY PAYMENTS,PRIVATE CONTRACTOR,REVENUE
Walsall Council,http://opendatacommunities.org/id/metropolitan-district-council/walsall,WC124-570,31.03.2021,ADULT SOCIAL CARE,ADVANCE HEALTH CARE (UK) LTD,25/03/2021,-316.11,6554-Professional Services-Priv Contractor & Other Agencies,THIRD PARTY PAYMENTS,PRIVATE CONTRACTOR,REVENUE
Walsall Council,http://opendatacommunities.org/id/metropolitan-district-council/walsall,WC124-571,31.03.2021,ADULT SOCIAL CARE,ADVANCE HEALTH CARE (UK) LTD,25/03/2021,-485.73,6554-Professional Services-Priv Contractor & Other Agencies,THIRD PARTY PAYMENTS,PRIVATE CONTRACTOR,REVENUE
Walsall Council,http://opendatacommunities.org/id/metropolitan-district-council/walsall,WC124-572,31.03.2021,ADULT SOCIAL CARE,ADVANCE HEALTH CARE (UK) LTD,30/03/2021,-485.73,6554-Professional Services-Priv Contractor & Other Agencies,THIRD PARTY PAYMENTS,PRIVATE CONTRACTOR,REVENUE
Walsall Council,http://opendatacommunities.org/id/metropolitan-district-council/walsall,WC124-573,31.03.2021,ADULT SOCIAL CARE,ADVANCE HEALTH CARE (UK) LTD,25/03/2021,-485.73,6554-Professional Services-Priv Contractor & Other Agencies,THIRD PARTY PAYMENTS,PRIVATE CONTRACTOR,REVENUE
Walsall Council,http://opendatacommunities.org/id/metropolitan-district-council/walsall,WC124-574,31.03.2021,ADULT SOCIAL CARE,ADVANCE HEALTH CARE (UK) LTD,25/03/2021,-485.73,6554-Professional Services-Priv Contractor & Other Agencies,THIRD PARTY PAYMENTS,PRIVATE CONTRACTOR,REVENUE
Walsall Council,http://opendatacommunities.org/id/metropolitan-district-council/walsall,WC124-575,31.03.2021,ADULT SOCIAL CARE,ADVANCE HEALTH CARE (UK) LTD,30/03/2021,485.73,6554-Professional Services-Priv Contractor & Other Agencies,THIRD PARTY PAYMENTS,PRIVATE CONTRACTOR,REVENUE
Walsall Council,http://opendatacommunities.org/id/metropolitan-district-council/walsall,WC124-576,31.03.2021,ADULT SOCIAL CARE,ADVANCE HEALTH CARE (UK) LTD,25/03/2021,485.73,6554-Professional Services-Priv Contractor & Other Agencies,THIRD PARTY PAYMENTS,PRIVATE CONTRACTOR,REVENUE
Walsall Council,http://opendatacommunities.org/id/metropolitan-district-council/walsall,WC124-577,31.03.2021,ADULT SOCIAL CARE,ADVANCE HEALTH CARE (UK) LTD,26/03/2021,"13,333.32",6554-Other Expenses,SUPPLIES & SERVICES,EXPENSES,REVENUE
Walsall Council,http://opendatacommunities.org/id/metropolitan-district-council/walsall,WC124-578,31.03.2021,ADULT SOCIAL CARE,ADVANCE HEALTH CARE (UK) LTD,25/03/2021,485.73,6554-Professional Services-Priv Contractor & Other Agencies,THIRD PARTY PAYMENTS,PRIVATE CONTRACTOR,REVENUE
Walsall Council,http://opendatacommunities.org/id/metropolitan-district-council/walsall,WC124-579,31.03.2021,ADULT SOCIAL CARE,ADVANCE HEALTH CARE (UK) LTD,03/03/2021,539.70,6554-Professional Services-Priv Contractor & Other Agencies,THIRD PARTY PAYMENTS,PRIVATE CONTRACTOR,REVENUE
Walsall Council,http://opendatacommunities.org/id/metropolitan-district-council/walsall,WC124-580,31.03.2021,ADULT SOCIAL CARE,ADVANCE HEALTH CARE (UK) LTD,03/03/2021,971.46,6554-Professional Services-Priv Contractor & Other Agencies,THIRD PARTY PAYMENTS,PRIVATE CONTRACTOR,REVENUE
Walsall Council,http://opendatacommunities.org/id/metropolitan-district-council/walsall,WC124-581,31.03.2021,ADULT SOCIAL CARE,ADVANCE HEALTH CARE (UK) LTD,03/03/2021,319.97,6554-Professional Services-Priv Contractor & Other Agencies,THIRD PARTY PAYMENTS,PRIVATE CONTRACTOR,REVENUE
Walsall Council,http://opendatacommunities.org/id/metropolitan-district-council/walsall,WC124-582,31.03.2021,ADULT SOCIAL CARE,ADVANCE HEALTH CARE (UK) LTD,03/03/2021,277.56,6554-Professional Services-Priv Contractor & Other Agencies,THIRD PARTY PAYMENTS,PRIVATE CONTRACTOR,REVENUE
Walsall Council,http://opendatacommunities.org/id/metropolitan-district-council/walsall,WC124-583,31.03.2021,ADULT SOCIAL CARE,ADVANCE HEALTH CARE (UK) LTD,03/03/2021,258.29,6554-Professional Services-Priv Contractor & Other Agencies,THIRD PARTY PAYMENTS,PRIVATE CONTRACTOR,REVENUE
Walsall Council,http://opendatacommunities.org/id/metropolitan-district-council/walsall,WC124-584,31.03.2021,ADULT SOCIAL CARE,ADVANCE HEALTH CARE (UK) LTD,30/03/2021,478.02,6554-Professional Services-Priv Contractor & Other Agencies,THIRD PARTY PAYMENTS,PRIVATE CONTRACTOR,REVENUE
Walsall Council,http://opendatacommunities.org/id/metropolitan-district-council/walsall,WC124-585,31.03.2021,ADULT SOCIAL CARE,ADVANCE HEALTH CARE (UK) LTD,30/03/2021,292.98,6554-Professional Services-Priv Contractor & Other Agencies,THIRD PARTY PAYMENTS,PRIVATE CONTRACTOR,REVENUE
Walsall Council,http://opendatacommunities.org/id/metropolitan-district-council/walsall,WC124-586,31.03.2021,ADULT SOCIAL CARE,ADVANCE HEALTH CARE (UK) LTD,30/03/2021,971.46,6554-Professional Services-Priv Contractor & Other Agencies,THIRD PARTY PAYMENTS,PRIVATE CONTRACTOR,REVENUE
Walsall Council,http://opendatacommunities.org/id/metropolitan-district-council/walsall,WC124-587,31.03.2021,ADULT SOCIAL CARE,ADVANCE HEALTH CARE (UK) LTD,30/03/2021,416.34,6554-Professional Services-Priv Contractor & Other Agencies,THIRD PARTY PAYMENTS,PRIVATE CONTRACTOR,REVENUE
Walsall Council,http://opendatacommunities.org/id/metropolitan-district-council/walsall,WC124-588,31.03.2021,ADULT SOCIAL CARE,ADVANCE HEALTH CARE (UK) LTD,30/03/2021,971.46,6554-Professional Services-Priv Contractor & Other Agencies,THIRD PARTY PAYMENTS,PRIVATE CONTRACTOR,REVENUE
Walsall Council,http://opendatacommunities.org/id/metropolitan-district-council/walsall,WC124-589,31.03.2021,ADULT SOCIAL CARE,ADVANCE HEALTH CARE (UK) LTD,30/03/2021,493.44,6554-Professional Services-Priv Contractor & Other Agencies,THIRD PARTY PAYMENTS,PRIVATE CONTRACTOR,REVENUE
Walsall Council,http://opendatacommunities.org/id/metropolitan-district-council/walsall,WC124-590,31.03.2021,ADULT SOCIAL CARE,ADVANCE HEALTH CARE (UK) LTD,30/03/2021,485.73,6554-Professional Services-Priv Contractor & Other Agencies,THIRD PARTY PAYMENTS,PRIVATE CONTRACTOR,REVENUE
Walsall Council,http://opendatacommunities.org/id/metropolitan-district-council/walsall,WC124-591,31.03.2021,ADULT SOCIAL CARE,ADVANCE HEALTH CARE (UK) LTD,30/03/2021,281.42,6554-Professional Services-Priv Contractor & Other Agencies,THIRD PARTY PAYMENTS,PRIVATE CONTRACTOR,REVENUE
Walsall Council,http://opendatacommunities.org/id/metropolitan-district-council/walsall,WC124-592,31.03.2021,ADULT SOCIAL CARE,ADVANCE HEALTH CARE (UK) LTD,23/03/2021,"13,434.11",6550-Professional Services-Priv Contractor & Other Agencies,THIRD PARTY PAYMENTS,PRIVATE CONTRACTOR,REVENUE
Walsall Council,http://opendatacommunities.org/id/metropolitan-district-council/walsall,WC124-593,31.03.2021,ADULT SOCIAL CARE,ADVANCE HEALTH CARE (UK) LTD,23/03/2021,"28,016.24",6550-Professional Services-Priv Contractor & Other Agencies,THIRD PARTY PAYMENTS,PRIVATE CONTRACTOR,REVENUE
Walsall Council,http://opendatacommunities.org/id/metropolitan-district-council/walsall,WC124-594,31.03.2021,ADULT SOCIAL CARE,ADVANCE HEALTH CARE (UK) LTD,10/03/2021,956.16,6541-Domiciliary Care,THIRD PARTY PAYMENTS,PRIVATE CONTRACTOR,REVENUE
Walsall Council,http://opendatacommunities.org/id/metropolitan-district-council/walsall,WC124-595,31.03.2021,ADULT SOCIAL CARE,ADVANCE HEALTH CARE (UK) LTD,10/03/2021,817.40,6541-Domiciliary Care,THIRD PARTY PAYMENTS,PRIVATE CONTRACTOR,REVENUE
Walsall Council,http://opendatacommunities.org/id/metropolitan-district-council/walsall,WC124-596,31.03.2021,ADULT SOCIAL CARE,ADVANCE HEALTH CARE (UK) LTD,10/03/2021,"2,734.48",6541-Domiciliary Care,THIRD PARTY PAYMENTS,PRIVATE CONTRACTOR,REVENUE
Walsall Council,http://opendatacommunities.org/id/metropolitan-district-council/walsall,WC124-597,31.03.2021,ADULT SOCIAL CARE,ADVANCE HEALTH CARE (UK) LTD,10/03/2021,"2,086.84",6541-Domiciliary Care,THIRD PARTY PAYMENTS,PRIVATE CONTRACTOR,REVENUE
Walsall Council,http://opendatacommunities.org/id/metropolitan-district-council/walsall,WC124-598,31.03.2021,ADULT SOCIAL CARE,ADVANCE HEALTH CARE (UK) LTD,10/03/2021,719.60,6541-Domiciliary Care,THIRD PARTY PAYMENTS,PRIVATE CONTRACTOR,REVENUE
Walsall Council,http://opendatacommunities.org/id/metropolitan-district-council/walsall,WC124-599,31.03.2021,ADULT SOCIAL CARE,ADVANCE HEALTH CARE (UK) LTD,10/03/2021,760.72,6541-Domiciliary Care,THIRD PARTY PAYMENTS,PRIVATE CONTRACTOR,REVENUE
Walsall Council,http://opendatacommunities.org/id/metropolitan-district-council/walsall,WC124-600,31.03.2021,ADULT SOCIAL CARE,ADVANCE HEALTH CARE (UK) LTD,10/03/2021,"1,017.72",6541-Domiciliary Care,THIRD PARTY PAYMENTS,PRIVATE CONTRACTOR,REVENUE
Walsall Council,http://opendatacommunities.org/id/metropolitan-district-council/walsall,WC124-601,31.03.2021,ADULT SOCIAL CARE,ADVANCE HEALTH CARE (UK) LTD,10/03/2021,842.96,6541-Domiciliary Care,THIRD PARTY PAYMENTS,PRIVATE CONTRACTOR,REVENUE
Walsall Council,http://opendatacommunities.org/id/metropolitan-district-council/walsall,WC124-602,31.03.2021,ADULT SOCIAL CARE,ADVANCE HEALTH CARE (UK) LTD,10/03/2021,817.40,6541-Domiciliary Care,THIRD PARTY PAYMENTS,PRIVATE CONTRACTOR,REVENUE
Walsall Council,http://opendatacommunities.org/id/metropolitan-district-council/walsall,WC124-603,31.03.2021,ADULT SOCIAL CARE,ADVANCE HEALTH CARE (UK) LTD,10/03/2021,740.16,6541-Domiciliary Care,THIRD PARTY PAYMENTS,PRIVATE CONTRACTOR,REVENUE
Walsall Council,http://opendatacommunities.org/id/metropolitan-district-council/walsall,WC124-604,31.03.2021,ADULT SOCIAL CARE,ADVANCE HEALTH CARE (UK) LTD,30/03/2021,485.73,6554-Professional Services-Priv Contractor & Other Agencies,THIRD PARTY PAYMENTS,PRIVATE CONTRACTOR,REVENUE
Walsall Council,http://opendatacommunities.org/id/metropolitan-district-council/walsall,WC124-605,31.03.2021,ADULT SOCIAL CARE,ADVINIA CARE HOMES LTD - HAMMERWICH HALL CARE HOME,15/03/2021,"2,044.00",6541-Residential,THIRD PARTY PAYMENTS,PRIVATE CONTRACTOR,REVENUE
Walsall Council,http://opendatacommunities.org/id/metropolitan-district-council/walsall,WC124-606,31.03.2021,ADULT SOCIAL CARE,ADVINIA CARE HOMES LTD - HAMMERWICH HALL CARE HOME,15/03/2021,"2,308.00",6541-Residential EMI,THIRD PARTY PAYMENTS,PRIVATE CONTRACTOR,REVENUE
Walsall Council,http://opendatacommunities.org/id/metropolitan-district-council/walsall,WC124-607,31.03.2021,ECONOMY & ENVIRONMENT,AECOM INFRASTRUCTURE & ENVIRONMENT UK LIMITED,12/03/2021,858.40,6411-Professional Fees & Services,SUPPLIES & SERVICES,SERVICES,REVENUE
Walsall Council,http://opendatacommunities.org/id/metropolitan-district-council/walsall,WC124-608,31.03.2021,ECONOMY & ENVIRONMENT,AECOM INFRASTRUCTURE & ENVIRONMENT UK LIMITED,12/03/2021,"1,955.13",6411-Professional Fees & Services,SUPPLIES & SERVICES,SERVICES,REVENUE
Walsall Council,http://opendatacommunities.org/id/metropolitan-district-council/walsall,WC124-609,31.03.2021,CHILDRENS,REDACTED,05/03/2021,540.00,6223-Foster Carers Maintenance Allowance,TRANSFER PAYMENTS,CHILDREN SOCIAL SERVICES CLIENT,REVENUE
Walsall Council,http://opendatacommunities.org/id/metropolitan-district-council/walsall,WC124-610,31.03.2021,CHILDRENS,REDACTED,05/03/2021,540.00,6223-Foster Carers Maintenance Allowance,TRANSFER PAYMENTS,CHILDREN SOCIAL SERVICES CLIENT,REVENUE
Walsall Council,http://opendatacommunities.org/id/metropolitan-district-council/walsall,WC124-611,31.03.2021,CHILDRENS,AHMAD & WILLIAMS SOLICITORS,01/03/2021,"1,031.20",6223-Professional Fees & Services,SUPPLIES & SERVICES,SERVICES,REVENUE
Walsall Council,http://opendatacommunities.org/id/metropolitan-district-council/walsall,WC124-612,31.03.2021,ADULT SOCIAL CARE,REDACTED,10/03/2021,"3,069.45",6541-Direct Payment,THIRD PARTY PAYMENTS,PRIVATE CONTRACTOR,REVENUE
Walsall Council,http://opendatacommunities.org/id/metropolitan-district-council/walsall,WC124-613,31.03.2021,ECONOMY & ENVIRONMENT,ALBERT JAGGER LTD,22/03/2021,388.50,6410-Materials to Stores,SUPPLIES & SERVICES,EQUIPMENT FURNITURE & MATERIALS,REVENUE
Walsall Council,http://opendatacommunities.org/id/metropolitan-district-council/walsall,WC124-614,31.03.2021,ECONOMY & ENVIRONMENT,ALBERT JAGGER LTD,02/03/2021,334.90,6410-Materials to Stores,SUPPLIES & SERVICES,EQUIPMENT FURNITURE & MATERIALS,REVENUE
Walsall Council,http://opendatacommunities.org/id/metropolitan-district-council/walsall,WC124-615,31.03.2021,ECONOMY & ENVIRONMENT,ALBERT JAGGER LTD,02/03/2021,280.10,6410-Materials to Stores,SUPPLIES & SERVICES,EQUIPMENT FURNITURE & MATERIALS,REVENUE
Walsall Council,http://opendatacommunities.org/id/metropolitan-district-council/walsall,WC124-616,31.03.2021,ADULT SOCIAL CARE,ALDERGROVE MANOR LTD,15/03/2021,"1,071.57",6541-Residential EMI,THIRD PARTY PAYMENTS,PRIVATE CONTRACTOR,REVENUE
Walsall Council,http://opendatacommunities.org/id/metropolitan-district-council/walsall,WC124-617,31.03.2021,CHILDRENS,ALDRIDGE & BARONS LIMITED,24/03/2021,"1,410.00",6241-Hire of Vehicle with Driver,TRANSPORT,DIRECT TRANSPORT COSTS,REVENUE
Walsall Council,http://opendatacommunities.org/id/metropolitan-district-council/walsall,WC124-618,31.03.2021,CHILDRENS,ALDRIDGE & BARONS LIMITED,24/03/2021,"1,160.90",6241-Hire of Vehicle with Driver,TRANSPORT,DIRECT TRANSPORT COSTS,REVENUE
Walsall Council,http://opendatacommunities.org/id/metropolitan-district-council/walsall,WC124-619,31.03.2021,CHILDRENS,ALDRIDGE & BARONS LIMITED,24/03/2021,"1,415.68",6241-Hire of Vehicle with Driver,TRANSPORT,DIRECT TRANSPORT COSTS,REVENUE
Walsall Council,http://opendatacommunities.org/id/metropolitan-district-council/walsall,WC124-620,31.03.2021,CHILDRENS,ALDRIDGE & BARONS LIMITED,24/03/2021,910.00,6241-Hire of Vehicle with Driver,TRANSPORT,DIRECT TRANSPORT COSTS,REVENUE
Walsall Council,http://opendatacommunities.org/id/metropolitan-district-council/walsall,WC124-621,31.03.2021,CHILDRENS,ALDRIDGE & BARONS LIMITED,24/03/2021,540.00,6241-Hire of Vehicle with Driver,TRANSPORT,DIRECT TRANSPORT COSTS,REVENUE
Walsall Council,http://opendatacommunities.org/id/metropolitan-district-council/walsall,WC124-622,31.03.2021,CHILDRENS,ALDRIDGE & BARONS LIMITED,24/03/2021,460.00,6241-Hire of Vehicle with Driver,TRANSPORT,DIRECT TRANSPORT COSTS,REVENUE
Walsall Council,http://opendatacommunities.org/id/metropolitan-district-council/walsall,WC124-623,31.03.2021,CHILDRENS,ALDRIDGE & BARONS LIMITED,24/03/2021,"1,744.20",6241-Hire of Vehicle with Driver,TRANSPORT,DIRECT TRANSPORT COSTS,REVENUE
Walsall Council,http://opendatacommunities.org/id/metropolitan-district-council/walsall,WC124-624,31.03.2021,CHILDRENS,ALDRIDGE & BARONS LIMITED,24/03/2021,"2,100.00",6241-Hire of Vehicle with Driver,TRANSPORT,DIRECT TRANSPORT COSTS,REVENUE
Walsall Council,http://opendatacommunities.org/id/metropolitan-district-council/walsall,WC124-625,31.03.2021,CHILDRENS,ALDRIDGE & BARONS LIMITED,24/03/2021,"1,470.00",6241-Hire of Vehicle with Driver,TRANSPORT,DIRECT TRANSPORT COSTS,REVENUE
Walsall Council,http://opendatacommunities.org/id/metropolitan-district-council/walsall,WC124-626,31.03.2021,CHILDRENS,ALDRIDGE & BARONS LIMITED,24/03/2021,920.40,6241-Hire of Vehicle with Driver,TRANSPORT,DIRECT TRANSPORT COSTS,REVENUE
Walsall Council,http://opendatacommunities.org/id/metropolitan-district-council/walsall,WC124-627,31.03.2021,CHILDRENS,ALDRIDGE & BARONS LIMITED,24/03/2021,"1,066.00",6241-Hire of Vehicle with Driver,TRANSPORT,DIRECT TRANSPORT COSTS,REVENUE
Walsall Council,http://opendatacommunities.org/id/metropolitan-district-council/walsall,WC124-628,31.03.2021,CHILDRENS,ALDRIDGE & BARONS LIMITED,24/03/2021,"1,176.00",6241-Hire of Vehicle with Driver,TRANSPORT,DIRECT TRANSPORT COSTS,REVENUE
Walsall Council,http://opendatacommunities.org/id/metropolitan-district-council/walsall,WC124-629,31.03.2021,CHILDRENS,ALDRIDGE & BARONS LIMITED,24/03/2021,"1,263.60",6241-Hire of Vehicle with Driver,TRANSPORT,DIRECT TRANSPORT COSTS,REVENUE
Walsall Council,http://opendatacommunities.org/id/metropolitan-district-council/walsall,WC124-630,31.03.2021,CHILDRENS,ALDRIDGE & BARONS LIMITED,24/03/2021,"1,200.00",6241-Hire of Vehicle with Driver,TRANSPORT,DIRECT TRANSPORT COSTS,REVENUE
Walsall Council,http://opendatacommunities.org/id/metropolitan-district-council/walsall,WC124-631,31.03.2021,CHILDRENS,ALDRIDGE & BARONS LIMITED,24/03/2021,"1,182.50",6241-Hire of Vehicle with Driver,TRANSPORT,DIRECT TRANSPORT COSTS,REVENUE
Walsall Council,http://opendatacommunities.org/id/metropolitan-district-council/walsall,WC124-632,31.03.2021,CHILDRENS,ALDRIDGE & BARONS LIMITED,24/03/2021,"2,250.00",6241-Hire of Vehicle with Driver,TRANSPORT,DIRECT TRANSPORT COSTS,REVENUE
Walsall Council,http://opendatacommunities.org/id/metropolitan-district-council/walsall,WC124-633,31.03.2021,CHILDRENS,ALDRIDGE & BARONS LIMITED,24/03/2021,"1,290.00",6241-Hire of Vehicle with Driver,TRANSPORT,DIRECT TRANSPORT COSTS,REVENUE
Walsall Council,http://opendatacommunities.org/id/metropolitan-district-council/walsall,WC124-634,31.03.2021,CHILDRENS,ALDRIDGE & BARONS LIMITED,24/03/2021,"1,408.28",6241-Hire of Vehicle with Driver,TRANSPORT,DIRECT TRANSPORT COSTS,REVENUE
Walsall Council,http://opendatacommunities.org/id/metropolitan-district-council/walsall,WC124-635,31.03.2021,CHILDRENS,ALDRIDGE & BARONS LIMITED,24/03/2021,"1,292.00",6241-Hire of Vehicle with Driver,TRANSPORT,DIRECT TRANSPORT COSTS,REVENUE
Walsall Council,http://opendatacommunities.org/id/metropolitan-district-council/walsall,WC124-636,31.03.2021,CHILDRENS,ALDRIDGE & BARONS LIMITED,24/03/2021,986.00,6241-Hire of Vehicle with Driver,TRANSPORT,DIRECT TRANSPORT COSTS,REVENUE
Walsall Council,http://opendatacommunities.org/id/metropolitan-district-council/walsall,WC124-637,31.03.2021,CHILDRENS,ALDRIDGE & BARONS LIMITED,24/03/2021,754.00,6241-Hire of Vehicle with Driver,TRANSPORT,DIRECT TRANSPORT COSTS,REVENUE
Walsall Council,http://opendatacommunities.org/id/metropolitan-district-council/walsall,WC124-638,31.03.2021,CHILDRENS,ALDRIDGE & BARONS LIMITED,24/03/2021,513.00,6241-Hire of Vehicle with Driver,TRANSPORT,DIRECT TRANSPORT COSTS,REVENUE
Walsall Council,http://opendatacommunities.org/id/metropolitan-district-council/walsall,WC124-639,31.03.2021,CHILDRENS,ALDRIDGE & BARONS LIMITED,24/03/2021,"1,603.80",6241-Hire of Vehicle with Driver,TRANSPORT,DIRECT TRANSPORT COSTS,REVENUE
Walsall Council,http://opendatacommunities.org/id/metropolitan-district-council/walsall,WC124-640,31.03.2021,CHILDRENS,ALDRIDGE & BARONS LIMITED,24/03/2021,"1,500.00",6241-Hire of Vehicle with Driver,TRANSPORT,DIRECT TRANSPORT COSTS,REVENUE
Walsall Council,http://opendatacommunities.org/id/metropolitan-district-council/walsall,WC124-641,31.03.2021,CHILDRENS,ALDRIDGE & BARONS LIMITED,24/03/2021,"1,488.75",6241-Hire of Vehicle with Driver,TRANSPORT,DIRECT TRANSPORT COSTS,REVENUE
Walsall Council,http://opendatacommunities.org/id/metropolitan-district-council/walsall,WC124-642,31.03.2021,CHILDRENS,ALDRIDGE & BARONS LIMITED,24/03/2021,"1,225.25",6241-Hire of Vehicle with Driver,TRANSPORT,DIRECT TRANSPORT COSTS,REVENUE
Walsall Council,http://opendatacommunities.org/id/metropolitan-district-council/walsall,WC124-643,31.03.2021,CHILDRENS,ALDRIDGE & BARONS LIMITED,24/03/2021,"1,351.84",6241-Hire of Vehicle with Driver,TRANSPORT,DIRECT TRANSPORT COSTS,REVENUE
Walsall Council,http://opendatacommunities.org/id/metropolitan-district-council/walsall,WC124-644,31.03.2021,CHILDRENS,ALDRIDGE & BARONS LIMITED,24/03/2021,"1,467.00",6241-Hire of Vehicle with Driver,TRANSPORT,DIRECT TRANSPORT COSTS,REVENUE
Walsall Council,http://opendatacommunities.org/id/metropolitan-district-council/walsall,WC124-645,31.03.2021,CHILDRENS,ALDRIDGE & BARONS LIMITED,24/03/2021,"1,200.00",6241-Hire of Vehicle with Driver,TRANSPORT,DIRECT TRANSPORT COSTS,REVENUE
Walsall Council,http://opendatacommunities.org/id/metropolitan-district-council/walsall,WC124-646,31.03.2021,CHILDRENS,ALDRIDGE & BARONS LIMITED,24/03/2021,650.00,6241-Hire of Vehicle with Driver,TRANSPORT,DIRECT TRANSPORT COSTS,REVENUE
Walsall Council,http://opendatacommunities.org/id/metropolitan-district-council/walsall,WC124-647,31.03.2021,CHILDRENS,ALDRIDGE & BARONS LIMITED,24/03/2021,648.00,6241-Hire of Vehicle with Driver,TRANSPORT,DIRECT TRANSPORT COSTS,REVENUE
Walsall Council,http://opendatacommunities.org/id/metropolitan-district-council/walsall,WC124-648,31.03.2021,CHILDRENS,ALDRIDGE & BARONS LIMITED,24/03/2021,"1,090.00",6241-Hire of Vehicle with Driver,TRANSPORT,DIRECT TRANSPORT COSTS,REVENUE
Walsall Council,http://opendatacommunities.org/id/metropolitan-district-council/walsall,WC124-649,31.03.2021,CHILDRENS,ALDRIDGE & BARONS LIMITED,24/03/2021,"1,560.00",6241-Hire of Vehicle with Driver,TRANSPORT,DIRECT TRANSPORT COSTS,REVENUE
Walsall Council,http://opendatacommunities.org/id/metropolitan-district-council/walsall,WC124-650,31.03.2021,CHILDRENS,ALDRIDGE & BARONS LIMITED,24/03/2021,837.00,6241-Hire of Vehicle with Driver,TRANSPORT,DIRECT TRANSPORT COSTS,REVENUE
Walsall Council,http://opendatacommunities.org/id/metropolitan-district-council/walsall,WC124-651,31.03.2021,ADULT SOCIAL CARE,REDACTED,10/03/2021,"1,850.40",6541-Direct Payment,THIRD PARTY PAYMENTS,PRIVATE CONTRACTOR,REVENUE
Walsall Council,http://opendatacommunities.org/id/metropolitan-district-council/walsall,WC124-652,31.03.2021,ADULT SOCIAL CARE,ALEXANDRA HOUSE CARE SERVICES LTD T/A STONEBRIDGE NURSING HOME,15/03/2021,"29,444.48",6541-Residential,THIRD PARTY PAYMENTS,PRIVATE CONTRACTOR,REVENUE
Walsall Council,http://opendatacommunities.org/id/metropolitan-district-council/walsall,WC124-653,31.03.2021,ADULT SOCIAL CARE,REDACTED,10/03/2021,"2,429.00",6541-Direct Payment,THIRD PARTY PAYMENTS,PRIVATE CONTRACTOR,REVENUE
Walsall Council,http://opendatacommunities.org/id/metropolitan-district-council/walsall,WC124-654,31.03.2021,ADULT SOCIAL CARE,REDACTED,10/03/2021,"1,184.70",6541-Direct Payment,THIRD PARTY PAYMENTS,PRIVATE CONTRACTOR,REVENUE
Walsall Council,http://opendatacommunities.org/id/metropolitan-district-council/walsall,WC124-655,31.03.2021,ADULT SOCIAL CARE,REDACTED,10/03/2021,"6,671.60",6541-Direct Payment,THIRD PARTY PAYMENTS,PRIVATE CONTRACTOR,REVENUE
Walsall Council,http://opendatacommunities.org/id/metropolitan-district-council/walsall,WC124-656,31.03.2021,CHILDRENS,REDACTED,05/03/2021,312.24,6223-Special Guardianship Orders,TRANSFER PAYMENTS,CHILDREN SOCIAL SERVICES CLIENT,REVENUE
Walsall Council,http://opendatacommunities.org/id/metropolitan-district-council/walsall,WC124-657,31.03.2021,CHILDRENS,ALL SAINTS NATIONAL ACADEMY #1,08/03/2021,"8,684.28",1220-Top Up Funding -Grants to Schools,SUPPLIES & SERVICES,GRANTS (EXP) & SUBSCRIPTIONS,REVENUE
Walsall Council,http://opendatacommunities.org/id/metropolitan-district-council/walsall,WC124-658,31.03.2021,RESOURCES AND TRANSFORMATION,ALLIED PUBLICITY SERVICES (MANCHESTER) LIMITED T/A APS GROUP,02/03/2021,"1,133.15",6312-External Printing Services,SUPPLIES & SERVICES,PRINTING STATIONERY & GENERAL OFFICE,REVENUE
Walsall Council,http://opendatacommunities.org/id/metropolitan-district-council/walsall,WC124-659,31.03.2021,ECONOMY & ENVIRONMENT,ALLSORTS OFFICE SUPPLIES LTD,08/03/2021,729.45,6410-Purchase of Furniture & Equipment,SUPPLIES & SERVICES,EQUIPMENT FURNITURE & MATERIALS,REVENUE
Walsall Council,http://opendatacommunities.org/id/metropolitan-district-council/walsall,WC124-660,31.03.2021,ADULT SOCIAL CARE,ALMA COURT,15/03/2021,"6,553.60",6541-Residential,THIRD PARTY PAYMENTS,PRIVATE CONTRACTOR,REVENUE
Walsall Council,http://opendatacommunities.org/id/metropolitan-district-council/walsall,WC124-661,31.03.2021,ADULT SOCIAL CARE,ALMA COURT,15/03/2021,"3,392.85",6541-Nursing EMI,THIRD PARTY PAYMENTS,PRIVATE CONTRACTOR,REVENUE
Walsall Council,http://opendatacommunities.org/id/metropolitan-district-council/walsall,WC124-662,31.03.2021,ADULT SOCIAL CARE,ALMA COURT,15/03/2021,"4,737.92",6541-Nursing EMI,THIRD PARTY PAYMENTS,PRIVATE CONTRACTOR,REVENUE
Walsall Council,http://opendatacommunities.org/id/metropolitan-district-council/walsall,WC124-663,31.03.2021,ADULT SOCIAL CARE,ALMA COURT,15/03/2021,"5,939.20",6541-Nursing EMI,THIRD PARTY PAYMENTS,PRIVATE CONTRACTOR,REVENUE
Walsall Council,http://opendatacommunities.org/id/metropolitan-district-council/walsall,WC124-664,31.03.2021,CHILDRENS,ALMOZENE NURSERY & CHILDRENS CENTRE,29/03/2021,330.00,1184-Other-Grants to Other Orgs,SUPPLIES & SERVICES,GRANTS (EXP) & SUBSCRIPTIONS,REVENUE
Walsall Council,http://opendatacommunities.org/id/metropolitan-district-council/walsall,WC124-665,31.03.2021,ADULT SOCIAL CARE,ALPHA HEALTH CARE LTD,15/03/2021,"2,696.00",6541-Nursing EMI,THIRD PARTY PAYMENTS,PRIVATE CONTRACTOR,REVENUE
Walsall Council,http://opendatacommunities.org/id/metropolitan-district-council/walsall,WC124-666,31.03.2021,ADULT SOCIAL CARE,ALPHA HEALTH CARE LTD,15/03/2021,"2,937.88",6541-Nursing EMI,THIRD PARTY PAYMENTS,PRIVATE CONTRACTOR,REVENUE
Walsall Council,http://opendatacommunities.org/id/metropolitan-district-council/walsall,WC124-667,31.03.2021,ADULT SOCIAL CARE,ALPHA HEALTH CARE LTD,15/03/2021,"3,035.72",6541-Residential EMI,THIRD PARTY PAYMENTS,PRIVATE CONTRACTOR,REVENUE
Walsall Council,http://opendatacommunities.org/id/metropolitan-district-council/walsall,WC124-668,31.03.2021,ADULT SOCIAL CARE,ALPHA HEALTH CARE LTD,15/03/2021,"7,000.00",6541-Nursing EMI,THIRD PARTY PAYMENTS,PRIVATE CONTRACTOR,REVENUE
Walsall Council,http://opendatacommunities.org/id/metropolitan-district-council/walsall,WC124-669,31.03.2021,ADULT SOCIAL CARE,ALPHA HEALTH CARE LTD,15/03/2021,"2,308.00",6541-Residential EMI,THIRD PARTY PAYMENTS,PRIVATE CONTRACTOR,REVENUE
Walsall Council,http://opendatacommunities.org/id/metropolitan-district-council/walsall,WC124-670,31.03.2021,ADULT SOCIAL CARE,ALPHA HEALTH CARE LTD,15/03/2021,"3,064.32",6541-Nursing EMI,THIRD PARTY PAYMENTS,PRIVATE CONTRACTOR,REVENUE
Walsall Council,http://opendatacommunities.org/id/metropolitan-district-council/walsall,WC124-671,31.03.2021,ADULT SOCIAL CARE,ALPHA HEALTH CARE LTD,15/03/2021,"2,308.00",6541-Residential EMI,THIRD PARTY PAYMENTS,PRIVATE CONTRACTOR,REVENUE
Walsall Council,http://opendatacommunities.org/id/metropolitan-district-council/walsall,WC124-672,31.03.2021,ADULT SOCIAL CARE,ALPHA HEALTH CARE LTD,15/03/2021,547.20,6541-Nursing EMI,THIRD PARTY PAYMENTS,PRIVATE CONTRACTOR,REVENUE
Walsall Council,http://opendatacommunities.org/id/metropolitan-district-council/walsall,WC124-673,31.03.2021,ADULT SOCIAL CARE,ALPHA HEALTH CARE LTD,15/03/2021,"2,843.14",6541-Nursing EMI,THIRD PARTY PAYMENTS,PRIVATE CONTRACTOR,REVENUE
Walsall Council,http://opendatacommunities.org/id/metropolitan-district-council/walsall,WC124-674,31.03.2021,ADULT SOCIAL CARE,ALPHA HEALTH CARE LTD,15/03/2021,"3,064.32",6541-Nursing EMI,THIRD PARTY PAYMENTS,PRIVATE CONTRACTOR,REVENUE
Walsall Council,http://opendatacommunities.org/id/metropolitan-district-council/walsall,WC124-675,31.03.2021,ADULT SOCIAL CARE,ALPHA HEALTH CARE LTD,15/03/2021,"3,064.32",6541-Nursing EMI,THIRD PARTY PAYMENTS,PRIVATE CONTRACTOR,REVENUE
Walsall Council,http://opendatacommunities.org/id/metropolitan-district-council/walsall,WC124-676,31.03.2021,ADULT SOCIAL CARE,ALPHA HEALTH CARE LTD,15/03/2021,"-9,128.58",6541-Nursing EMI,THIRD PARTY PAYMENTS,PRIVATE CONTRACTOR,REVENUE
Walsall Council,http://opendatacommunities.org/id/metropolitan-district-council/walsall,WC124-677,31.03.2021,ADULT SOCIAL CARE,ALPHA HEALTH CARE LTD,15/03/2021,"5,600.00",6541-Residential,THIRD PARTY PAYMENTS,PRIVATE CONTRACTOR,REVENUE
Walsall Council,http://opendatacommunities.org/id/metropolitan-district-council/walsall,WC124-678,31.03.2021,ADULT SOCIAL CARE,ALPHA HEALTH CARE LTD,15/03/2021,"3,064.32",6541-Nursing EMI,THIRD PARTY PAYMENTS,PRIVATE CONTRACTOR,REVENUE
Walsall Council,http://opendatacommunities.org/id/metropolitan-district-council/walsall,WC124-679,31.03.2021,ADULT SOCIAL CARE,ALPHA HEALTH CARE LTD,15/03/2021,"19,600.00",6541-Nursing EMI,THIRD PARTY PAYMENTS,PRIVATE CONTRACTOR,REVENUE
Walsall Council,http://opendatacommunities.org/id/metropolitan-district-council/walsall,WC124-680,31.03.2021,ADULT SOCIAL CARE,ALPHA HEALTH CARE LTD,15/03/2021,"4,985.14",6541-Nursing EMI,THIRD PARTY PAYMENTS,PRIVATE CONTRACTOR,REVENUE
Walsall Council,http://opendatacommunities.org/id/metropolitan-district-council/walsall,WC124-681,31.03.2021,ADULT SOCIAL CARE,ALPHA HEALTH CARE LTD,15/03/2021,"2,185.71",6541-Residential EMI,THIRD PARTY PAYMENTS,PRIVATE CONTRACTOR,REVENUE
Walsall Council,http://opendatacommunities.org/id/metropolitan-district-council/walsall,WC124-682,31.03.2021,ADULT SOCIAL CARE,ALPHA HEALTH CARE LTD,15/03/2021,"2,308.00",6541-Residential EMI,THIRD PARTY PAYMENTS,PRIVATE CONTRACTOR,REVENUE
Walsall Council,http://opendatacommunities.org/id/metropolitan-district-council/walsall,WC124-683,31.03.2021,ADULT SOCIAL CARE,ALPHA HEALTH CARE LTD,15/03/2021,"3,180.00",6541-Residential EMI,THIRD PARTY PAYMENTS,PRIVATE CONTRACTOR,REVENUE
Walsall Council,http://opendatacommunities.org/id/metropolitan-district-council/walsall,WC124-684,31.03.2021,ADULT SOCIAL CARE,ALPHA HEALTH CARE LTD,15/03/2021,"2,696.00",6541-Nursing EMI,THIRD PARTY PAYMENTS,PRIVATE CONTRACTOR,REVENUE
Walsall Council,http://opendatacommunities.org/id/metropolitan-district-council/walsall,WC124-685,31.03.2021,ADULT SOCIAL CARE,ALPHA HEALTH CARE LTD,15/03/2021,"3,290.36",6541-Nursing EMI,THIRD PARTY PAYMENTS,PRIVATE CONTRACTOR,REVENUE
Walsall Council,http://opendatacommunities.org/id/metropolitan-district-council/walsall,WC124-686,31.03.2021,ADULT SOCIAL CARE,ALPHA HEALTH CARE LTD,15/03/2021,"2,937.76",6541-Nursing,THIRD PARTY PAYMENTS,PRIVATE CONTRACTOR,REVENUE
Walsall Council,http://opendatacommunities.org/id/metropolitan-district-council/walsall,WC124-687,31.03.2021,ADULT SOCIAL CARE,ALPHA HEALTH CARE LTD,15/03/2021,"3,180.00",6541-Residential,THIRD PARTY PAYMENTS,PRIVATE CONTRACTOR,REVENUE
Walsall Council,http://opendatacommunities.org/id/metropolitan-district-council/walsall,WC124-688,31.03.2021,ADULT SOCIAL CARE,ALPHA HEALTH CARE LTD,15/03/2021,"2,308.00",6541-Residential EMI,THIRD PARTY PAYMENTS,PRIVATE CONTRACTOR,REVENUE
Walsall Council,http://opendatacommunities.org/id/metropolitan-district-council/walsall,WC124-689,31.03.2021,ADULT SOCIAL CARE,ALPHA HEALTH CARE LTD,15/03/2021,"6,196.56",6541-Nursing,THIRD PARTY PAYMENTS,PRIVATE CONTRACTOR,REVENUE
Walsall Council,http://opendatacommunities.org/id/metropolitan-district-council/walsall,WC124-690,31.03.2021,ADULT SOCIAL CARE,ALPHA HEALTH CARE LTD,15/03/2021,"2,831.48",6541-Residential EMI,THIRD PARTY PAYMENTS,PRIVATE CONTRACTOR,REVENUE
Walsall Council,http://opendatacommunities.org/id/metropolitan-district-council/walsall,WC124-691,31.03.2021,ADULT SOCIAL CARE,ALPHA HEALTH CARE LTD,15/03/2021,"2,881.80",6541-Nursing EMI,THIRD PARTY PAYMENTS,PRIVATE CONTRACTOR,REVENUE
Walsall Council,http://opendatacommunities.org/id/metropolitan-district-council/walsall,WC124-692,31.03.2021,ADULT SOCIAL CARE,ALPHA HEALTH CARE LTD,15/03/2021,"2,696.00",6541-Nursing EMI,THIRD PARTY PAYMENTS,PRIVATE CONTRACTOR,REVENUE
Walsall Council,http://opendatacommunities.org/id/metropolitan-district-council/walsall,WC124-693,31.03.2021,ADULT SOCIAL CARE,ALPHA HEALTH CARE LTD,01/03/2021,"6,000.00",6554-Professional Services-Priv Contractor & Other Agencies,THIRD PARTY PAYMENTS,PRIVATE CONTRACTOR,REVENUE
Walsall Council,http://opendatacommunities.org/id/metropolitan-district-council/walsall,WC124-694,31.03.2021,ADULT SOCIAL CARE,ALPHA HEALTH CARE LTD,01/03/2021,"-3,400.00",6554-Professional Services-Priv Contractor & Other Agencies,THIRD PARTY PAYMENTS,PRIVATE CONTRACTOR,REVENUE
Walsall Council,http://opendatacommunities.org/id/metropolitan-district-council/walsall,WC124-695,31.03.2021,ADULT SOCIAL CARE,ALPHA HEALTH CARE LTD,01/03/2021,-928.57,6554-Professional Services-Priv Contractor & Other Agencies,THIRD PARTY PAYMENTS,PRIVATE CONTRACTOR,REVENUE
Walsall Council,http://opendatacommunities.org/id/metropolitan-district-council/walsall,WC124-696,31.03.2021,ADULT SOCIAL CARE,ALPHA HEALTH CARE LTD,03/03/2021,678.57,6554-Professional Services-Priv Contractor & Other Agencies,THIRD PARTY PAYMENTS,PRIVATE CONTRACTOR,REVENUE
Walsall Council,http://opendatacommunities.org/id/metropolitan-district-council/walsall,WC124-697,31.03.2021,ADULT SOCIAL CARE,ALPHA HEALTH CARE LTD,03/03/2021,"6,200.00",6554-Professional Services-Priv Contractor & Other Agencies,THIRD PARTY PAYMENTS,PRIVATE CONTRACTOR,REVENUE
Walsall Council,http://opendatacommunities.org/id/metropolitan-district-council/walsall,WC124-698,31.03.2021,ADULT SOCIAL CARE,ALPHA HEALTH CARE LTD,17/03/2021,"1,662.00",6554-Professional Services-Priv Contractor & Other Agencies,THIRD PARTY PAYMENTS,PRIVATE CONTRACTOR,REVENUE
Walsall Council,http://opendatacommunities.org/id/metropolitan-district-council/walsall,WC124-699,31.03.2021,ADULT SOCIAL CARE,ALPHA HEALTH CARE LTD,24/03/2021,"4,944.00",6554-Professional Services-Priv Contractor & Other Agencies,THIRD PARTY PAYMENTS,PRIVATE CONTRACTOR,REVENUE
Walsall Council,http://opendatacommunities.org/id/metropolitan-district-council/walsall,WC124-700,31.03.2021,ADULT SOCIAL CARE,ALPHA HEALTH CARE LTD,24/03/2021,"1,703.57",6554-Professional Services-Priv Contractor & Other Agencies,THIRD PARTY PAYMENTS,PRIVATE CONTRACTOR,REVENUE
Walsall Council,http://opendatacommunities.org/id/metropolitan-district-council/walsall,WC124-701,31.03.2021,ADULT SOCIAL CARE,ALPHA HEALTH CARE LTD,24/03/2021,"5,600.00",6554-Professional Services-Priv Contractor & Other Agencies,THIRD PARTY PAYMENTS,PRIVATE CONTRACTOR,REVENUE
Walsall Council,http://opendatacommunities.org/id/metropolitan-district-council/walsall,WC124-702,31.03.2021,CHILDRENS,ALPHA TRAINING ACADEMY UK LTD,09/03/2021,"2,000.00",1187-Materials,SUPPLIES & SERVICES,EQUIPMENT FURNITURE & MATERIALS,REVENUE
Walsall Council,http://opendatacommunities.org/id/metropolitan-district-council/walsall,WC124-703,31.03.2021,CHILDRENS,ALPHA TRAINING ACADEMY UK LTD,25/03/2021,"10,863.00",1220-Professional Fees & Services,SUPPLIES & SERVICES,SERVICES,REVENUE
Walsall Council,http://opendatacommunities.org/id/metropolitan-district-council/walsall,WC124-704,31.03.2021,CHILDRENS,ALPHABIOLABS,03/03/2021,398.33,6220-School Only Payments - Catering,THIRD PARTY PAYMENTS,INDEPENDENT UNIT WITHIN COUNCIL,REVENUE
Walsall Council,http://opendatacommunities.org/id/metropolitan-district-council/walsall,WC124-705,31.03.2021,CHILDRENS,AMAH NURSERIES LIMITED T/A BANANA MOON WALSALL,29/03/2021,332.00,1184-Other-Grants to Other Orgs,SUPPLIES & SERVICES,GRANTS (EXP) & SUBSCRIPTIONS,REVENUE
Walsall Council,http://opendatacommunities.org/id/metropolitan-district-council/walsall,WC124-706,31.03.2021,CHILDRENS,REDACTED,05/03/2021,318.08,6223-Residents Orders,TRANSFER PAYMENTS,CHILDREN SOCIAL SERVICES CLIENT,REVENUE
Walsall Council,http://opendatacommunities.org/id/metropolitan-district-council/walsall,WC124-707,31.03.2021,ADULT SOCIAL CARE,REDACTED,10/03/2021,"1,933.80",6541-Direct Payment,THIRD PARTY PAYMENTS,PRIVATE CONTRACTOR,REVENUE
Walsall Council,http://opendatacommunities.org/id/metropolitan-district-council/walsall,WC124-708,31.03.2021,ADULT SOCIAL CARE,REDACTED,10/03/2021,"1,443.75",6541-Direct Payment,THIRD PARTY PAYMENTS,PRIVATE CONTRACTOR,REVENUE
Walsall Council,http://opendatacommunities.org/id/metropolitan-district-council/walsall,WC124-709,31.03.2021,ECONOMY & ENVIRONMENT,AMEY LG LIMITED,05/03/2021,-579.61,6411-Professional Services-Priv Contractor & Other Agencies,THIRD PARTY PAYMENTS,PRIVATE CONTRACTOR,REVENUE
Walsall Council,http://opendatacommunities.org/id/metropolitan-district-council/walsall,WC124-710,31.03.2021,ECONOMY & ENVIRONMENT,AMEY LG LIMITED,05/03/2021,579.61,6411-Professional Services-Priv Contractor & Other Agencies,THIRD PARTY PAYMENTS,PRIVATE CONTRACTOR,REVENUE
Walsall Council,http://opendatacommunities.org/id/metropolitan-district-council/walsall,WC124-711,31.03.2021,ECONOMY & ENVIRONMENT,AMEY LG LIMITED,05/03/2021,"-1,022.01",6411-Professional Services-Priv Contractor & Other Agencies,THIRD PARTY PAYMENTS,PRIVATE CONTRACTOR,REVENUE
Walsall Council,http://opendatacommunities.org/id/metropolitan-district-council/walsall,WC124-712,31.03.2021,ECONOMY & ENVIRONMENT,AMEY LG LIMITED,05/03/2021,"1,022.01",6411-Professional Services-Priv Contractor & Other Agencies,THIRD PARTY PAYMENTS,PRIVATE CONTRACTOR,REVENUE
Walsall Council,http://opendatacommunities.org/id/metropolitan-district-council/walsall,WC124-713,31.03.2021,ECONOMY & ENVIRONMENT,AMEY LG LIMITED,12/03/2021,"1,722.17",6411-Materials,SUPPLIES & SERVICES,EQUIPMENT FURNITURE & MATERIALS,REVENUE
Walsall Council,http://opendatacommunities.org/id/metropolitan-district-council/walsall,WC124-714,31.03.2021,ECONOMY & ENVIRONMENT CAPITAL,AMEY LG LIMITED,24/03/2021,"17,970.53",7200-Site Works Contractors,CAPITAL,"NEW CONSTRUCTION,CONVERSION & RENOVATION",REVENUE
Walsall Council,http://opendatacommunities.org/id/metropolitan-district-council/walsall,WC124-715,31.03.2021,ECONOMY & ENVIRONMENT,AMEY LG LIMITED,24/03/2021,"3,370.55",6430-Repair & Maintenance of Furniture & Equipment,SUPPLIES & SERVICES,EQUIPMENT FURNITURE & MATERIALS,REVENUE
Walsall Council,http://opendatacommunities.org/id/metropolitan-district-council/walsall,WC124-716,31.03.2021,ECONOMY & ENVIRONMENT,AMEY LG LIMITED,24/03/2021,"5,231.50",6430-Repair & Maintenance of Furniture & Equipment,SUPPLIES & SERVICES,EQUIPMENT FURNITURE & MATERIALS,REVENUE
Walsall Council,http://opendatacommunities.org/id/metropolitan-district-council/walsall,WC124-717,31.03.2021,ECONOMY & ENVIRONMENT,AMEY LG LIMITED,15/03/2021,442.40,6411-Professional Services-Priv Contractor & Other Agencies,THIRD PARTY PAYMENTS,PRIVATE CONTRACTOR,REVENUE
Walsall Council,http://opendatacommunities.org/id/metropolitan-district-council/walsall,WC124-718,31.03.2021,ECONOMY & ENVIRONMENT,AMEY OW LTD,17/03/2021,"8,488.47",6411-Professional Services-Priv Contractor & Other Agencies,THIRD PARTY PAYMENTS,PRIVATE CONTRACTOR,REVENUE
Walsall Council,http://opendatacommunities.org/id/metropolitan-district-council/walsall,WC124-719,31.03.2021,ECONOMY & ENVIRONMENT,AMEY OW LTD,18/03/2021,"6,987.90",6411-Professional Services-Priv Contractor & Other Agencies,THIRD PARTY PAYMENTS,PRIVATE CONTRACTOR,REVENUE
Walsall Council,http://opendatacommunities.org/id/metropolitan-district-council/walsall,WC124-720,31.03.2021,ECONOMY & ENVIRONMENT CAPITAL,AMEY OW LTD,30/03/2021,"4,759.18",7200-Project Fees,CAPITAL,"NEW CONSTRUCTION,CONVERSION & RENOVATION",REVENUE
Walsall Council,http://opendatacommunities.org/id/metropolitan-district-council/walsall,WC124-721,31.03.2021,CHILDRENS,AMG NURSING CARE SERVICES,18/03/2021,"-2,644.72",6220-Professional Fees & Services,SUPPLIES & SERVICES,SERVICES,REVENUE
Walsall Council,http://opendatacommunities.org/id/metropolitan-district-council/walsall,WC124-722,31.03.2021,CHILDRENS,AMG NURSING CARE SERVICES,18/03/2021,"-1,917.12",6220-Professional Fees & Services,SUPPLIES & SERVICES,SERVICES,REVENUE
Walsall Council,http://opendatacommunities.org/id/metropolitan-district-council/walsall,WC124-723,31.03.2021,CHILDRENS,AMG NURSING CARE SERVICES,18/03/2021,"1,917.12",6220-Professional Fees & Services,SUPPLIES & SERVICES,SERVICES,REVENUE
Walsall Council,http://opendatacommunities.org/id/metropolitan-district-council/walsall,WC124-724,31.03.2021,CHILDRENS,AMG NURSING CARE SERVICES,18/03/2021,"2,644.72",6220-Professional Fees & Services,SUPPLIES & SERVICES,SERVICES,REVENUE
Walsall Council,http://opendatacommunities.org/id/metropolitan-district-council/walsall,WC124-725,31.03.2021,CHILDRENS,AMG NURSING CARE SERVICES,18/03/2021,"2,644.72",6220-Professional Fees & Services,SUPPLIES & SERVICES,SERVICES,REVENUE
Walsall Council,http://opendatacommunities.org/id/metropolitan-district-council/walsall,WC124-726,31.03.2021,CHILDRENS,AMG NURSING CARE SERVICES,18/03/2021,"1,929.12",6220-Professional Fees & Services,SUPPLIES & SERVICES,SERVICES,REVENUE
Walsall Council,http://opendatacommunities.org/id/metropolitan-district-council/walsall,WC124-727,31.03.2021,CHILDRENS,AMG NURSING CARE SERVICES,18/03/2021,"2,644.72",6220-Professional Fees & Services,SUPPLIES & SERVICES,SERVICES,REVENUE
Walsall Council,http://opendatacommunities.org/id/metropolitan-district-council/walsall,WC124-728,31.03.2021,CHILDRENS,REDACTED,05/03/2021,600.00,6223-Foster Carers Maintenance Allowance,TRANSFER PAYMENTS,CHILDREN SOCIAL SERVICES CLIENT,REVENUE
Walsall Council,http://opendatacommunities.org/id/metropolitan-district-council/walsall,WC124-729,31.03.2021,CHILDRENS,REDACTED,05/03/2021,340.00,6223-Internal Foster Carers-Carer Fees,TRANSFER PAYMENTS,CHILDREN SOCIAL SERVICES CLIENT,REVENUE
Walsall Council,http://opendatacommunities.org/id/metropolitan-district-council/walsall,WC124-730,31.03.2021,ADULT SOCIAL CARE,ANCHOR CAREHOMES LTD - HARDEN HALL,19/03/2021,"5,120.82",6550-Professional Services-Priv Contractor & Other Agencies,THIRD PARTY PAYMENTS,PRIVATE CONTRACTOR,REVENUE
Walsall Council,http://opendatacommunities.org/id/metropolitan-district-council/walsall,WC124-731,31.03.2021,ADULT SOCIAL CARE,ANCHOR CAREHOMES LTD - HARDEN HALL,15/03/2021,"1,095.00",6541-Residential,THIRD PARTY PAYMENTS,PRIVATE CONTRACTOR,REVENUE
Walsall Council,http://opendatacommunities.org/id/metropolitan-district-council/walsall,WC124-732,31.03.2021,ADULT SOCIAL CARE,ANCHOR CAREHOMES LTD - HARDEN HALL,15/03/2021,448.92,6541-Residential,THIRD PARTY PAYMENTS,PRIVATE CONTRACTOR,REVENUE
Walsall Council,http://opendatacommunities.org/id/metropolitan-district-council/walsall,WC124-733,31.03.2021,ADULT SOCIAL CARE,ANCHOR CAREHOMES LTD - HARDEN HALL,15/03/2021,"2,332.24",6541-Residential EMI,THIRD PARTY PAYMENTS,PRIVATE CONTRACTOR,REVENUE
Walsall Council,http://opendatacommunities.org/id/metropolitan-district-council/walsall,WC124-734,31.03.2021,ADULT SOCIAL CARE,ANCHOR CAREHOMES LTD - HARDEN HALL,15/03/2021,"2,308.00",6541-Residential EMI,THIRD PARTY PAYMENTS,PRIVATE CONTRACTOR,REVENUE
Walsall Council,http://opendatacommunities.org/id/metropolitan-district-council/walsall,WC124-735,31.03.2021,ADULT SOCIAL CARE,ANCHOR CAREHOMES LTD - HARDEN HALL,15/03/2021,"2,044.00",6541-Residential,THIRD PARTY PAYMENTS,PRIVATE CONTRACTOR,REVENUE
Walsall Council,http://opendatacommunities.org/id/metropolitan-district-council/walsall,WC124-736,31.03.2021,ADULT SOCIAL CARE,ANCHOR CAREHOMES LTD - HARDEN HALL,15/03/2021,"2,308.00",6541-Residential EMI,THIRD PARTY PAYMENTS,PRIVATE CONTRACTOR,REVENUE
Walsall Council,http://opendatacommunities.org/id/metropolitan-district-council/walsall,WC124-737,31.03.2021,ADULT SOCIAL CARE,ANCHOR CAREHOMES LTD - HARDEN HALL,15/03/2021,"2,308.00",6541-Residential EMI,THIRD PARTY PAYMENTS,PRIVATE CONTRACTOR,REVENUE
Walsall Council,http://opendatacommunities.org/id/metropolitan-district-council/walsall,WC124-738,31.03.2021,ADULT SOCIAL CARE,ANCHOR CAREHOMES LTD - HARDEN HALL,15/03/2021,"2,308.00",6541-Residential EMI,THIRD PARTY PAYMENTS,PRIVATE CONTRACTOR,REVENUE
Walsall Council,http://opendatacommunities.org/id/metropolitan-district-council/walsall,WC124-739,31.03.2021,ADULT SOCIAL CARE,ANCHOR CAREHOMES LTD - HARDEN HALL,15/03/2021,"2,308.00",6541-Residential EMI,THIRD PARTY PAYMENTS,PRIVATE CONTRACTOR,REVENUE
Walsall Council,http://opendatacommunities.org/id/metropolitan-district-council/walsall,WC124-740,31.03.2021,ADULT SOCIAL CARE,ANCHOR CAREHOMES LTD - HARDEN HALL,15/03/2021,"2,308.00",6541-Residential EMI,THIRD PARTY PAYMENTS,PRIVATE CONTRACTOR,REVENUE
Walsall Council,http://opendatacommunities.org/id/metropolitan-district-council/walsall,WC124-741,31.03.2021,ADULT SOCIAL CARE,ANCHOR CAREHOMES LTD - HARDEN HALL,15/03/2021,"2,308.00",6541-Residential EMI,THIRD PARTY PAYMENTS,PRIVATE CONTRACTOR,REVENUE
Walsall Council,http://opendatacommunities.org/id/metropolitan-district-council/walsall,WC124-742,31.03.2021,ADULT SOCIAL CARE,ANCHOR CAREHOMES LTD - HARDEN HALL,15/03/2021,"2,308.00",6541-Residential EMI,THIRD PARTY PAYMENTS,PRIVATE CONTRACTOR,REVENUE
Walsall Council,http://opendatacommunities.org/id/metropolitan-district-council/walsall,WC124-743,31.03.2021,ADULT SOCIAL CARE,ANCHOR CAREHOMES LTD - HARDEN HALL,15/03/2021,"2,308.00",6541-Residential EMI,THIRD PARTY PAYMENTS,PRIVATE CONTRACTOR,REVENUE
Walsall Council,http://opendatacommunities.org/id/metropolitan-district-council/walsall,WC124-744,31.03.2021,ADULT SOCIAL CARE,ANCHOR CAREHOMES LTD - HARDEN HALL,15/03/2021,"2,054.96",6541-Residential,THIRD PARTY PAYMENTS,PRIVATE CONTRACTOR,REVENUE
Walsall Council,http://opendatacommunities.org/id/metropolitan-district-council/walsall,WC124-745,31.03.2021,ADULT SOCIAL CARE,ANCHOR CAREHOMES LTD - HARDEN HALL,15/03/2021,"2,308.00",6541-Residential EMI,THIRD PARTY PAYMENTS,PRIVATE CONTRACTOR,REVENUE
Walsall Council,http://opendatacommunities.org/id/metropolitan-district-council/walsall,WC124-746,31.03.2021,ADULT SOCIAL CARE,ANCHOR CAREHOMES LTD - HARDEN HALL,15/03/2021,"2,271.48",6541-Residential EMI,THIRD PARTY PAYMENTS,PRIVATE CONTRACTOR,REVENUE
Walsall Council,http://opendatacommunities.org/id/metropolitan-district-council/walsall,WC124-747,31.03.2021,ADULT SOCIAL CARE,ANCHOR CAREHOMES LTD - HARDEN HALL,15/03/2021,"2,044.00",6541-Residential,THIRD PARTY PAYMENTS,PRIVATE CONTRACTOR,REVENUE
Walsall Council,http://opendatacommunities.org/id/metropolitan-district-council/walsall,WC124-748,31.03.2021,ADULT SOCIAL CARE,ANCHOR CAREHOMES LTD - HARDEN HALL,15/03/2021,"2,312.24",6541-Residential EMI,THIRD PARTY PAYMENTS,PRIVATE CONTRACTOR,REVENUE
Walsall Council,http://opendatacommunities.org/id/metropolitan-district-council/walsall,WC124-749,31.03.2021,ADULT SOCIAL CARE,ANCHOR CAREHOMES LTD - HARDEN HALL,15/03/2021,"2,044.00",6541-Residential,THIRD PARTY PAYMENTS,PRIVATE CONTRACTOR,REVENUE
Walsall Council,http://opendatacommunities.org/id/metropolitan-district-council/walsall,WC124-750,31.03.2021,ADULT SOCIAL CARE,ANCHOR CAREHOMES LTD - HARDEN HALL,15/03/2021,"2,308.00",6541-Residential EMI,THIRD PARTY PAYMENTS,PRIVATE CONTRACTOR,REVENUE
Walsall Council,http://opendatacommunities.org/id/metropolitan-district-council/walsall,WC124-751,31.03.2021,ADULT SOCIAL CARE,ANCHOR CAREHOMES LTD - HARDEN HALL,15/03/2021,"2,308.00",6541-Residential EMI,THIRD PARTY PAYMENTS,PRIVATE CONTRACTOR,REVENUE
Walsall Council,http://opendatacommunities.org/id/metropolitan-district-council/walsall,WC124-752,31.03.2021,ADULT SOCIAL CARE,ANCHOR CAREHOMES LTD - HARDEN HALL,15/03/2021,"2,044.00",6541-Residential,THIRD PARTY PAYMENTS,PRIVATE CONTRACTOR,REVENUE
Walsall Council,http://opendatacommunities.org/id/metropolitan-district-council/walsall,WC124-753,31.03.2021,ADULT SOCIAL CARE,ANCHOR CAREHOMES LTD - HARDEN HALL,15/03/2021,"2,308.00",6541-Residential EMI,THIRD PARTY PAYMENTS,PRIVATE CONTRACTOR,REVENUE
Walsall Council,http://opendatacommunities.org/id/metropolitan-district-council/walsall,WC124-754,31.03.2021,ADULT SOCIAL CARE,ANCHOR CAREHOMES LTD - HARDEN HALL,15/03/2021,"2,332.24",6541-Residential EMI,THIRD PARTY PAYMENTS,PRIVATE CONTRACTOR,REVENUE
Walsall Council,http://opendatacommunities.org/id/metropolitan-district-council/walsall,WC124-755,31.03.2021,ADULT SOCIAL CARE,ANCHOR CAREHOMES LTD - HARDEN HALL,15/03/2021,"2,358.96",6541-Residential EMI,THIRD PARTY PAYMENTS,PRIVATE CONTRACTOR,REVENUE
Walsall Council,http://opendatacommunities.org/id/metropolitan-district-council/walsall,WC124-756,31.03.2021,ADULT SOCIAL CARE,ANCHOR CAREHOMES LTD - HARDEN HALL,15/03/2021,"2,308.00",6541-Residential EMI,THIRD PARTY PAYMENTS,PRIVATE CONTRACTOR,REVENUE
Walsall Council,http://opendatacommunities.org/id/metropolitan-district-council/walsall,WC124-757,31.03.2021,ADULT SOCIAL CARE,ANCHOR CAREHOMES LTD - HARDEN HALL,15/03/2021,"2,044.00",6541-Residential,THIRD PARTY PAYMENTS,PRIVATE CONTRACTOR,REVENUE
Walsall Council,http://opendatacommunities.org/id/metropolitan-district-council/walsall,WC124-758,31.03.2021,ADULT SOCIAL CARE,ANCHOR CAREHOMES LTD - HARDEN HALL,15/03/2021,"2,266.12",6541-Residential,THIRD PARTY PAYMENTS,PRIVATE CONTRACTOR,REVENUE
Walsall Council,http://opendatacommunities.org/id/metropolitan-district-council/walsall,WC124-759,31.03.2021,ADULT SOCIAL CARE,ANCHOR CAREHOMES LTD - HARDEN HALL,15/03/2021,"2,332.24",6541-Residential EMI,THIRD PARTY PAYMENTS,PRIVATE CONTRACTOR,REVENUE
Walsall Council,http://opendatacommunities.org/id/metropolitan-district-council/walsall,WC124-760,31.03.2021,ADULT SOCIAL CARE,ANCHOR CAREHOMES LTD - HARDEN HALL,15/03/2021,"2,312.24",6541-Residential EMI,THIRD PARTY PAYMENTS,PRIVATE CONTRACTOR,REVENUE
Walsall Council,http://opendatacommunities.org/id/metropolitan-district-council/walsall,WC124-761,31.03.2021,ADULT SOCIAL CARE,ANCHOR CAREHOMES LTD - HARDEN HALL,15/03/2021,"2,308.00",6541-Residential EMI,THIRD PARTY PAYMENTS,PRIVATE CONTRACTOR,REVENUE
Walsall Council,http://opendatacommunities.org/id/metropolitan-district-council/walsall,WC124-762,31.03.2021,ADULT SOCIAL CARE,ANCHOR CAREHOMES LTD - HARDEN HALL,15/03/2021,"2,332.24",6541-Residential EMI,THIRD PARTY PAYMENTS,PRIVATE CONTRACTOR,REVENUE
Walsall Council,http://opendatacommunities.org/id/metropolitan-district-council/walsall,WC124-763,31.03.2021,CHILDRENS,REDACTED,05/03/2021,312.24,6223-Special Guardianship Orders,TRANSFER PAYMENTS,CHILDREN SOCIAL SERVICES CLIENT,REVENUE
Walsall Council,http://opendatacommunities.org/id/metropolitan-district-council/walsall,WC124-764,31.03.2021,ADULT SOCIAL CARE,REDACTED,10/03/2021,647.50,6541-Direct Payment,THIRD PARTY PAYMENTS,PRIVATE CONTRACTOR,REVENUE
Walsall Council,http://opendatacommunities.org/id/metropolitan-district-council/walsall,WC124-765,31.03.2021,ADULT SOCIAL CARE,REDACTED,10/03/2021,"3,354.20",6541-Direct Payment,THIRD PARTY PAYMENTS,PRIVATE CONTRACTOR,REVENUE
Walsall Council,http://opendatacommunities.org/id/metropolitan-district-council/walsall,WC124-766,31.03.2021,CHILDRENS CAPITAL,ANDREWS ELECTRICAL LTD,17/03/2021,"15,497.00",7150-Site Works Contractors,CAPITAL,"NEW CONSTRUCTION,CONVERSION & RENOVATION",REVENUE
Walsall Council,http://opendatacommunities.org/id/metropolitan-district-council/walsall,WC124-767,31.03.2021,CHILDRENS CAPITAL,ANDREWS ELECTRICAL LTD,16/03/2021,"9,089.00",7155-Purchase of Furniture & Equipment,CAPITAL,"VEHICLES,PLANT,EQUIPMENT & MACHINERY",REVENUE
Walsall Council,http://opendatacommunities.org/id/metropolitan-district-council/walsall,WC124-768,31.03.2021,CHILDRENS CAPITAL,ANDREWS ELECTRICAL LTD,30/03/2021,"4,185.00",7150-Site Works Contractors,CAPITAL,"NEW CONSTRUCTION,CONVERSION & RENOVATION",REVENUE
Walsall Council,http://opendatacommunities.org/id/metropolitan-district-council/walsall,WC124-769,31.03.2021,CHILDRENS CAPITAL,ANDREWS ELECTRICAL LTD,24/03/2021,"4,330.00",7155-Purchase of Furniture & Equipment,CAPITAL,"VEHICLES,PLANT,EQUIPMENT & MACHINERY",REVENUE
Walsall Council,http://opendatacommunities.org/id/metropolitan-district-council/walsall,WC124-770,31.03.2021,CHILDRENS,REDACTED,05/03/2021,500.16,6223-Special Guardianship Orders,TRANSFER PAYMENTS,CHILDREN SOCIAL SERVICES CLIENT,REVENUE
Walsall Council,http://opendatacommunities.org/id/metropolitan-district-council/walsall,WC124-771,31.03.2021,CHILDRENS,REDACTED,05/03/2021,368.76,6223-Special Guardianship Orders,TRANSFER PAYMENTS,CHILDREN SOCIAL SERVICES CLIENT,REVENUE
Walsall Council,http://opendatacommunities.org/id/metropolitan-district-council/walsall,WC124-772,31.03.2021,CHILDRENS,REDACTED,05/03/2021,"-1,290.66",6223-Special Guardianship Orders,TRANSFER PAYMENTS,CHILDREN SOCIAL SERVICES CLIENT,REVENUE
Walsall Council,http://opendatacommunities.org/id/metropolitan-district-council/walsall,WC124-773,31.03.2021,CHILDRENS,REDACTED,05/03/2021,"1,218.66",6223-Special Guardianship Orders,TRANSFER PAYMENTS,CHILDREN SOCIAL SERVICES CLIENT,REVENUE
Walsall Council,http://opendatacommunities.org/id/metropolitan-district-council/walsall,WC124-774,31.03.2021,CHILDRENS,REDACTED,05/03/2021,312.04,6223-Special Guardianship Orders,TRANSFER PAYMENTS,CHILDREN SOCIAL SERVICES CLIENT,REVENUE
Walsall Council,http://opendatacommunities.org/id/metropolitan-district-council/walsall,WC124-775,31.03.2021,CHILDRENS,ANGELS WITHOUT WINGS,01/03/2021,860.00,6223-School Only Payments - Catering,THIRD PARTY PAYMENTS,INDEPENDENT UNIT WITHIN COUNCIL,REVENUE
Walsall Council,http://opendatacommunities.org/id/metropolitan-district-council/walsall,WC124-776,31.03.2021,ADULT SOCIAL CARE,REDACTED,24/03/2021,618.84,6541-Shared Lives,THIRD PARTY PAYMENTS,PRIVATE CONTRACTOR,REVENUE
Walsall Council,http://opendatacommunities.org/id/metropolitan-district-council/walsall,WC124-777,31.03.2021,ADULT SOCIAL CARE,REDACTED,10/03/2021,"1,760.45",6541-Direct Payment,THIRD PARTY PAYMENTS,PRIVATE CONTRACTOR,REVENUE
Walsall Council,http://opendatacommunities.org/id/metropolitan-district-council/walsall,WC124-778,31.03.2021,ADULT SOCIAL CARE,ANSON COURT RESIDENTIAL HOME,19/03/2021,"3,129.39",6550-Professional Services-Priv Contractor & Other Agencies,THIRD PARTY PAYMENTS,PRIVATE CONTRACTOR,REVENUE
Walsall Council,http://opendatacommunities.org/id/metropolitan-district-council/walsall,WC124-779,31.03.2021,ADULT SOCIAL CARE,ANSON COURT RESIDENTIAL HOME,15/03/2021,"2,308.00",6541-Residential EMI,THIRD PARTY PAYMENTS,PRIVATE CONTRACTOR,REVENUE
Walsall Council,http://opendatacommunities.org/id/metropolitan-district-council/walsall,WC124-780,31.03.2021,ADULT SOCIAL CARE,ANSON COURT RESIDENTIAL HOME,15/03/2021,"2,308.00",6541-Residential EMI,THIRD PARTY PAYMENTS,PRIVATE CONTRACTOR,REVENUE
Walsall Council,http://opendatacommunities.org/id/metropolitan-district-council/walsall,WC124-781,31.03.2021,ADULT SOCIAL CARE,ANSON COURT RESIDENTIAL HOME,15/03/2021,"2,308.00",6541-Residential EMI,THIRD PARTY PAYMENTS,PRIVATE CONTRACTOR,REVENUE
Walsall Council,http://opendatacommunities.org/id/metropolitan-district-council/walsall,WC124-782,31.03.2021,ADULT SOCIAL CARE,ANSON COURT RESIDENTIAL HOME,15/03/2021,"2,308.00",6541-Residential EMI,THIRD PARTY PAYMENTS,PRIVATE CONTRACTOR,REVENUE
Walsall Council,http://opendatacommunities.org/id/metropolitan-district-council/walsall,WC124-783,31.03.2021,ADULT SOCIAL CARE,ANSON COURT RESIDENTIAL HOME,15/03/2021,"2,308.00",6541-Residential EMI,THIRD PARTY PAYMENTS,PRIVATE CONTRACTOR,REVENUE
Walsall Council,http://opendatacommunities.org/id/metropolitan-district-council/walsall,WC124-784,31.03.2021,ADULT SOCIAL CARE,ANSON COURT RESIDENTIAL HOME,15/03/2021,"2,308.00",6541-Residential EMI,THIRD PARTY PAYMENTS,PRIVATE CONTRACTOR,REVENUE
Walsall Council,http://opendatacommunities.org/id/metropolitan-district-council/walsall,WC124-785,31.03.2021,ADULT SOCIAL CARE,ANSON COURT RESIDENTIAL HOME,15/03/2021,"2,308.00",6541-Residential EMI,THIRD PARTY PAYMENTS,PRIVATE CONTRACTOR,REVENUE
Walsall Council,http://opendatacommunities.org/id/metropolitan-district-council/walsall,WC124-786,31.03.2021,ADULT SOCIAL CARE,ANSON COURT RESIDENTIAL HOME,15/03/2021,"2,172.24",6541-Residential,THIRD PARTY PAYMENTS,PRIVATE CONTRACTOR,REVENUE
Walsall Council,http://opendatacommunities.org/id/metropolitan-district-council/walsall,WC124-787,31.03.2021,ADULT SOCIAL CARE,ANSON COURT RESIDENTIAL HOME,15/03/2021,"2,044.00",6541-Residential,THIRD PARTY PAYMENTS,PRIVATE CONTRACTOR,REVENUE
Walsall Council,http://opendatacommunities.org/id/metropolitan-district-council/walsall,WC124-788,31.03.2021,ADULT SOCIAL CARE,ANSON COURT RESIDENTIAL HOME,15/03/2021,"2,308.00",6541-Residential EMI,THIRD PARTY PAYMENTS,PRIVATE CONTRACTOR,REVENUE
Walsall Council,http://opendatacommunities.org/id/metropolitan-district-council/walsall,WC124-789,31.03.2021,ADULT SOCIAL CARE,ANSON COURT RESIDENTIAL HOME,15/03/2021,"2,308.00",6541-Residential EMI,THIRD PARTY PAYMENTS,PRIVATE CONTRACTOR,REVENUE
Walsall Council,http://opendatacommunities.org/id/metropolitan-district-council/walsall,WC124-790,31.03.2021,ADULT SOCIAL CARE,ANSON COURT RESIDENTIAL HOME,15/03/2021,989.14,6541-Residential EMI,THIRD PARTY PAYMENTS,PRIVATE CONTRACTOR,REVENUE
Walsall Council,http://opendatacommunities.org/id/metropolitan-district-council/walsall,WC124-791,31.03.2021,ADULT SOCIAL CARE,ANSON COURT RESIDENTIAL HOME,15/03/2021,"2,164.00",6541-Residential,THIRD PARTY PAYMENTS,PRIVATE CONTRACTOR,REVENUE
Walsall Council,http://opendatacommunities.org/id/metropolitan-district-council/walsall,WC124-792,31.03.2021,ADULT SOCIAL CARE,ANSON COURT RESIDENTIAL HOME,15/03/2021,"-5,687.57",6541-Residential EMI,THIRD PARTY PAYMENTS,PRIVATE CONTRACTOR,REVENUE
Walsall Council,http://opendatacommunities.org/id/metropolitan-district-council/walsall,WC124-793,31.03.2021,ADULT SOCIAL CARE,ANSON COURT RESIDENTIAL HOME,15/03/2021,"2,308.00",6541-Residential EMI,THIRD PARTY PAYMENTS,PRIVATE CONTRACTOR,REVENUE
Walsall Council,http://opendatacommunities.org/id/metropolitan-district-council/walsall,WC124-794,31.03.2021,ADULT SOCIAL CARE,ANSON COURT RESIDENTIAL HOME,23/03/2021,"33,665.47",6550-Professional Services-Priv Contractor & Other Agencies,THIRD PARTY PAYMENTS,PRIVATE CONTRACTOR,REVENUE
Walsall Council,http://opendatacommunities.org/id/metropolitan-district-council/walsall,WC124-795,31.03.2021,ADULT SOCIAL CARE,ANSON COURT RESIDENTIAL HOME,02/03/2021,"1,154.00",6541-Residential EMI,THIRD PARTY PAYMENTS,PRIVATE CONTRACTOR,REVENUE
Walsall Council,http://opendatacommunities.org/id/metropolitan-district-council/walsall,WC124-796,31.03.2021,CHILDRENS,REDACTED,05/03/2021,333.12,6223-Special Guardianship Orders,TRANSFER PAYMENTS,CHILDREN SOCIAL SERVICES CLIENT,REVENUE
Walsall Council,http://opendatacommunities.org/id/metropolitan-district-council/walsall,WC124-797,31.03.2021,ECONOMY & ENVIRONMENT,APCOA PARKING SERVICES (UK) LTD,05/03/2021,"24,489.43",6411-Professional Services-Priv Contractor & Other Agencies,THIRD PARTY PAYMENTS,PRIVATE CONTRACTOR,REVENUE
Walsall Council,http://opendatacommunities.org/id/metropolitan-district-council/walsall,WC124-798,31.03.2021,CHILDRENS,APP CARZ,24/03/2021,728.00,6241-Hire of Vehicle with Driver,TRANSPORT,DIRECT TRANSPORT COSTS,REVENUE
Walsall Council,http://opendatacommunities.org/id/metropolitan-district-council/walsall,WC124-799,31.03.2021,CHILDRENS,APP CARZ,24/03/2021,896.00,6241-Hire of Vehicle with Driver,TRANSPORT,DIRECT TRANSPORT COSTS,REVENUE
Walsall Council,http://opendatacommunities.org/id/metropolitan-district-council/walsall,WC124-800,31.03.2021,CHILDRENS,APP CARZ,24/03/2021,660.00,6241-Hire of Vehicle with Driver,TRANSPORT,DIRECT TRANSPORT COSTS,REVENUE
Walsall Council,http://opendatacommunities.org/id/metropolitan-district-council/walsall,WC124-801,31.03.2021,CHILDRENS,APP CARZ,24/03/2021,410.00,6241-Hire of Vehicle with Driver,TRANSPORT,DIRECT TRANSPORT COSTS,REVENUE
Walsall Council,http://opendatacommunities.org/id/metropolitan-district-council/walsall,WC124-802,31.03.2021,CHILDRENS,APP CARZ,24/03/2021,330.00,6241-Hire of Vehicle with Driver,TRANSPORT,DIRECT TRANSPORT COSTS,REVENUE
Walsall Council,http://opendatacommunities.org/id/metropolitan-district-council/walsall,WC124-803,31.03.2021,CHILDRENS,APP CARZ,24/03/2021,"1,215.00",6241-Hire of Vehicle with Driver,TRANSPORT,DIRECT TRANSPORT COSTS,REVENUE
Walsall Council,http://opendatacommunities.org/id/metropolitan-district-council/walsall,WC124-804,31.03.2021,CHILDRENS,APP CARZ,24/03/2021,486.20,6241-Hire of Vehicle with Driver,TRANSPORT,DIRECT TRANSPORT COSTS,REVENUE
Walsall Council,http://opendatacommunities.org/id/metropolitan-district-council/walsall,WC124-805,31.03.2021,CHILDRENS,APP CARZ,24/03/2021,960.00,6241-Hire of Vehicle with Driver,TRANSPORT,DIRECT TRANSPORT COSTS,REVENUE
Walsall Council,http://opendatacommunities.org/id/metropolitan-district-council/walsall,WC124-806,31.03.2021,CHILDRENS,APP CARZ,24/03/2021,300.00,6241-Hire of Vehicle with Driver,TRANSPORT,DIRECT TRANSPORT COSTS,REVENUE
Walsall Council,http://opendatacommunities.org/id/metropolitan-district-council/walsall,WC124-807,31.03.2021,CHILDRENS,APP CARZ,24/03/2021,660.00,6241-Hire of Vehicle with Driver,TRANSPORT,DIRECT TRANSPORT COSTS,REVENUE
Walsall Council,http://opendatacommunities.org/id/metropolitan-district-council/walsall,WC124-808,31.03.2021,CHILDRENS,APP CARZ,24/03/2021,960.00,6241-Hire of Vehicle with Driver,TRANSPORT,DIRECT TRANSPORT COSTS,REVENUE
Walsall Council,http://opendatacommunities.org/id/metropolitan-district-council/walsall,WC124-809,31.03.2021,CHILDRENS,APP CARZ,24/03/2021,300.00,6241-Hire of Vehicle with Driver,TRANSPORT,DIRECT TRANSPORT COSTS,REVENUE
Walsall Council,http://opendatacommunities.org/id/metropolitan-district-council/walsall,WC124-810,31.03.2021,CHILDRENS,APP CARZ,24/03/2021,330.00,6241-Hire of Vehicle with Driver,TRANSPORT,DIRECT TRANSPORT COSTS,REVENUE
